Department Family,Entity,Date,Expense Type,Expense area,Supplier,Transaction Number,Amount,VAT Registration Number
Department of Health,Salisbury NHS Foundation Trust,20-Oct-17,DRUGS,Clinical Support,ROCHE PRODUCTS LTD,1321969332,31261.1,
Department of Health,Salisbury NHS Foundation Trust,20-Oct-17,DRUGS,Clinical Support,ROCHE PRODUCTS LTD,1321969332,6252.22,
Department of Health,Salisbury NHS Foundation Trust,20-Oct-17,DRUGS,Clinical Support,ROCHE PRODUCTS LTD,1321966335,22149.55,
Department of Health,Salisbury NHS Foundation Trust,20-Oct-17,DRUGS,Clinical Support,ROCHE PRODUCTS LTD,1321966335,4429.91,
Department of Health,Salisbury NHS Foundation Trust,20-Oct-17,Agency Medical Consultant,Medicine,TOTAL ASSIST RECRUITMENT LTD,20077368,26153.46,
Department of Health,Salisbury NHS Foundation Trust,20-Oct-17,Agency Medical Consultant,Medicine,TOTAL ASSIST RECRUITMENT LTD,20077368,5230.69,
Department of Health,Salisbury NHS Foundation Trust,13-Oct-17,RATES,Corporate - ETS,WILTSHIRE COUNCIL,OCT 17 NDR,114356,
Department of Health,Salisbury NHS Foundation Trust,20-Oct-17,SERVICES  -  OTHER,Corporate - Finance & Procurement,GREAT WESTERN HOSPITALS NHS FT,16973255,52197,
Department of Health,Salisbury NHS Foundation Trust,27-Oct-17,DRUGS,Clinical Support,BAYER PLC,187487769,21850,
Department of Health,Salisbury NHS Foundation Trust,27-Oct-17,DRUGS,Clinical Support,BAYER PLC,187487769,4370,
Department of Health,Salisbury NHS Foundation Trust,27-Oct-17,DRUGS,Clinical Support,JANSSEN-CILAG LTD,930343192,32839.04,
Department of Health,Salisbury NHS Foundation Trust,27-Oct-17,DRUGS,Clinical Support,JANSSEN-CILAG LTD,930343192,6567.81,
Department of Health,Salisbury NHS Foundation Trust,20-Oct-17,BLDG STRUCTURES MAIN CONTR,Capital Projects,FOREMANS RELOCATABLE BUILDING SYSTEMS LTD,929501442,194025,
Department of Health,Salisbury NHS Foundation Trust,20-Oct-17,BLDG STRUCTURES MAIN CONTR,Capital Projects,FOREMANS RELOCATABLE BUILDING SYSTEMS LTD,929501442,38805,
Department of Health,Salisbury NHS Foundation Trust,20-Oct-17,MEDPROSTH - OTHER,Medicine,BOSTON SCIENTIFIC LTD,7161700881,25300,
Department of Health,Salisbury NHS Foundation Trust,20-Oct-17,MEDPROSTH - OTHER,Medicine,BOSTON SCIENTIFIC LTD,7161700881,5060,
Department of Health,Salisbury NHS Foundation Trust,13-Oct-17,MED SURG EQUIP REP MAINT CLEANING,Surgery,AQUILANT ENDOSCOPY,AQ67819,43536,
Department of Health,Salisbury NHS Foundation Trust,13-Oct-17,MED SURG EQUIP REP MAINT CLEANING,Clinical Support,AQUILANT ENDOSCOPY,AQ67819,177302.4,
Department of Health,Salisbury NHS Foundation Trust,13-Oct-17,NETWORKING COSTS,Capital Projects,CSC COMPUTER SCIENCES LTD,5201478476A,101841,
Department of Health,Salisbury NHS Foundation Trust,06-Oct-17,LAB EQUIP-LABORATORY APPARATUS,Clinical Support,BECKMAN COULTER,1388560,48745.91,
Department of Health,Salisbury NHS Foundation Trust,13-Oct-17,LAB REAGENTS-BUFFERS COMPUND SOLNS,Clinical Support,OXFORD GENE TECHNOLOGY,SIN005313,51216,
Department of Health,Salisbury NHS Foundation Trust,13-Oct-17,LAB REAGENTS-BUFFERS COMPUND SOLNS,Clinical Support,OXFORD GENE TECHNOLOGY,SIN005313,10243.2,
Department of Health,Salisbury NHS Foundation Trust,06-Oct-17,BLDG STRUCTURES MAIN CONTR,Capital Projects,SOUTH WEST HIGHWAYS LIMITED,C20172B,59617.06,
Department of Health,Salisbury NHS Foundation Trust,06-Oct-17,BLDG STRUCTURES MAIN CONTR,Capital Projects,SOUTH WEST HIGHWAYS LIMITED,C20172B,6575.76,
Department of Health,Salisbury NHS Foundation Trust,20-Oct-17,MED SURG EQUIP REP MAINT CLEANING,Capital Projects,OLYMPUS KEYMED LTD,CD2329696,2175,
Department of Health,Salisbury NHS Foundation Trust,20-Oct-17,MED SURG EQUIP REP MAINT CLEANING,Capital Projects,OLYMPUS KEYMED LTD,CD2329696,1652,
Department of Health,Salisbury NHS Foundation Trust,20-Oct-17,MED SURG EQUIP REP MAINT CLEANING,Capital Projects,OLYMPUS KEYMED LTD,CD2329696,3521.78,
Department of Health,Salisbury NHS Foundation Trust,20-Oct-17,MED SURG EQUIP REP MAINT CLEANING,Capital Projects,OLYMPUS KEYMED LTD,CD2329696,6637,
Department of Health,Salisbury NHS Foundation Trust,20-Oct-17,MED SURG EQUIP REP MAINT CLEANING,Capital Projects,OLYMPUS KEYMED LTD,CD2329696,10940,
Department of Health,Salisbury NHS Foundation Trust,20-Oct-17,MED SURG EQUIP REP MAINT CLEANING,Capital Projects,OLYMPUS KEYMED LTD,CD2329696,435,
Department of Health,Salisbury NHS Foundation Trust,20-Oct-17,MED SURG EQUIP REP MAINT CLEANING,Capital Projects,OLYMPUS KEYMED LTD,CD2329696,330.4,
Department of Health,Salisbury NHS Foundation Trust,20-Oct-17,MED SURG EQUIP REP MAINT CLEANING,Capital Projects,OLYMPUS KEYMED LTD,CD2329696,704.36,
Department of Health,Salisbury NHS Foundation Trust,20-Oct-17,MED SURG EQUIP REP MAINT CLEANING,Capital Projects,OLYMPUS KEYMED LTD,CD2329696,1327.4,
Department of Health,Salisbury NHS Foundation Trust,20-Oct-17,MED SURG EQUIP REP MAINT CLEANING,Capital Projects,OLYMPUS KEYMED LTD,CD2329696,2188,
Department of Health,Salisbury NHS Foundation Trust,06-Oct-17,MED PROSTH - PACEMAKERS,Corporate - Finance & Procurement,ABBOTT MEDICAL U.K. LTD,7500270213,14850,
Department of Health,Salisbury NHS Foundation Trust,06-Oct-17,MEDPROSTH - OTHER,Corporate - Finance & Procurement,ABBOTT MEDICAL U.K. LTD,7500270213,71500,
Department of Health,Salisbury NHS Foundation Trust,06-Oct-17,MED PROSTH - PACEMAKERS,Corporate - Finance & Procurement,ABBOTT MEDICAL U.K. LTD,7500270213,2970,
Department of Health,Salisbury NHS Foundation Trust,06-Oct-17,MEDPROSTH - OTHER,Corporate - Finance & Procurement,ABBOTT MEDICAL U.K. LTD,7500270213,14300,
Department of Health,Salisbury NHS Foundation Trust,06-Oct-17,LAB EQUIP-LABORATORY APPARATUS,Capital Projects,VIDEO SOUTH MEDICAL TELEVISION,4581,4890,
Department of Health,Salisbury NHS Foundation Trust,06-Oct-17,LAB EQUIP-LABORATORY APPARATUS,Capital Projects,VIDEO SOUTH MEDICAL TELEVISION,4581,2499,
Department of Health,Salisbury NHS Foundation Trust,06-Oct-17,LAB EQUIP-LABORATORY APPARATUS,Capital Projects,VIDEO SOUTH MEDICAL TELEVISION,4581,920,
Department of Health,Salisbury NHS Foundation Trust,06-Oct-17,LAB EQUIP-LABORATORY APPARATUS,Capital Projects,VIDEO SOUTH MEDICAL TELEVISION,4581,1260,
Department of Health,Salisbury NHS Foundation Trust,06-Oct-17,LAB EQUIP-LABORATORY APPARATUS,Capital Projects,VIDEO SOUTH MEDICAL TELEVISION,4581,230,
Department of Health,Salisbury NHS Foundation Trust,06-Oct-17,LAB EQUIP-LABORATORY APPARATUS,Capital Projects,VIDEO SOUTH MEDICAL TELEVISION,4581,555,
Department of Health,Salisbury NHS Foundation Trust,06-Oct-17,LAB EQUIP-LABORATORY APPARATUS,Capital Projects,VIDEO SOUTH MEDICAL TELEVISION,4581,4990,
Department of Health,Salisbury NHS Foundation Trust,06-Oct-17,LAB EQUIP-LABORATORY APPARATUS,Capital Projects,VIDEO SOUTH MEDICAL TELEVISION,4581,460,
Department of Health,Salisbury NHS Foundation Trust,06-Oct-17,LAB EQUIP-LABORATORY APPARATUS,Capital Projects,VIDEO SOUTH MEDICAL TELEVISION,4581,355,
Department of Health,Salisbury NHS Foundation Trust,06-Oct-17,LAB EQUIP-LABORATORY APPARATUS,Capital Projects,VIDEO SOUTH MEDICAL TELEVISION,4581,3240,
Department of Health,Salisbury NHS Foundation Trust,06-Oct-17,LAB EQUIP-LABORATORY APPARATUS,Capital Projects,VIDEO SOUTH MEDICAL TELEVISION,4581,2920,
Department of Health,Salisbury NHS Foundation Trust,06-Oct-17,LAB EQUIP-LABORATORY APPARATUS,Capital Projects,VIDEO SOUTH MEDICAL TELEVISION,4581,420,
Department of Health,Salisbury NHS Foundation Trust,06-Oct-17,LAB EQUIP-LABORATORY APPARATUS,Capital Projects,VIDEO SOUTH MEDICAL TELEVISION,4581,978,
Department of Health,Salisbury NHS Foundation Trust,06-Oct-17,LAB EQUIP-LABORATORY APPARATUS,Capital Projects,VIDEO SOUTH MEDICAL TELEVISION,4581,499.8,
Department of Health,Salisbury NHS Foundation Trust,06-Oct-17,LAB EQUIP-LABORATORY APPARATUS,Capital Projects,VIDEO SOUTH MEDICAL TELEVISION,4581,184,
Department of Health,Salisbury NHS Foundation Trust,06-Oct-17,LAB EQUIP-LABORATORY APPARATUS,Capital Projects,VIDEO SOUTH MEDICAL TELEVISION,4581,252,
Department of Health,Salisbury NHS Foundation Trust,06-Oct-17,LAB EQUIP-LABORATORY APPARATUS,Capital Projects,VIDEO SOUTH MEDICAL TELEVISION,4581,46,
Department of Health,Salisbury NHS Foundation Trust,06-Oct-17,LAB EQUIP-LABORATORY APPARATUS,Capital Projects,VIDEO SOUTH MEDICAL TELEVISION,4581,111,
Department of Health,Salisbury NHS Foundation Trust,06-Oct-17,LAB EQUIP-LABORATORY APPARATUS,Capital Projects,VIDEO SOUTH MEDICAL TELEVISION,4581,998,
Department of Health,Salisbury NHS Foundation Trust,06-Oct-17,LAB EQUIP-LABORATORY APPARATUS,Capital Projects,VIDEO SOUTH MEDICAL TELEVISION,4581,92,
Department of Health,Salisbury NHS Foundation Trust,06-Oct-17,LAB EQUIP-LABORATORY APPARATUS,Capital Projects,VIDEO SOUTH MEDICAL TELEVISION,4581,71,
Department of Health,Salisbury NHS Foundation Trust,06-Oct-17,LAB EQUIP-LABORATORY APPARATUS,Capital Projects,VIDEO SOUTH MEDICAL TELEVISION,4581,648,
Department of Health,Salisbury NHS Foundation Trust,06-Oct-17,LAB EQUIP-LABORATORY APPARATUS,Capital Projects,VIDEO SOUTH MEDICAL TELEVISION,4581,584,
Department of Health,Salisbury NHS Foundation Trust,06-Oct-17,LAB EQUIP-LABORATORY APPARATUS,Capital Projects,VIDEO SOUTH MEDICAL TELEVISION,4581,84,
Department of Health,Salisbury NHS Foundation Trust,06-Oct-17,MEDICAL EQUIPMENT 5 YEARS,Capital Projects,MEDICAL IMAGING SYSTEMS,72064,34000,
Department of Health,Salisbury NHS Foundation Trust,06-Oct-17,MEDICAL EQUIPMENT 5 YEARS,Capital Projects,MEDICAL IMAGING SYSTEMS,72064,6800,
Department of Health,Salisbury NHS Foundation Trust,27-Oct-17,Agency Medical Consultant,Medicine,TOTAL ASSIST RECRUITMENT LTD,20079847,25380.85,
Department of Health,Salisbury NHS Foundation Trust,27-Oct-17,Agency Medical Consultant,Medicine,TOTAL ASSIST RECRUITMENT LTD,20079847,5076.17,
Department of Health,Salisbury NHS Foundation Trust,20-Oct-17,POSTAGE & CARRIAGE,Facilities,PITNEY BOWES LTD,BF014482,27156.32,
Department of Health,Salisbury NHS Foundation Trust,27-Oct-17,ENERGY WATER - ELECTRICITY,Corporate - ETS,SCOTTISH POWER,105137784,6265.3,
Department of Health,Salisbury NHS Foundation Trust,27-Oct-17,ENERGY WATER - ELECTRICITY,Corporate - ETS,SCOTTISH POWER,105137784,53284.7,
Department of Health,Salisbury NHS Foundation Trust,27-Oct-17,ENERGY WATER - ELECTRICITY,Corporate - ETS,SCOTTISH POWER,105137784,313.27,
Department of Health,Salisbury NHS Foundation Trust,27-Oct-17,ENERGY WATER - ELECTRICITY,Corporate - ETS,SCOTTISH POWER,105137784,10656.94,
Department of Health,Salisbury NHS Foundation Trust,13-Oct-17,COSTS TO OTHER LABS,Clinical Support,UNIVERSITY HOSPITAL SOUTHAMPTON NHS FOUNDATION TRUST,7304118,7500.44,
Department of Health,Salisbury NHS Foundation Trust,13-Oct-17,COSTS TO OTHER LABS,Clinical Support,UNIVERSITY HOSPITAL SOUTHAMPTON NHS FOUNDATION TRUST,7304118,4689.2,
Department of Health,Salisbury NHS Foundation Trust,13-Oct-17,COSTS TO OTHER LABS,Clinical Support,UNIVERSITY HOSPITAL SOUTHAMPTON NHS FOUNDATION TRUST,7304118,17474.7,
Department of Health,Salisbury NHS Foundation Trust,13-Oct-17,HEALTHCARE - NHS TRUSTS,Clinical Support,UNIVERSITY HOSPITAL SOUTHAMPTON NHS FOUNDATION TRUST,7305038,31880.47,
Department of Health,Salisbury NHS Foundation Trust,20-Oct-17,COSTS TO OTHER LABS,Clinical Support,UNIVERSITY HOSPITAL SOUTHAMPTON NHS FOUNDATION TRUST,7306712,4616.66,
Department of Health,Salisbury NHS Foundation Trust,20-Oct-17,COSTS TO OTHER LABS,Clinical Support,UNIVERSITY HOSPITAL SOUTHAMPTON NHS FOUNDATION TRUST,7306712,23749.39,
Department of Health,Salisbury NHS Foundation Trust,06-Oct-17,ETS UNITARY CHARGE,Corporate,SALISBURY HEALTHCARE FACILITIES LTD,386,309277.51,
Department of Health,Salisbury NHS Foundation Trust,31-Oct-17,DENTAL SURGERY SUNDRIES,Surgery,NHS LOGISTICS,1018142596,8.73,
Department of Health,Salisbury NHS Foundation Trust,31-Oct-17,HEALTHCARE - WEAR,Facilities,NHS LOGISTICS,1018142596,92.33,
Department of Health,Salisbury NHS Foundation Trust,31-Oct-17,ADULTS HEARING AIDS,Surgery,NHS LOGISTICS,1018142596,97.53,
Department of Health,Salisbury NHS Foundation Trust,31-Oct-17,LAB EQUIP-LABORATORY APPARATUS,Clinical Support,NHS LOGISTICS,1018142596,86.55,
Department of Health,Salisbury NHS Foundation Trust,31-Oct-17,TISSUES HAND TOWELS & TOILET PAPER,Clinical Support,NHS LOGISTICS,1018142596,21.3,
Department of Health,Salisbury NHS Foundation Trust,31-Oct-17,OTHER MEDICAL SUPPLIES,Clinical Support,NHS LOGISTICS,1018142596,15.48,
Department of Health,Salisbury NHS Foundation Trust,31-Oct-17,DRESSINGS - PRE STERILE,Musculo-Skeletal,NHS LOGISTICS,1018142596,47.6,
Department of Health,Salisbury NHS Foundation Trust,31-Oct-17,DRESSINGS - PRE STERILE,Musculo-Skeletal,NHS LOGISTICS,1018142596,50.3,
Department of Health,Salisbury NHS Foundation Trust,31-Oct-17,DRESSINGS - PRE STERILE,Musculo-Skeletal,NHS LOGISTICS,1018142596,67.07,
Department of Health,Salisbury NHS Foundation Trust,31-Oct-17,DRESSINGS - PRE STERILE,Musculo-Skeletal,NHS LOGISTICS,1018142596,26.65,
Department of Health,Salisbury NHS Foundation Trust,31-Oct-17,DRESSINGS - PRE STERILE,Musculo-Skeletal,NHS LOGISTICS,1018142596,29.07,
Department of Health,Salisbury NHS Foundation Trust,31-Oct-17,M & S EQUIPELECTEQUIPINST - OTHER,Musculo-Skeletal,NHS LOGISTICS,1018142596,20.71,
Department of Health,Salisbury NHS Foundation Trust,31-Oct-17,ADULTS HEARING AIDS,Surgery,NHS LOGISTICS,1018142596,872.67,
Department of Health,Salisbury NHS Foundation Trust,31-Oct-17,OTHER MEDICAL SUPPLIES,Clinical Support,NHS LOGISTICS,1018142596,184.03,
Department of Health,Salisbury NHS Foundation Trust,31-Oct-17,SURGICAL INSTRUMENTS: GENERAL,Musculo-Skeletal,NHS LOGISTICS,1018142596,103.42,
Department of Health,Salisbury NHS Foundation Trust,31-Oct-17,MED SURG EQUIP REP MAINT CLEANING,Medicine,NHS LOGISTICS,1018142596,23.08,
Department of Health,Salisbury NHS Foundation Trust,31-Oct-17,HEALTHCARE - WEAR,Clinical Support,NHS LOGISTICS,1018142596,43.33,
Department of Health,Salisbury NHS Foundation Trust,31-Oct-17,DRESSINGS - PRE STERILE,Musculo-Skeletal,NHS LOGISTICS,1018142596,22.61,
Department of Health,Salisbury NHS Foundation Trust,31-Oct-17,MED SURG EQUIP REP MAINT CLEANING,Clinical Support,NHS LOGISTICS,1018142596,255.58,
Department of Health,Salisbury NHS Foundation Trust,31-Oct-17,MEDSURGCONS - OTHER,Surgery,NHS LOGISTICS,1018142596,7.2,
Department of Health,Salisbury NHS Foundation Trust,31-Oct-17,OPTICAL  -  OTHER,Surgery,NHS LOGISTICS,1018142596,53,
Department of Health,Salisbury NHS Foundation Trust,31-Oct-17,PATIENT APPLIANCES,Musculo-Skeletal,NHS LOGISTICS,1018142596,37.61,
Department of Health,Salisbury NHS Foundation Trust,31-Oct-17,MEDSURGCONS - OTHER,Musculo-Skeletal,NHS LOGISTICS,1018142596,11.42,
Department of Health,Salisbury NHS Foundation Trust,31-Oct-17,MEDSURGCONS - OTHER,Musculo-Skeletal,NHS LOGISTICS,1018142596,155.23,
Department of Health,Salisbury NHS Foundation Trust,31-Oct-17,M & S EQUIPELECTEQUIPINST - OTHER,Clinical Support,NHS LOGISTICS,1018142596,27.85,
Department of Health,Salisbury NHS Foundation Trust,31-Oct-17,MEDSURGCONS - OTHER,Clinical Support,NHS LOGISTICS,1018142596,29.9,
Department of Health,Salisbury NHS Foundation Trust,31-Oct-17,DRESSINGS - PRE STERILE,Musculo-Skeletal,NHS LOGISTICS,1018142596,16.33,
Department of Health,Salisbury NHS Foundation Trust,31-Oct-17,DRESSINGS - PRE STERILE,Musculo-Skeletal,NHS LOGISTICS,1018142596,5.73,
Department of Health,Salisbury NHS Foundation Trust,31-Oct-17,DRESSINGS - PRE STERILE,Musculo-Skeletal,NHS LOGISTICS,1018142596,14.98,
Department of Health,Salisbury NHS Foundation Trust,31-Oct-17,DRESSINGS - PRE STERILE,Musculo-Skeletal,NHS LOGISTICS,1018142596,8.71,
Department of Health,Salisbury NHS Foundation Trust,31-Oct-17,TUBES,Musculo-Skeletal,NHS LOGISTICS,1018142596,6.85,
Department of Health,Salisbury NHS Foundation Trust,31-Oct-17,PATIENT APPLIANCES,Musculo-Skeletal,NHS LOGISTICS,1018142596,3.35,
Department of Health,Salisbury NHS Foundation Trust,31-Oct-17,PATIENT APPLIANCES,Musculo-Skeletal,NHS LOGISTICS,1018142596,4.39,
Department of Health,Salisbury NHS Foundation Trust,31-Oct-17,PATIENT APPLIANCES,Musculo-Skeletal,NHS LOGISTICS,1018142596,4.39,
Department of Health,Salisbury NHS Foundation Trust,31-Oct-17,MEDSURGCONS - OTHER,Musculo-Skeletal,NHS LOGISTICS,1018142596,59.78,
Department of Health,Salisbury NHS Foundation Trust,31-Oct-17,MEDSURGCONS - OTHER,Musculo-Skeletal,NHS LOGISTICS,1018142596,5.89,
Department of Health,Salisbury NHS Foundation Trust,31-Oct-17,MEDSURGCONS - OTHER,Musculo-Skeletal,NHS LOGISTICS,1018142596,3.91,
Department of Health,Salisbury NHS Foundation Trust,31-Oct-17,MEDSURGCONS - OTHER,Musculo-Skeletal,NHS LOGISTICS,1018142596,6.82,
Department of Health,Salisbury NHS Foundation Trust,31-Oct-17,TISSUES HAND TOWELS & TOILET PAPER,Musculo-Skeletal,NHS LOGISTICS,1018142596,0.35,
Department of Health,Salisbury NHS Foundation Trust,31-Oct-17,TOILETRIES PERSONAL HYGIENE PRODUCTS,Musculo-Skeletal,NHS LOGISTICS,1018142596,8.25,
Department of Health,Salisbury NHS Foundation Trust,31-Oct-17,DISPOSABLE THEATRE DRAPES WIPES,Musculo-Skeletal,NHS LOGISTICS,1018142596,7.1,
Department of Health,Salisbury NHS Foundation Trust,31-Oct-17,TISSUES HAND TOWELS & TOILET PAPER,Surgery,NHS LOGISTICS,1018142596,3.72,
Department of Health,Salisbury NHS Foundation Trust,31-Oct-17,OTHER MEDICAL SUPPLIES,Clinical Support,NHS LOGISTICS,1018142596,37.37,
Department of Health,Salisbury NHS Foundation Trust,31-Oct-17,MEDSURGCONS - OTHER,Clinical Support,NHS LOGISTICS,1018142596,31.96,
Department of Health,Salisbury NHS Foundation Trust,31-Oct-17,MEDSURGCONS - OTHER,Surgery,NHS LOGISTICS,1018142596,10.22,
Department of Health,Salisbury NHS Foundation Trust,31-Oct-17,MED SURG EQUIP REP MAINT CLEANING,Clinical Support,NHS LOGISTICS,1018142596,319.8,
Department of Health,Salisbury NHS Foundation Trust,31-Oct-17,PATIENT APPLIANCES,Clinical Support,NHS LOGISTICS,1018142596,25,
Department of Health,Salisbury NHS Foundation Trust,31-Oct-17,LAB EQUIP-LABORATORY APPARATUS,Clinical Support,NHS LOGISTICS,1018142596,18.93,
Department of Health,Salisbury NHS Foundation Trust,31-Oct-17,LAB EQUIP-LABORATORY APPARATUS,Clinical Support,NHS LOGISTICS,1018142596,30.67,
Department of Health,Salisbury NHS Foundation Trust,31-Oct-17,LAB EQUIP-LABORATORY APPARATUS,Clinical Support,NHS LOGISTICS,1018142596,415.33,
Department of Health,Salisbury NHS Foundation Trust,31-Oct-17,LAB EQUIP-ANALYSERS,Clinical Support,NHS LOGISTICS,1018142596,38.1,
Department of Health,Salisbury NHS Foundation Trust,31-Oct-17,LAB EQUIP-LABORATORY APPARATUS,Clinical Support,NHS LOGISTICS,1018142596,12.92,
Department of Health,Salisbury NHS Foundation Trust,31-Oct-17,LAB EQUIP-LABORATORY APPARATUS,Clinical Support,NHS LOGISTICS,1018142596,748.67,
Department of Health,Salisbury NHS Foundation Trust,31-Oct-17,LAB EQUIP-LABORATORY APPARATUS,Clinical Support,NHS LOGISTICS,1018142596,11.42,
Department of Health,Salisbury NHS Foundation Trust,31-Oct-17,LAB EQUIP-LABORATORY APPARATUS,Clinical Support,NHS LOGISTICS,1018142596,32.08,
Department of Health,Salisbury NHS Foundation Trust,31-Oct-17,LAB EQUIP-LABORATORY APPARATUS,Clinical Support,NHS LOGISTICS,1018142596,62.08,
Department of Health,Salisbury NHS Foundation Trust,31-Oct-17,LAB EQUIP-ANALYSERS,Clinical Support,NHS LOGISTICS,1018142596,10.19,
Department of Health,Salisbury NHS Foundation Trust,31-Oct-17,COOKING & KITCHEN UTENSILS,Clinical Support,NHS LOGISTICS,1018142596,3.8,
Department of Health,Salisbury NHS Foundation Trust,31-Oct-17,LAB EQUIP-LABORATORY APPARATUS,Clinical Support,NHS LOGISTICS,1018142596,6.3,
Department of Health,Salisbury NHS Foundation Trust,31-Oct-17,LAB EQUIP-LABORATORY APPARATUS,Clinical Support,NHS LOGISTICS,1018142596,85.4,
Department of Health,Salisbury NHS Foundation Trust,31-Oct-17,OTHER MEDICAL SUPPLIES,Clinical Support,NHS LOGISTICS,1018142596,318.5,
Department of Health,Salisbury NHS Foundation Trust,31-Oct-17,LAB EQUIP-LABORATORY APPARATUS,Medical,NHS LOGISTICS,1018142596,18.4,
Department of Health,Salisbury NHS Foundation Trust,31-Oct-17,LAB EQUIP-LABORATORY APPARATUS,Medical,NHS LOGISTICS,1018142596,29,
Department of Health,Salisbury NHS Foundation Trust,31-Oct-17,DRESSINGS - PRE STERILE,Medical,NHS LOGISTICS,1018142596,23.17,
Department of Health,Salisbury NHS Foundation Trust,31-Oct-17,OTHER MEDICAL SUPPLIES,Medical,NHS LOGISTICS,1018142596,8.88,
Department of Health,Salisbury NHS Foundation Trust,31-Oct-17,MEDSURGCONS - OTHER,Medical,NHS LOGISTICS,1018142596,6.82,
Department of Health,Salisbury NHS Foundation Trust,31-Oct-17,BAGS SACKS - OTHER,Facilities,NHS LOGISTICS,1018142596,87.5,
Department of Health,Salisbury NHS Foundation Trust,31-Oct-17,BAGS SACKS - OTHER,Facilities,NHS LOGISTICS,1018142596,26.7,
Department of Health,Salisbury NHS Foundation Trust,31-Oct-17,LIQUID REFRESHMENTS,Facilities,NHS LOGISTICS,1018142596,7.82,
Department of Health,Salisbury NHS Foundation Trust,31-Oct-17,CLEANING MATERIALS PRODUCTS SUNDRIES,Facilities,NHS LOGISTICS,1018142596,66.13,
Department of Health,Salisbury NHS Foundation Trust,31-Oct-17,CLEANING MATERIALS PRODUCTS SUNDRIES,Facilities,NHS LOGISTICS,1018142596,27.5,
Department of Health,Salisbury NHS Foundation Trust,31-Oct-17,DISPOSABLE THEATRE DRAPES WIPES,Facilities,NHS LOGISTICS,1018142596,283.2,
Department of Health,Salisbury NHS Foundation Trust,31-Oct-17,CLEANING MATERIALS PRODUCTS SUNDRIES,Facilities,NHS LOGISTICS,1018142596,25.5,
Department of Health,Salisbury NHS Foundation Trust,31-Oct-17,CLEANING MATERIALS PRODUCTS SUNDRIES,Facilities,NHS LOGISTICS,1018142596,4.3,
Department of Health,Salisbury NHS Foundation Trust,31-Oct-17,CLEANING MATERIALS PRODUCTS SUNDRIES,Facilities,NHS LOGISTICS,1018142596,14.42,
Department of Health,Salisbury NHS Foundation Trust,31-Oct-17,CLEANING MATERIALS PRODUCTS SUNDRIES,Facilities,NHS LOGISTICS,1018142596,85.2,
Department of Health,Salisbury NHS Foundation Trust,31-Oct-17,DISPOSABLE THEATRE DRAPES WIPES,Facilities,NHS LOGISTICS,1018142596,91.2,
Department of Health,Salisbury NHS Foundation Trust,31-Oct-17,TISSUES HAND TOWELS & TOILET PAPER,Medicine,NHS LOGISTICS,1018142596,2.48,
Department of Health,Salisbury NHS Foundation Trust,31-Oct-17,OTHER MEDICAL SUPPLIES,Medicine,NHS LOGISTICS,1018142596,1.88,
Department of Health,Salisbury NHS Foundation Trust,31-Oct-17,PATIENT APPLIANCES,Medicine,NHS LOGISTICS,1018142596,4.39,
Department of Health,Salisbury NHS Foundation Trust,31-Oct-17,TISSUES HAND TOWELS & TOILET PAPER,Medicine,NHS LOGISTICS,1018142596,0.35,
Department of Health,Salisbury NHS Foundation Trust,31-Oct-17,CLEANING MATERIALS PRODUCTS SUNDRIES,Facilities,NHS LOGISTICS,1018142596,6.23,
Department of Health,Salisbury NHS Foundation Trust,31-Oct-17,CLEANING MATERIALS PRODUCTS SUNDRIES,Facilities,NHS LOGISTICS,1018142596,14.42,
Department of Health,Salisbury NHS Foundation Trust,31-Oct-17,TOILETRIES PERSONAL HYGIENE PRODUCTS,Medicine,NHS LOGISTICS,1018142596,3.08,
Department of Health,Salisbury NHS Foundation Trust,31-Oct-17,TISSUES HAND TOWELS & TOILET PAPER,Medicine,NHS LOGISTICS,1018142596,2.48,
Department of Health,Salisbury NHS Foundation Trust,31-Oct-17,CLEANING MATERIALS PRODUCTS SUNDRIES,Medicine,NHS LOGISTICS,1018142596,5.53,
Department of Health,Salisbury NHS Foundation Trust,31-Oct-17,DRESSINGS - PRE STERILE,Medicine,NHS LOGISTICS,1018142596,16.33,
Department of Health,Salisbury NHS Foundation Trust,31-Oct-17,OTHER MEDICAL SUPPLIES,Medicine,NHS LOGISTICS,1018142596,1.88,
Department of Health,Salisbury NHS Foundation Trust,31-Oct-17,PATIENT APPLIANCES,Medicine,NHS LOGISTICS,1018142596,3.35,
Department of Health,Salisbury NHS Foundation Trust,31-Oct-17,MEDSURGCONS - OTHER,Medicine,NHS LOGISTICS,1018142596,59.78,
Department of Health,Salisbury NHS Foundation Trust,31-Oct-17,TISSUES HAND TOWELS & TOILET PAPER,Medicine,NHS LOGISTICS,1018142596,0.7,
Department of Health,Salisbury NHS Foundation Trust,31-Oct-17,MEDSURGCONS - OTHER,Medicine,NHS LOGISTICS,1018142596,4.88,
Department of Health,Salisbury NHS Foundation Trust,31-Oct-17,PATIENT APPLIANCES,Medicine,NHS LOGISTICS,1018142596,3.35,
Department of Health,Salisbury NHS Foundation Trust,31-Oct-17,PATIENT APPLIANCES,Medicine,NHS LOGISTICS,1018142596,3.35,
Department of Health,Salisbury NHS Foundation Trust,31-Oct-17,PATIENT APPLIANCES,Medicine,NHS LOGISTICS,1018142596,3.35,
Department of Health,Salisbury NHS Foundation Trust,31-Oct-17,PATIENT APPLIANCES,Medicine,NHS LOGISTICS,1018142596,4.39,
Department of Health,Salisbury NHS Foundation Trust,31-Oct-17,MED SURG EQUIP REP MAINT CLEANING,Clinical Support,NHS LOGISTICS,1018142596,112.05,
Department of Health,Salisbury NHS Foundation Trust,31-Oct-17,TISSUES HAND TOWELS & TOILET PAPER,Medicine,NHS LOGISTICS,1018142596,1.24,
Department of Health,Salisbury NHS Foundation Trust,31-Oct-17,DRESSINGS - PRE STERILE,Medicine,NHS LOGISTICS,1018142596,16.33,
Department of Health,Salisbury NHS Foundation Trust,31-Oct-17,DRESSINGS - PRE STERILE,Musculo-Skeletal,NHS LOGISTICS,1018142596,1.81,
Department of Health,Salisbury NHS Foundation Trust,31-Oct-17,DRESSINGS - PRE STERILE,Musculo-Skeletal,NHS LOGISTICS,1018142596,8.68,
Department of Health,Salisbury NHS Foundation Trust,31-Oct-17,TISSUES HAND TOWELS & TOILET PAPER,Musculo-Skeletal,NHS LOGISTICS,1018142596,2.48,
Department of Health,Salisbury NHS Foundation Trust,31-Oct-17,DRESSINGS - PRE STERILE,Musculo-Skeletal,NHS LOGISTICS,1018142596,9.39,
Department of Health,Salisbury NHS Foundation Trust,31-Oct-17,DRESSINGS - PRE STERILE,Musculo-Skeletal,NHS LOGISTICS,1018142596,2.68,
Department of Health,Salisbury NHS Foundation Trust,31-Oct-17,DISPOSABLE THEATRE DRAPES WIPES,Medicine,NHS LOGISTICS,1018142596,10.65,
Department of Health,Salisbury NHS Foundation Trust,31-Oct-17,SURGICAL INSTRUMENTS: GENERAL,Surgery,NHS LOGISTICS,1018142596,141.33,
Department of Health,Salisbury NHS Foundation Trust,31-Oct-17,SURGICAL INSTRUMENTS: GENERAL,Surgery,NHS LOGISTICS,1018142596,85.91,
Department of Health,Salisbury NHS Foundation Trust,31-Oct-17,BAGS SACKS - OTHER,Surgery,NHS LOGISTICS,1018142596,10.45,
Department of Health,Salisbury NHS Foundation Trust,31-Oct-17,DRESSINGS - PRE STERILE,Surgery,NHS LOGISTICS,1018142596,3.92,
Department of Health,Salisbury NHS Foundation Trust,31-Oct-17,DRESSINGS - PRE STERILE,Surgery,NHS LOGISTICS,1018142596,9.46,
Department of Health,Salisbury NHS Foundation Trust,31-Oct-17,DRESSINGS - PRE STERILE,Surgery,NHS LOGISTICS,1018142596,3.78,
Department of Health,Salisbury NHS Foundation Trust,31-Oct-17,MEDSURGCONS - OTHER,Surgery,NHS LOGISTICS,1018142596,19.53,
Department of Health,Salisbury NHS Foundation Trust,31-Oct-17,DRUGS,Surgery,NHS LOGISTICS,1018142596,54.9,
Department of Health,Salisbury NHS Foundation Trust,31-Oct-17,CLEANING MATERIALS PRODUCTS SUNDRIES,Surgery,NHS LOGISTICS,1018142596,2.3,
Department of Health,Salisbury NHS Foundation Trust,31-Oct-17,DRESSINGS - PRE STERILE,Musculo-Skeletal,NHS LOGISTICS,1018142596,81.82,
Department of Health,Salisbury NHS Foundation Trust,31-Oct-17,DRESSINGS - PRE STERILE,Musculo-Skeletal,NHS LOGISTICS,1018142596,135,
Department of Health,Salisbury NHS Foundation Trust,31-Oct-17,DRESSINGS - PRE STERILE,Musculo-Skeletal,NHS LOGISTICS,1018142596,151.82,
Department of Health,Salisbury NHS Foundation Trust,31-Oct-17,DRESSINGS - PRE STERILE,Musculo-Skeletal,NHS LOGISTICS,1018142596,179.68,
Department of Health,Salisbury NHS Foundation Trust,31-Oct-17,DISPOSABLE THEATRE DRAPES WIPES,Medicine,NHS LOGISTICS,1018142596,7.1,
Department of Health,Salisbury NHS Foundation Trust,31-Oct-17,OTHER MEDICAL SUPPLIES,Surgery,NHS LOGISTICS,1018142596,124.23,
Department of Health,Salisbury NHS Foundation Trust,31-Oct-17,OTHER MEDICAL SUPPLIES,Surgery,NHS LOGISTICS,1018142596,186.35,
Department of Health,Salisbury NHS Foundation Trust,31-Oct-17,OTHER MEDICAL SUPPLIES,Surgery,NHS LOGISTICS,1018142596,124.23,
Department of Health,Salisbury NHS Foundation Trust,31-Oct-17,PAPER ITEMS GENERAL STATIONERY SUNDRIES,Clinical Support,NHS LOGISTICS,1018142596,87.5,
Department of Health,Salisbury NHS Foundation Trust,31-Oct-17,PAPER ITEMS GENERAL STATIONERY SUNDRIES,Clinical Support,NHS LOGISTICS,1018142596,17.42,
Department of Health,Salisbury NHS Foundation Trust,31-Oct-17,PAPER ITEMS GENERAL STATIONERY SUNDRIES,Clinical Support,NHS LOGISTICS,1018142596,174.17,
Department of Health,Salisbury NHS Foundation Trust,31-Oct-17,PAPER ITEMS GENERAL STATIONERY SUNDRIES,Clinical Support,NHS LOGISTICS,1018142596,84.5,
Department of Health,Salisbury NHS Foundation Trust,31-Oct-17,PAPER ITEMS GENERAL STATIONERY SUNDRIES,Clinical Support,NHS LOGISTICS,1018142596,113.75,
Department of Health,Salisbury NHS Foundation Trust,31-Oct-17,MED SURG EQUIP REP MAINT CLEANING,Clinical Support,NHS LOGISTICS,1018142596,218.55,
Department of Health,Salisbury NHS Foundation Trust,31-Oct-17,TISSUES HAND TOWELS & TOILET PAPER,Clinical Support,NHS LOGISTICS,1018142596,2.48,
Department of Health,Salisbury NHS Foundation Trust,31-Oct-17,DRESSINGS - PRE STERILE,Clinical Support,NHS LOGISTICS,1018142596,16.33,
Department of Health,Salisbury NHS Foundation Trust,31-Oct-17,TISSUES HAND TOWELS & TOILET PAPER,Clinical Support,NHS LOGISTICS,1018142596,1.17,
Department of Health,Salisbury NHS Foundation Trust,31-Oct-17,OTHER MEDICAL SUPPLIES,Clinical Support,NHS LOGISTICS,1018142596,1.88,
Department of Health,Salisbury NHS Foundation Trust,31-Oct-17,DRESSINGS - PRE STERILE,Clinical Support,NHS LOGISTICS,1018142596,11.08,
Department of Health,Salisbury NHS Foundation Trust,31-Oct-17,OTHER MEDICAL SUPPLIES,Clinical Support,NHS LOGISTICS,1018142596,149.93,
Department of Health,Salisbury NHS Foundation Trust,31-Oct-17,SURGICAL INSTRUMENTS: GENERAL,Surgery,NHS LOGISTICS,1018142596,573.4,
Department of Health,Salisbury NHS Foundation Trust,31-Oct-17,SURGICAL INSTRUMENTS: GENERAL,Surgery,NHS LOGISTICS,1018142596,603.09,
Department of Health,Salisbury NHS Foundation Trust,31-Oct-17,ELECTRICAL EQUIPMENT x,Medicine,NHS LOGISTICS,1018142596,6.25,
Department of Health,Salisbury NHS Foundation Trust,31-Oct-17,M & S EQUIPELECTEQUIPINST - OTHER,Clinical Support,NHS LOGISTICS,1018142596,152.63,
Department of Health,Salisbury NHS Foundation Trust,31-Oct-17,MEDSURGCONS - OTHER,Clinical Support,NHS LOGISTICS,1018142596,4.88,
Department of Health,Salisbury NHS Foundation Trust,31-Oct-17,ANAESTHETIC EQUIPMENT ACCESSORIES,Clinical Support,NHS LOGISTICS,1018142596,2.6,
Department of Health,Salisbury NHS Foundation Trust,31-Oct-17,TUBES,Clinical Support,NHS LOGISTICS,1018142596,6.85,
Department of Health,Salisbury NHS Foundation Trust,31-Oct-17,DRESSINGS - PRE STERILE,Clinical Support,NHS LOGISTICS,1018142596,2.22,
Department of Health,Salisbury NHS Foundation Trust,31-Oct-17,NON DISPOSABLE BED LINEN,Clinical Support,NHS LOGISTICS,1018142596,11.83,
Department of Health,Salisbury NHS Foundation Trust,31-Oct-17,MISCELLANEOUS CONSUMABLE ITEMS,Clinical Support,NHS LOGISTICS,1018142596,24.01,
Department of Health,Salisbury NHS Foundation Trust,31-Oct-17,ANAESTHETIC EQUIPMENT ACCESSORIES,Musculo-Skeletal,NHS LOGISTICS,1018142596,37.83,
Department of Health,Salisbury NHS Foundation Trust,31-Oct-17,OTHER MEDICAL SUPPLIES,Clinical Support,NHS LOGISTICS,1018142596,1.88,
Department of Health,Salisbury NHS Foundation Trust,31-Oct-17,PATIENT APPLIANCES,Clinical Support,NHS LOGISTICS,1018142596,4.32,
Department of Health,Salisbury NHS Foundation Trust,31-Oct-17,ANAESTHETIC EQUIPMENT ACCESSORIES,Medicine,NHS LOGISTICS,1018142596,56.45,
Department of Health,Salisbury NHS Foundation Trust,31-Oct-17,DRESSINGS - PRE STERILE,Medicine,NHS LOGISTICS,1018142596,15.03,
Department of Health,Salisbury NHS Foundation Trust,31-Oct-17,TOILETRIES PERSONAL HYGIENE PRODUCTS,Medicine,NHS LOGISTICS,1018142596,9.25,
Department of Health,Salisbury NHS Foundation Trust,31-Oct-17,PATIENT APPLIANCES,Medicine,NHS LOGISTICS,1018142596,23.5,
Department of Health,Salisbury NHS Foundation Trust,31-Oct-17,DRESSINGS - PRE STERILE,Medicine,NHS LOGISTICS,1018142596,16.33,
Department of Health,Salisbury NHS Foundation Trust,31-Oct-17,MEDSURGCONS - OTHER,Medicine,NHS LOGISTICS,1018142596,4.88,
Department of Health,Salisbury NHS Foundation Trust,31-Oct-17,PATIENT APPLIANCES,Medicine,NHS LOGISTICS,1018142596,4.03,
Department of Health,Salisbury NHS Foundation Trust,31-Oct-17,PATIENT APPLIANCES,Medicine,NHS LOGISTICS,1018142596,4.03,
Department of Health,Salisbury NHS Foundation Trust,31-Oct-17,PATIENT APPLIANCES,Medicine,NHS LOGISTICS,1018142596,4.03,
Department of Health,Salisbury NHS Foundation Trust,31-Oct-17,OTHER MEDICAL SUPPLIES,Medicine,NHS LOGISTICS,1018142596,1.88,
Department of Health,Salisbury NHS Foundation Trust,31-Oct-17,DISPOSABLE THEATRE DRAPES WIPES,Medicine,NHS LOGISTICS,1018142596,7.1,
Department of Health,Salisbury NHS Foundation Trust,31-Oct-17,DRESSINGS - PRE STERILE,Medicine,NHS LOGISTICS,1018142596,12.8,
Department of Health,Salisbury NHS Foundation Trust,31-Oct-17,DENTAL SURGERY SUNDRIES,Musculo-Skeletal,NHS LOGISTICS,1018142596,8.1,
Department of Health,Salisbury NHS Foundation Trust,31-Oct-17,DRESSINGS - PRE STERILE,Clinical Support,NHS LOGISTICS,1018142596,154.05,
Department of Health,Salisbury NHS Foundation Trust,31-Oct-17,DRESSINGS - PRE STERILE,Clinical Support,NHS LOGISTICS,1018142596,113.42,
Department of Health,Salisbury NHS Foundation Trust,31-Oct-17,DRESSINGS - PRE STERILE,Clinical Support,NHS LOGISTICS,1018142596,36.52,
Department of Health,Salisbury NHS Foundation Trust,31-Oct-17,DRESSINGS - PRE STERILE,Clinical Support,NHS LOGISTICS,1018142596,11.73,
Department of Health,Salisbury NHS Foundation Trust,31-Oct-17,DRESSINGS - PRE STERILE,Clinical Support,NHS LOGISTICS,1018142596,52.42,
Department of Health,Salisbury NHS Foundation Trust,31-Oct-17,DRUGS,Clinical Support,NHS LOGISTICS,1018142596,46.75,
Department of Health,Salisbury NHS Foundation Trust,31-Oct-17,DRESSINGS - PRE STERILE,Clinical Support,NHS LOGISTICS,1018142596,177.63,
Department of Health,Salisbury NHS Foundation Trust,31-Oct-17,DRESSINGS - PRE STERILE,Clinical Support,NHS LOGISTICS,1018142596,28,
Department of Health,Salisbury NHS Foundation Trust,31-Oct-17,MEDSURGCONS - OTHER,Medicine,NHS LOGISTICS,1018142596,182.55,
Department of Health,Salisbury NHS Foundation Trust,31-Oct-17,FRUIT & VEGETABLES,Facilities,NHS LOGISTICS,1018142596,100.98,
Department of Health,Salisbury NHS Foundation Trust,31-Oct-17,FRUIT & VEGETABLES,Facilities,NHS LOGISTICS,1018142596,89.1,
Department of Health,Salisbury NHS Foundation Trust,31-Oct-17,BEVERAGES & AMBIENT FOOD,Facilities,NHS LOGISTICS,1018142596,3.07,
Department of Health,Salisbury NHS Foundation Trust,31-Oct-17,BEVERAGES & AMBIENT FOOD,Facilities,NHS LOGISTICS,1018142596,15,
Department of Health,Salisbury NHS Foundation Trust,31-Oct-17,BEVERAGES & AMBIENT FOOD,Facilities,NHS LOGISTICS,1018142596,3.5,
Department of Health,Salisbury NHS Foundation Trust,31-Oct-17,BEVERAGES & AMBIENT FOOD,Facilities,NHS LOGISTICS,1018142596,17.17,
Department of Health,Salisbury NHS Foundation Trust,31-Oct-17,BEVERAGES & AMBIENT FOOD,Facilities,NHS LOGISTICS,1018142596,3.07,
Department of Health,Salisbury NHS Foundation Trust,31-Oct-17,BEVERAGES & AMBIENT FOOD,Facilities,NHS LOGISTICS,1018142596,15,
Department of Health,Salisbury NHS Foundation Trust,31-Oct-17,MEDSURGCONS - OTHER,Surgery,NHS LOGISTICS,1018142596,9.6,
Department of Health,Salisbury NHS Foundation Trust,31-Oct-17,ANAESTHETIC EQUIPMENT ACCESSORIES,Surgery,NHS LOGISTICS,1018142596,56.45,
Department of Health,Salisbury NHS Foundation Trust,31-Oct-17,DISPOSABLE THEATRE DRAPES WIPES,Surgery,NHS LOGISTICS,1018142596,1.87,
Department of Health,Salisbury NHS Foundation Trust,31-Oct-17,BEVERAGES & AMBIENT FOOD,Surgery,NHS LOGISTICS,1018142596,10.81,
Department of Health,Salisbury NHS Foundation Trust,31-Oct-17,DRESSINGS - PRE STERILE,Surgery,NHS LOGISTICS,1018142596,17.98,
Department of Health,Salisbury NHS Foundation Trust,31-Oct-17,DRESSINGS - PRE STERILE,Surgery,NHS LOGISTICS,1018142596,16.33,
Department of Health,Salisbury NHS Foundation Trust,31-Oct-17,DRESSINGS - PRE STERILE,Surgery,NHS LOGISTICS,1018142596,16.95,
Department of Health,Salisbury NHS Foundation Trust,31-Oct-17,DISPOSABLE THEATRE DRAPES WIPES,Surgery,NHS LOGISTICS,1018142596,12,
Department of Health,Salisbury NHS Foundation Trust,31-Oct-17,SURGICAL INSTRUMENTS: GENERAL,Surgery,NHS LOGISTICS,1018142596,6,
Department of Health,Salisbury NHS Foundation Trust,31-Oct-17,DRUGS,Surgery,NHS LOGISTICS,1018142596,9.35,
Department of Health,Salisbury NHS Foundation Trust,31-Oct-17,OTHER MEDICAL SUPPLIES,Surgery,NHS LOGISTICS,1018142596,11.3,
Department of Health,Salisbury NHS Foundation Trust,31-Oct-17,MEDSURGCONS - OTHER,Surgery,NHS LOGISTICS,1018142596,10.24,
Department of Health,Salisbury NHS Foundation Trust,31-Oct-17,DRUGS,Surgery,NHS LOGISTICS,1018142596,16.85,
Department of Health,Salisbury NHS Foundation Trust,31-Oct-17,BEVERAGES & AMBIENT FOOD,Surgery,NHS LOGISTICS,1018142596,14.34,
Department of Health,Salisbury NHS Foundation Trust,31-Oct-17,BEVERAGES & AMBIENT FOOD,Surgery,NHS LOGISTICS,1018142596,0.87,
Department of Health,Salisbury NHS Foundation Trust,31-Oct-17,PATIENT APPLIANCES,Surgery,NHS LOGISTICS,1018142596,4.32,
Department of Health,Salisbury NHS Foundation Trust,31-Oct-17,OTHER MEDICAL SUPPLIES,Surgery,NHS LOGISTICS,1018142596,11.42,
Department of Health,Salisbury NHS Foundation Trust,31-Oct-17,OTHER MEDICAL SUPPLIES,Surgery,NHS LOGISTICS,1018142596,11.42,
Department of Health,Salisbury NHS Foundation Trust,31-Oct-17,DRESSINGS - PRE STERILE,Musculo-Skeletal,NHS LOGISTICS,1018142596,54.55,
Department of Health,Salisbury NHS Foundation Trust,31-Oct-17,DRESSINGS - PRE STERILE,Musculo-Skeletal,NHS LOGISTICS,1018142596,119.78,
Department of Health,Salisbury NHS Foundation Trust,31-Oct-17,SURGICAL INSTRUMENTS: GENERAL,Surgery,NHS LOGISTICS,1018142596,70.67,
Department of Health,Salisbury NHS Foundation Trust,31-Oct-17,DRUGS,Surgery,NHS LOGISTICS,1018142596,42.12,
Department of Health,Salisbury NHS Foundation Trust,31-Oct-17,MEDSURGCONS-LAPAROSCOPIC EQUIPMENT,Surgery,NHS LOGISTICS,1018142596,268.05,
Department of Health,Salisbury NHS Foundation Trust,31-Oct-17,M & S EQUIPELECTEQUIPINST - OTHER,Surgery,NHS LOGISTICS,1018142596,27.61,
Department of Health,Salisbury NHS Foundation Trust,31-Oct-17,LAB EQUIP-LABORATORY APPARATUS,Clinical Support,NHS LOGISTICS,1018142596,18.63,
Department of Health,Salisbury NHS Foundation Trust,31-Oct-17,LAB EQUIP-LABORATORY APPARATUS,Clinical Support,NHS LOGISTICS,1018142596,48.18,
Department of Health,Salisbury NHS Foundation Trust,31-Oct-17,BEVERAGES & AMBIENT FOOD,Facilities,NHS LOGISTICS,1018142596,17.68,
Department of Health,Salisbury NHS Foundation Trust,31-Oct-17,MEDSURGCONS - OTHER,Musculo-Skeletal,NHS LOGISTICS,1018142596,293.39,
Department of Health,Salisbury NHS Foundation Trust,31-Oct-17,TISSUES HAND TOWELS & TOILET PAPER,Clinical Support,NHS LOGISTICS,1018142596,3.72,
Department of Health,Salisbury NHS Foundation Trust,31-Oct-17,TISSUES HAND TOWELS & TOILET PAPER,Clinical Support,NHS LOGISTICS,1018142596,10.65,
Department of Health,Salisbury NHS Foundation Trust,31-Oct-17,ADULTS HEARING AIDS,Surgery,NHS LOGISTICS,1018142596,1067.83,
Department of Health,Salisbury NHS Foundation Trust,31-Oct-17,ADULTS HEARING AIDS,Surgery,NHS LOGISTICS,1018142596,2669.58,
Department of Health,Salisbury NHS Foundation Trust,31-Oct-17,MEDSURGCONS - OTHER,Medicine,NHS LOGISTICS,1018142596,5877.6,
Department of Health,Salisbury NHS Foundation Trust,31-Oct-17,MEDSURGCONS - OTHER,Medicine,NHS LOGISTICS,1018142596,5877.6,
Department of Health,Salisbury NHS Foundation Trust,31-Oct-17,MEDSURGCONS - OTHER,Medicine,NHS LOGISTICS,1018142596,5877.6,
Department of Health,Salisbury NHS Foundation Trust,31-Oct-17,ADULTS HEARING AIDS,Surgery,NHS LOGISTICS,1018142596,707.5,
Department of Health,Salisbury NHS Foundation Trust,31-Oct-17,LAB EQUIP-LABORATORY APPARATUS,Clinical Support,NHS LOGISTICS,1018142596,64.08,
Department of Health,Salisbury NHS Foundation Trust,31-Oct-17,TUBES,Surgery,NHS LOGISTICS,1018142596,6.85,
Department of Health,Salisbury NHS Foundation Trust,31-Oct-17,OTHER MEDICAL SUPPLIES,Surgery,NHS LOGISTICS,1018142596,9.42,
Department of Health,Salisbury NHS Foundation Trust,31-Oct-17,MEDSURGCONS - OTHER,Surgery,NHS LOGISTICS,1018142596,59.78,
Department of Health,Salisbury NHS Foundation Trust,31-Oct-17,TISSUES HAND TOWELS & TOILET PAPER,Surgery,NHS LOGISTICS,1018142596,1.4,
Department of Health,Salisbury NHS Foundation Trust,31-Oct-17,DISPOSABLE THEATRE DRAPES WIPES,Surgery,NHS LOGISTICS,1018142596,7.1,
Department of Health,Salisbury NHS Foundation Trust,31-Oct-17,DRESSINGS - PRE STERILE,Surgery,NHS LOGISTICS,1018142596,4.98,
Department of Health,Salisbury NHS Foundation Trust,31-Oct-17,OTHER MEDICAL SUPPLIES,Surgery,NHS LOGISTICS,1018142596,3.77,
Department of Health,Salisbury NHS Foundation Trust,31-Oct-17,TISSUES HAND TOWELS & TOILET PAPER,Surgery,NHS LOGISTICS,1018142596,1.4,
Department of Health,Salisbury NHS Foundation Trust,31-Oct-17,DRESSINGS - PRE STERILE,Surgery,NHS LOGISTICS,1018142596,45.5,
Department of Health,Salisbury NHS Foundation Trust,31-Oct-17,DRESSINGS - PRE STERILE,Surgery,NHS LOGISTICS,1018142596,14.75,
Department of Health,Salisbury NHS Foundation Trust,31-Oct-17,M & S EQUIPELECTEQUIPINST - OTHER,Medicine,NHS LOGISTICS,1018142596,160.12,
Department of Health,Salisbury NHS Foundation Trust,31-Oct-17,CLEANING MATERIALS PRODUCTS SUNDRIES,Medicine,NHS LOGISTICS,1018142596,5.53,
Department of Health,Salisbury NHS Foundation Trust,31-Oct-17,DRESSINGS - PRE STERILE,Medicine,NHS LOGISTICS,1018142596,5.73,
Department of Health,Salisbury NHS Foundation Trust,31-Oct-17,OTHER MEDICAL SUPPLIES,Medicine,NHS LOGISTICS,1018142596,5.65,
Department of Health,Salisbury NHS Foundation Trust,31-Oct-17,PATIENT APPLIANCES,Medicine,NHS LOGISTICS,1018142596,3.35,
Department of Health,Salisbury NHS Foundation Trust,31-Oct-17,PATIENT APPLIANCES,Medicine,NHS LOGISTICS,1018142596,6.7,
Department of Health,Salisbury NHS Foundation Trust,31-Oct-17,TISSUES HAND TOWELS & TOILET PAPER,Medicine,NHS LOGISTICS,1018142596,1.05,
Department of Health,Salisbury NHS Foundation Trust,31-Oct-17,DISPOSABLE THEATRE DRAPES WIPES,Medicine,NHS LOGISTICS,1018142596,7.1,
Department of Health,Salisbury NHS Foundation Trust,31-Oct-17,DISPOSABLE THEATRE DRAPES WIPES,Medicine,NHS LOGISTICS,1018142596,7.7,
Department of Health,Salisbury NHS Foundation Trust,31-Oct-17,DRESSINGS - PRE STERILE,Medicine,NHS LOGISTICS,1018142596,16.33,
Department of Health,Salisbury NHS Foundation Trust,31-Oct-17,TUBES,Medicine,NHS LOGISTICS,1018142596,6.85,
Department of Health,Salisbury NHS Foundation Trust,31-Oct-17,NON DISPOSABLE BED LINEN,Medicine,NHS LOGISTICS,1018142596,52.75,
Department of Health,Salisbury NHS Foundation Trust,31-Oct-17,OTHER MEDICAL SUPPLIES,Medicine,NHS LOGISTICS,1018142596,11.15,
Department of Health,Salisbury NHS Foundation Trust,31-Oct-17,OTHER MEDICAL SUPPLIES,Medicine,NHS LOGISTICS,1018142596,1.88,
Department of Health,Salisbury NHS Foundation Trust,31-Oct-17,MEDSURGCONS - OTHER,Medicine,NHS LOGISTICS,1018142596,59.78,
Department of Health,Salisbury NHS Foundation Trust,31-Oct-17,TISSUES HAND TOWELS & TOILET PAPER,Medicine,NHS LOGISTICS,1018142596,0.7,
Department of Health,Salisbury NHS Foundation Trust,31-Oct-17,MED SURG EQUIP REP MAINT CLEANING,Medicine,NHS LOGISTICS,1018142596,74.7,
Department of Health,Salisbury NHS Foundation Trust,31-Oct-17,MED SURG EQUIP REP MAINT CLEANING,Medicine,NHS LOGISTICS,1018142596,10.97,
Department of Health,Salisbury NHS Foundation Trust,31-Oct-17,DRESSINGS - PRE STERILE,Medicine,NHS LOGISTICS,1018142596,4.98,
Department of Health,Salisbury NHS Foundation Trust,31-Oct-17,TUBES,Medicine,NHS LOGISTICS,1018142596,6.85,
Department of Health,Salisbury NHS Foundation Trust,31-Oct-17,SURGICAL INSTRUMENTS: GENERAL,Medicine,NHS LOGISTICS,1018142596,9.83,
Department of Health,Salisbury NHS Foundation Trust,31-Oct-17,OTHER MEDICAL SUPPLIES,Medicine,NHS LOGISTICS,1018142596,5.65,
Department of Health,Salisbury NHS Foundation Trust,31-Oct-17,PATIENT APPLIANCES,Medicine,NHS LOGISTICS,1018142596,4.39,
Department of Health,Salisbury NHS Foundation Trust,31-Oct-17,TISSUES HAND TOWELS & TOILET PAPER,Medicine,NHS LOGISTICS,1018142596,0.35,
Department of Health,Salisbury NHS Foundation Trust,31-Oct-17,DISPOSABLE THEATRE DRAPES WIPES,Medicine,NHS LOGISTICS,1018142596,3.55,
Department of Health,Salisbury NHS Foundation Trust,31-Oct-17,MEDSURGCONS - OTHER,Medicine,NHS LOGISTICS,1018142596,6.1,
Department of Health,Salisbury NHS Foundation Trust,31-Oct-17,DRESSINGS - PRE STERILE,Medicine,NHS LOGISTICS,1018142596,18.37,
Department of Health,Salisbury NHS Foundation Trust,31-Oct-17,ELECTRICAL EQUIPMENT x,Surgery,NHS LOGISTICS,1018142596,3.68,
Department of Health,Salisbury NHS Foundation Trust,31-Oct-17,MEDSURGCONS - OTHER,Surgery,NHS LOGISTICS,1018142596,29,
Department of Health,Salisbury NHS Foundation Trust,31-Oct-17,DRESSINGS - PRE STERILE,Surgery,NHS LOGISTICS,1018142596,32.67,
Department of Health,Salisbury NHS Foundation Trust,31-Oct-17,ANAESTHETIC EQUIPMENT ACCESSORIES,Surgery,NHS LOGISTICS,1018142596,1.95,
Department of Health,Salisbury NHS Foundation Trust,31-Oct-17,OTHER MEDICAL SUPPLIES,Surgery,NHS LOGISTICS,1018142596,18.83,
Department of Health,Salisbury NHS Foundation Trust,31-Oct-17,OTHER MEDICAL SUPPLIES,Surgery,NHS LOGISTICS,1018142596,22.33,
Department of Health,Salisbury NHS Foundation Trust,31-Oct-17,OTHER MEDICAL SUPPLIES,Surgery,NHS LOGISTICS,1018142596,22.33,
Department of Health,Salisbury NHS Foundation Trust,31-Oct-17,DRESSINGS - PRE STERILE,Surgery,NHS LOGISTICS,1018142596,4.98,
Department of Health,Salisbury NHS Foundation Trust,31-Oct-17,MEDSURGCONS - OTHER,Surgery,NHS LOGISTICS,1018142596,17.13,
Department of Health,Salisbury NHS Foundation Trust,31-Oct-17,OTHER MEDICAL SUPPLIES,Surgery,NHS LOGISTICS,1018142596,58.78,
Department of Health,Salisbury NHS Foundation Trust,31-Oct-17,OTHER MEDICAL SUPPLIES,Surgery,NHS LOGISTICS,1018142596,58.78,
Department of Health,Salisbury NHS Foundation Trust,31-Oct-17,OTHER MEDICAL SUPPLIES,Surgery,NHS LOGISTICS,1018142596,58.78,
Department of Health,Salisbury NHS Foundation Trust,31-Oct-17,OTHER MEDICAL SUPPLIES,Surgery,NHS LOGISTICS,1018142596,7.53,
Department of Health,Salisbury NHS Foundation Trust,31-Oct-17,DISPOSABLE THEATRE DRAPES WIPES,Surgery,NHS LOGISTICS,1018142596,7.1,
Department of Health,Salisbury NHS Foundation Trust,31-Oct-17,DRESSINGS - PRE STERILE,Medicine,NHS LOGISTICS,1018142596,15.03,
Department of Health,Salisbury NHS Foundation Trust,31-Oct-17,DRESSINGS - PRE STERILE,Medicine,NHS LOGISTICS,1018142596,16.33,
Department of Health,Salisbury NHS Foundation Trust,31-Oct-17,DRESSINGS - PRE STERILE,Medicine,NHS LOGISTICS,1018142596,16.95,
Department of Health,Salisbury NHS Foundation Trust,31-Oct-17,MEDSURGCONS - OTHER,Medicine,NHS LOGISTICS,1018142596,4.88,
Department of Health,Salisbury NHS Foundation Trust,31-Oct-17,TUBES,Medicine,NHS LOGISTICS,1018142596,6.85,
Department of Health,Salisbury NHS Foundation Trust,31-Oct-17,SURGICAL INSTRUMENTS: GENERAL,Medicine,NHS LOGISTICS,1018142596,9.83,
Department of Health,Salisbury NHS Foundation Trust,31-Oct-17,DRESSINGS - PRE STERILE,Medicine,NHS LOGISTICS,1018142596,24.81,
Department of Health,Salisbury NHS Foundation Trust,31-Oct-17,OTHER MEDICAL SUPPLIES,Medicine,NHS LOGISTICS,1018142596,6.84,
Department of Health,Salisbury NHS Foundation Trust,31-Oct-17,PATIENT APPLIANCES,Medicine,NHS LOGISTICS,1018142596,3.35,
Department of Health,Salisbury NHS Foundation Trust,31-Oct-17,PATIENT APPLIANCES,Medicine,NHS LOGISTICS,1018142596,3.35,
Department of Health,Salisbury NHS Foundation Trust,31-Oct-17,PATIENT APPLIANCES,Medicine,NHS LOGISTICS,1018142596,3.35,
Department of Health,Salisbury NHS Foundation Trust,31-Oct-17,SERVICES FROM NHS BODIES,Medicine,NHS LOGISTICS,1018142596,4.44,
Department of Health,Salisbury NHS Foundation Trust,31-Oct-17,DISPOSABLE THEATRE DRAPES WIPES,Medicine,NHS LOGISTICS,1018142596,3.55,
Department of Health,Salisbury NHS Foundation Trust,31-Oct-17,MEDSURGCONS - OTHER,Clinical Support,NHS LOGISTICS,1018142596,482.24,
Department of Health,Salisbury NHS Foundation Trust,31-Oct-17,MEDSURGCONS - OTHER,Clinical Support,NHS LOGISTICS,1018142596,482.24,
Department of Health,Salisbury NHS Foundation Trust,31-Oct-17,PATIENT APPLIANCES,Clinical Support,NHS LOGISTICS,1018142596,1.11,
Department of Health,Salisbury NHS Foundation Trust,31-Oct-17,DRESSINGS - PRE STERILE,Clinical Support,NHS LOGISTICS,1018142596,0.75,
Department of Health,Salisbury NHS Foundation Trust,31-Oct-17,TISSUES HAND TOWELS & TOILET PAPER,Clinical Support,NHS LOGISTICS,1018142596,3.72,
Department of Health,Salisbury NHS Foundation Trust,31-Oct-17,DRESSINGS - PRE STERILE,Clinical Support,NHS LOGISTICS,1018142596,7.97,
Department of Health,Salisbury NHS Foundation Trust,31-Oct-17,MEDSURGCONS - OTHER,Clinical Support,NHS LOGISTICS,1018142596,2.5,
Department of Health,Salisbury NHS Foundation Trust,31-Oct-17,MEDSURGCONS - OTHER,Clinical Support,NHS LOGISTICS,1018142596,1.57,
Department of Health,Salisbury NHS Foundation Trust,31-Oct-17,MEDSURGCONS - OTHER,Clinical Support,NHS LOGISTICS,1018142596,8.57,
Department of Health,Salisbury NHS Foundation Trust,31-Oct-17,OTHER MEDICAL SUPPLIES,Clinical Support,NHS LOGISTICS,1018142596,11.3,
Department of Health,Salisbury NHS Foundation Trust,31-Oct-17,MEDSURGCONS - OTHER,Clinical Support,NHS LOGISTICS,1018142596,13.29,
Department of Health,Salisbury NHS Foundation Trust,31-Oct-17,MEDSURGCONS - OTHER,Clinical Support,NHS LOGISTICS,1018142596,4.85,
Department of Health,Salisbury NHS Foundation Trust,31-Oct-17,BABY TEXTURE MODIFIED FOODS,Clinical Support,NHS LOGISTICS,1018142596,16.53,
Department of Health,Salisbury NHS Foundation Trust,31-Oct-17,M & S EQUIPELECTEQUIPINST - OTHER,Clinical Support,NHS LOGISTICS,1018142596,1.47,
Department of Health,Salisbury NHS Foundation Trust,31-Oct-17,DISPOSABLE THEATRE DRAPES WIPES,Clinical Support,NHS LOGISTICS,1018142596,7.1,
Department of Health,Salisbury NHS Foundation Trust,31-Oct-17,HEALTHCARE - WEAR,Clinical Support,NHS LOGISTICS,1018142596,127.8,
Department of Health,Salisbury NHS Foundation Trust,31-Oct-17,HEALTHCARE - WEAR,Clinical Support,NHS LOGISTICS,1018142596,174.25,
Department of Health,Salisbury NHS Foundation Trust,31-Oct-17,TISSUES HAND TOWELS & TOILET PAPER,Musculo-Skeletal,NHS LOGISTICS,1018142596,3.72,
Department of Health,Salisbury NHS Foundation Trust,31-Oct-17,TISSUES HAND TOWELS & TOILET PAPER,Musculo-Skeletal,NHS LOGISTICS,1018142596,10.65,
Department of Health,Salisbury NHS Foundation Trust,31-Oct-17,DRESSINGS - PRE STERILE,Musculo-Skeletal,NHS LOGISTICS,1018142596,79.13,
Department of Health,Salisbury NHS Foundation Trust,31-Oct-17,DRESSINGS - PRE STERILE,Musculo-Skeletal,NHS LOGISTICS,1018142596,16.33,
Department of Health,Salisbury NHS Foundation Trust,31-Oct-17,DRESSINGS - PRE STERILE,Musculo-Skeletal,NHS LOGISTICS,1018142596,5.73,
Department of Health,Salisbury NHS Foundation Trust,31-Oct-17,DRESSINGS - PRE STERILE,Musculo-Skeletal,NHS LOGISTICS,1018142596,22.48,
Department of Health,Salisbury NHS Foundation Trust,31-Oct-17,DRESSINGS - PRE STERILE,Musculo-Skeletal,NHS LOGISTICS,1018142596,8.71,
Department of Health,Salisbury NHS Foundation Trust,31-Oct-17,DRESSINGS - PRE STERILE,Musculo-Skeletal,NHS LOGISTICS,1018142596,34.88,
Department of Health,Salisbury NHS Foundation Trust,31-Oct-17,DRESSINGS - PRE STERILE,Musculo-Skeletal,NHS LOGISTICS,1018142596,12.06,
Department of Health,Salisbury NHS Foundation Trust,31-Oct-17,OTHER MEDICAL SUPPLIES,Musculo-Skeletal,NHS LOGISTICS,1018142596,7.53,
Department of Health,Salisbury NHS Foundation Trust,31-Oct-17,PATIENT APPLIANCES,Musculo-Skeletal,NHS LOGISTICS,1018142596,3.35,
Department of Health,Salisbury NHS Foundation Trust,31-Oct-17,PATIENT APPLIANCES,Musculo-Skeletal,NHS LOGISTICS,1018142596,4.39,
Department of Health,Salisbury NHS Foundation Trust,31-Oct-17,TOILETRIES PERSONAL HYGIENE PRODUCTS,Musculo-Skeletal,NHS LOGISTICS,1018142596,4.13,
Department of Health,Salisbury NHS Foundation Trust,31-Oct-17,DISPOSABLE THEATRE DRAPES WIPES,Musculo-Skeletal,NHS LOGISTICS,1018142596,14.2,
Department of Health,Salisbury NHS Foundation Trust,31-Oct-17,TISSUES HAND TOWELS & TOILET PAPER,Musculo-Skeletal,NHS LOGISTICS,1018142596,2.48,
Department of Health,Salisbury NHS Foundation Trust,31-Oct-17,OTHER MEDICAL SUPPLIES,Musculo-Skeletal,NHS LOGISTICS,1018142596,1.88,
Department of Health,Salisbury NHS Foundation Trust,31-Oct-17,SERVICES FROM NHS BODIES,Musculo-Skeletal,NHS LOGISTICS,1018142596,4.44,
Department of Health,Salisbury NHS Foundation Trust,31-Oct-17,DISPOSABLE THEATRE DRAPES WIPES,Musculo-Skeletal,NHS LOGISTICS,1018142596,3.55,
Department of Health,Salisbury NHS Foundation Trust,31-Oct-17,MEDSURGCONS - OTHER,Surgery,NHS LOGISTICS,1018142596,20.48,
Department of Health,Salisbury NHS Foundation Trust,31-Oct-17,MEDSURGCONS - OTHER,Surgery,NHS LOGISTICS,1018142596,20.48,
Department of Health,Salisbury NHS Foundation Trust,31-Oct-17,MEDSURGCONS - OTHER,Surgery,NHS LOGISTICS,1018142596,20.48,
Department of Health,Salisbury NHS Foundation Trust,31-Oct-17,MED SURG EQUIP REP MAINT CLEANING,Clinical Support,NHS LOGISTICS,1018142596,218.55,
Department of Health,Salisbury NHS Foundation Trust,31-Oct-17,M & S EQUIPELECTEQUIPINST - OTHER,Clinical Support,NHS LOGISTICS,1018142596,169.79,
Department of Health,Salisbury NHS Foundation Trust,31-Oct-17,M & S EQUIPELECTEQUIPINST - OTHER,Clinical Support,NHS LOGISTICS,1018142596,128.87,
Department of Health,Salisbury NHS Foundation Trust,31-Oct-17,TISSUES HAND TOWELS & TOILET PAPER,Clinical Support,NHS LOGISTICS,1018142596,2.48,
Department of Health,Salisbury NHS Foundation Trust,31-Oct-17,TISSUES HAND TOWELS & TOILET PAPER,Clinical Support,NHS LOGISTICS,1018142596,0.78,
Department of Health,Salisbury NHS Foundation Trust,31-Oct-17,HEALTHCARE - WEAR,Clinical Support,NHS LOGISTICS,1018142596,31.95,
Department of Health,Salisbury NHS Foundation Trust,31-Oct-17,OTHER MEDICAL SUPPLIES,Clinical Support,NHS LOGISTICS,1018142596,6.84,
Department of Health,Salisbury NHS Foundation Trust,31-Oct-17,OTHER MEDICAL SUPPLIES,Clinical Support,NHS LOGISTICS,1018142596,74.97,
Department of Health,Salisbury NHS Foundation Trust,31-Oct-17,DISPOSABLE THEATRE DRAPES WIPES,Clinical Support,NHS LOGISTICS,1018142596,3.55,
Department of Health,Salisbury NHS Foundation Trust,31-Oct-17,MEDSURGCONS - OTHER,Clinical Support,NHS LOGISTICS,1018142596,15.33,
Department of Health,Salisbury NHS Foundation Trust,31-Oct-17,DISPOSABLE THEATRE DRAPES WIPES,Clinical Support,NHS LOGISTICS,1018142596,3.55,
Department of Health,Salisbury NHS Foundation Trust,31-Oct-17,TOILETRIES PERSONAL HYGIENE PRODUCTS,Musculo-Skeletal,NHS LOGISTICS,1018142596,1.54,
Department of Health,Salisbury NHS Foundation Trust,31-Oct-17,PATIENT APPLIANCES,Musculo-Skeletal,NHS LOGISTICS,1018142596,21.37,
Department of Health,Salisbury NHS Foundation Trust,31-Oct-17,PATIENT APPLIANCES,Musculo-Skeletal,NHS LOGISTICS,1018142596,21.37,
Department of Health,Salisbury NHS Foundation Trust,31-Oct-17,TISSUES HAND TOWELS & TOILET PAPER,Musculo-Skeletal,NHS LOGISTICS,1018142596,0.39,
Department of Health,Salisbury NHS Foundation Trust,31-Oct-17,OTHER MEDICAL SUPPLIES,Musculo-Skeletal,NHS LOGISTICS,1018142596,1.88,
Department of Health,Salisbury NHS Foundation Trust,31-Oct-17,DRESSINGS - PRE STERILE,Surgery,NHS LOGISTICS,1018142596,41.63,
Department of Health,Salisbury NHS Foundation Trust,31-Oct-17,DRESSINGS - PRE STERILE,Surgery,NHS LOGISTICS,1018142596,3.92,
Department of Health,Salisbury NHS Foundation Trust,31-Oct-17,TISSUES HAND TOWELS & TOILET PAPER,Surgery,NHS LOGISTICS,1018142596,1.85,
Department of Health,Salisbury NHS Foundation Trust,31-Oct-17,TISSUES HAND TOWELS & TOILET PAPER,Surgery,NHS LOGISTICS,1018142596,4.97,
Department of Health,Salisbury NHS Foundation Trust,31-Oct-17,MEDSURGCONS - OTHER,Surgery,NHS LOGISTICS,1018142596,4.88,
Department of Health,Salisbury NHS Foundation Trust,31-Oct-17,TISSUES HAND TOWELS & TOILET PAPER,Surgery,NHS LOGISTICS,1018142596,0.39,
Department of Health,Salisbury NHS Foundation Trust,31-Oct-17,DRESSINGS - PRE STERILE,Surgery,NHS LOGISTICS,1018142596,6.04,
Department of Health,Salisbury NHS Foundation Trust,31-Oct-17,DRESSINGS - PRE STERILE,Musculo-Skeletal,NHS LOGISTICS,1018142596,62.42,
Department of Health,Salisbury NHS Foundation Trust,31-Oct-17,PATIENTS BABY WEAR,Medicine,NHS LOGISTICS,1018142596,16.07,
Department of Health,Salisbury NHS Foundation Trust,31-Oct-17,PATIENTS BABY WEAR,Medicine,NHS LOGISTICS,1018142596,14.9,
Department of Health,Salisbury NHS Foundation Trust,31-Oct-17,CLEANING MATERIALS PRODUCTS SUNDRIES,Medicine,NHS LOGISTICS,1018142596,5.53,
Department of Health,Salisbury NHS Foundation Trust,31-Oct-17,MEDSURGCONS - OTHER,Medicine,NHS LOGISTICS,1018142596,4.88,
Department of Health,Salisbury NHS Foundation Trust,31-Oct-17,TUBES,Medicine,NHS LOGISTICS,1018142596,6.85,
Department of Health,Salisbury NHS Foundation Trust,31-Oct-17,HEALTHCARE - WEAR,Medicine,NHS LOGISTICS,1018142596,31.95,
Department of Health,Salisbury NHS Foundation Trust,31-Oct-17,PATIENT APPLIANCES,Medicine,NHS LOGISTICS,1018142596,3.35,
Department of Health,Salisbury NHS Foundation Trust,31-Oct-17,DISPOSABLE THEATRE DRAPES WIPES,Medicine,NHS LOGISTICS,1018142596,3.55,
Department of Health,Salisbury NHS Foundation Trust,31-Oct-17,TISSUES HAND TOWELS & TOILET PAPER,Surgery,NHS LOGISTICS,1018142596,1.24,
Department of Health,Salisbury NHS Foundation Trust,31-Oct-17,TISSUES HAND TOWELS & TOILET PAPER,Surgery,NHS LOGISTICS,1018142596,1.17,
Department of Health,Salisbury NHS Foundation Trust,31-Oct-17,ELECTRICAL EQUIPMENT x,Medicine,NHS LOGISTICS,1018142596,3.87,
Department of Health,Salisbury NHS Foundation Trust,31-Oct-17,TISSUES HAND TOWELS & TOILET PAPER,Medicine,NHS LOGISTICS,1018142596,10.65,
Department of Health,Salisbury NHS Foundation Trust,31-Oct-17,DRESSINGS - PRE STERILE,Medicine,NHS LOGISTICS,1018142596,32.67,
Department of Health,Salisbury NHS Foundation Trust,31-Oct-17,DRESSINGS - PRE STERILE,Medicine,NHS LOGISTICS,1018142596,4.98,
Department of Health,Salisbury NHS Foundation Trust,31-Oct-17,ANAESTHETIC EQUIPMENT ACCESSORIES,Medicine,NHS LOGISTICS,1018142596,1.25,
Department of Health,Salisbury NHS Foundation Trust,31-Oct-17,OTHER MEDICAL SUPPLIES,Medicine,NHS LOGISTICS,1018142596,3.77,
Department of Health,Salisbury NHS Foundation Trust,31-Oct-17,OTHER MEDICAL SUPPLIES,Medicine,NHS LOGISTICS,1018142596,5.93,
Department of Health,Salisbury NHS Foundation Trust,31-Oct-17,TISSUES HAND TOWELS & TOILET PAPER,Medicine,NHS LOGISTICS,1018142596,0.35,
Department of Health,Salisbury NHS Foundation Trust,31-Oct-17,DISPOSABLE THEATRE DRAPES WIPES,Medicine,NHS LOGISTICS,1018142596,3.95,
Department of Health,Salisbury NHS Foundation Trust,31-Oct-17,DRESSINGS - PRE STERILE,Musculo-Skeletal,NHS LOGISTICS,1018142596,7.02,
Department of Health,Salisbury NHS Foundation Trust,31-Oct-17,DRESSINGS - PRE STERILE,Musculo-Skeletal,NHS LOGISTICS,1018142596,9.88,
Department of Health,Salisbury NHS Foundation Trust,31-Oct-17,TISSUES HAND TOWELS & TOILET PAPER,Musculo-Skeletal,NHS LOGISTICS,1018142596,1.24,
Department of Health,Salisbury NHS Foundation Trust,31-Oct-17,DISPOSABLE BED LINEN,Musculo-Skeletal,NHS LOGISTICS,1018142596,21.42,
Department of Health,Salisbury NHS Foundation Trust,31-Oct-17,DRESSINGS - PRE STERILE,Musculo-Skeletal,NHS LOGISTICS,1018142596,5.98,
Department of Health,Salisbury NHS Foundation Trust,31-Oct-17,DRESSINGS - PRE STERILE,Musculo-Skeletal,NHS LOGISTICS,1018142596,30.03,
Department of Health,Salisbury NHS Foundation Trust,31-Oct-17,DRESSINGS - PRE STERILE,Musculo-Skeletal,NHS LOGISTICS,1018142596,27.86,
Department of Health,Salisbury NHS Foundation Trust,31-Oct-17,DRESSINGS - PRE STERILE,Musculo-Skeletal,NHS LOGISTICS,1018142596,23.28,
Department of Health,Salisbury NHS Foundation Trust,31-Oct-17,DRESSINGS - PRE STERILE,Musculo-Skeletal,NHS LOGISTICS,1018142596,23.28,
Department of Health,Salisbury NHS Foundation Trust,31-Oct-17,DRESSINGS - PRE STERILE,Musculo-Skeletal,NHS LOGISTICS,1018142596,25.03,
Department of Health,Salisbury NHS Foundation Trust,31-Oct-17,DRESSINGS - PRE STERILE,Musculo-Skeletal,NHS LOGISTICS,1018142596,25.03,
Department of Health,Salisbury NHS Foundation Trust,31-Oct-17,DRESSINGS - PRE STERILE,Musculo-Skeletal,NHS LOGISTICS,1018142596,10.28,
Department of Health,Salisbury NHS Foundation Trust,31-Oct-17,DRUGS,Musculo-Skeletal,NHS LOGISTICS,1018142596,5.9,
Department of Health,Salisbury NHS Foundation Trust,31-Oct-17,DRESSINGS - PRE STERILE,Musculo-Skeletal,NHS LOGISTICS,1018142596,7.63,
Department of Health,Salisbury NHS Foundation Trust,31-Oct-17,DRESSINGS - PRE STERILE,Musculo-Skeletal,NHS LOGISTICS,1018142596,15.27,
Department of Health,Salisbury NHS Foundation Trust,31-Oct-17,DRESSINGS - PRE STERILE,Musculo-Skeletal,NHS LOGISTICS,1018142596,20.68,
Department of Health,Salisbury NHS Foundation Trust,31-Oct-17,DRESSINGS - PRE STERILE,Musculo-Skeletal,NHS LOGISTICS,1018142596,20.68,
Department of Health,Salisbury NHS Foundation Trust,31-Oct-17,DRESSINGS - PRE STERILE,Medicine,NHS LOGISTICS,1018142596,69.28,
Department of Health,Salisbury NHS Foundation Trust,31-Oct-17,DRESSINGS - PRE STERILE,Medicine,NHS LOGISTICS,1018142596,11.92,
Department of Health,Salisbury NHS Foundation Trust,31-Oct-17,PATIENT APPLIANCES,Medicine,NHS LOGISTICS,1018142596,58.75,
Department of Health,Salisbury NHS Foundation Trust,31-Oct-17,DRESSINGS - PRE STERILE,Medicine,NHS LOGISTICS,1018142596,16.33,
Department of Health,Salisbury NHS Foundation Trust,31-Oct-17,TUBES,Medicine,NHS LOGISTICS,1018142596,6.85,
Department of Health,Salisbury NHS Foundation Trust,31-Oct-17,MEDSURGCONS - OTHER,Medicine,NHS LOGISTICS,1018142596,0.39,
Department of Health,Salisbury NHS Foundation Trust,31-Oct-17,PATIENT APPLIANCES,Medicine,NHS LOGISTICS,1018142596,8.05,
Department of Health,Salisbury NHS Foundation Trust,31-Oct-17,PATIENT APPLIANCES,Medicine,NHS LOGISTICS,1018142596,8.05,
Department of Health,Salisbury NHS Foundation Trust,31-Oct-17,PATIENT APPLIANCES,Medicine,NHS LOGISTICS,1018142596,4.03,
Department of Health,Salisbury NHS Foundation Trust,31-Oct-17,PATIENT APPLIANCES,Medicine,NHS LOGISTICS,1018142596,4.03,
Department of Health,Salisbury NHS Foundation Trust,31-Oct-17,OTHER MEDICAL SUPPLIES,Medicine,NHS LOGISTICS,1018142596,1.88,
Department of Health,Salisbury NHS Foundation Trust,31-Oct-17,SERVICES FROM NHS BODIES,Medicine,NHS LOGISTICS,1018142596,4.44,
Department of Health,Salisbury NHS Foundation Trust,31-Oct-17,MEDSURGCONS - OTHER,Medicine,NHS LOGISTICS,1018142596,59.78,
Department of Health,Salisbury NHS Foundation Trust,31-Oct-17,MEDSURGCONS - OTHER,Medicine,NHS LOGISTICS,1018142596,5.32,
Department of Health,Salisbury NHS Foundation Trust,31-Oct-17,DISPOSABLE THEATRE DRAPES WIPES,Medicine,NHS LOGISTICS,1018142596,7.1,
Department of Health,Salisbury NHS Foundation Trust,31-Oct-17,BAGS SACKS - OTHER,Musculo-Skeletal,NHS LOGISTICS,1018142596,3,
Department of Health,Salisbury NHS Foundation Trust,31-Oct-17,DRESSINGS - PRE STERILE,Musculo-Skeletal,NHS LOGISTICS,1018142596,2.3,
Department of Health,Salisbury NHS Foundation Trust,31-Oct-17,TOILETRIES PERSONAL HYGIENE PRODUCTS,Musculo-Skeletal,NHS LOGISTICS,1018142596,7.71,
Department of Health,Salisbury NHS Foundation Trust,31-Oct-17,TISSUES HAND TOWELS & TOILET PAPER,Musculo-Skeletal,NHS LOGISTICS,1018142596,3.72,
Department of Health,Salisbury NHS Foundation Trust,31-Oct-17,TISSUES HAND TOWELS & TOILET PAPER,Musculo-Skeletal,NHS LOGISTICS,1018142596,10.65,
Department of Health,Salisbury NHS Foundation Trust,31-Oct-17,DRESSINGS - PRE STERILE,Musculo-Skeletal,NHS LOGISTICS,1018142596,3.93,
Department of Health,Salisbury NHS Foundation Trust,31-Oct-17,PATIENT APPLIANCES,Musculo-Skeletal,NHS LOGISTICS,1018142596,55.18,
Department of Health,Salisbury NHS Foundation Trust,31-Oct-17,BABY TEXTURE MODIFIED FOODS,Clinical Support,NHS LOGISTICS,1018142596,21.1,
Department of Health,Salisbury NHS Foundation Trust,31-Oct-17,TISSUES HAND TOWELS & TOILET PAPER,Surgery,NHS LOGISTICS,1018142596,8.69,
Department of Health,Salisbury NHS Foundation Trust,31-Oct-17,TISSUES HAND TOWELS & TOILET PAPER,Surgery,NHS LOGISTICS,1018142596,3.13,
Department of Health,Salisbury NHS Foundation Trust,31-Oct-17,SURGICAL INSTRUMENTS: DISPOSABLE,Surgery,NHS LOGISTICS,1018142596,98.82,
Department of Health,Salisbury NHS Foundation Trust,31-Oct-17,M & S EQUIPELECTEQUIPINST - OTHER,Surgery,NHS LOGISTICS,1018142596,25.73,
Department of Health,Salisbury NHS Foundation Trust,31-Oct-17,DENTAL SURGERY SUNDRIES,Surgery,NHS LOGISTICS,1018142596,4.37,
Department of Health,Salisbury NHS Foundation Trust,31-Oct-17,DRESSINGS - PRE STERILE,Surgery,NHS LOGISTICS,1018142596,5.98,
Department of Health,Salisbury NHS Foundation Trust,31-Oct-17,DRESSINGS - PRE STERILE,Surgery,NHS LOGISTICS,1018142596,5.73,
Department of Health,Salisbury NHS Foundation Trust,31-Oct-17,DISPOSABLE THEATRE DRAPES WIPES,Surgery,NHS LOGISTICS,1018142596,12,
Department of Health,Salisbury NHS Foundation Trust,31-Oct-17,DRESSINGS - PRE STERILE,Surgery,NHS LOGISTICS,1018142596,16.84,
Department of Health,Salisbury NHS Foundation Trust,31-Oct-17,OTHER MEDICAL SUPPLIES,Surgery,NHS LOGISTICS,1018142596,6.84,
Department of Health,Salisbury NHS Foundation Trust,31-Oct-17,OTHER MEDICAL SUPPLIES,Surgery,NHS LOGISTICS,1018142596,7.53,
Department of Health,Salisbury NHS Foundation Trust,31-Oct-17,BEVERAGES & AMBIENT FOOD,Surgery,NHS LOGISTICS,1018142596,14.34,
Department of Health,Salisbury NHS Foundation Trust,31-Oct-17,OTHER MEDICAL SUPPLIES,Surgery,NHS LOGISTICS,1018142596,11.42,
Department of Health,Salisbury NHS Foundation Trust,31-Oct-17,DRESSINGS - PRE STERILE,Surgery,NHS LOGISTICS,1018142596,23.47,
Department of Health,Salisbury NHS Foundation Trust,31-Oct-17,MEDSURGCONS - OTHER,Surgery,NHS LOGISTICS,1018142596,3.91,
Department of Health,Salisbury NHS Foundation Trust,31-Oct-17,DISPOSABLE THEATRE DRAPES WIPES,Surgery,NHS LOGISTICS,1018142596,3.55,
Department of Health,Salisbury NHS Foundation Trust,31-Oct-17,DRESSINGS - PRE STERILE,Surgery,NHS LOGISTICS,1018142596,4.98,
Department of Health,Salisbury NHS Foundation Trust,31-Oct-17,DRESSINGS - PRE STERILE,Surgery,NHS LOGISTICS,1018142596,17.42,
Department of Health,Salisbury NHS Foundation Trust,31-Oct-17,DRESSINGS - PRE STERILE,Surgery,NHS LOGISTICS,1018142596,7.87,
Department of Health,Salisbury NHS Foundation Trust,31-Oct-17,DISPOSABLE THEATRE DRAPES WIPES,Surgery,NHS LOGISTICS,1018142596,35.4,
Department of Health,Salisbury NHS Foundation Trust,31-Oct-17,SURGICAL INSTRUMENTS: GENERAL,Surgery,NHS LOGISTICS,1018142596,29.17,
Department of Health,Salisbury NHS Foundation Trust,31-Oct-17,TOILETRIES PERSONAL HYGIENE PRODUCTS,Surgery,NHS LOGISTICS,1018142596,12.1,
Department of Health,Salisbury NHS Foundation Trust,31-Oct-17,DRUGS,Surgery,NHS LOGISTICS,1018142596,14.75,
Department of Health,Salisbury NHS Foundation Trust,31-Oct-17,TISSUES HAND TOWELS & TOILET PAPER,Clinical Support,NHS LOGISTICS,1018142596,21.3,
Department of Health,Salisbury NHS Foundation Trust,31-Oct-17,DISPOSABLE THEATRE DRAPES WIPES,Clinical Support,NHS LOGISTICS,1018142596,67.89,
Department of Health,Salisbury NHS Foundation Trust,31-Oct-17,PATIENT APPLIANCES,Clinical Support,NHS LOGISTICS,1018142596,15.22,
Department of Health,Salisbury NHS Foundation Trust,31-Oct-17,TISSUES HAND TOWELS & TOILET PAPER,Clinical Support,NHS LOGISTICS,1018142596,3.72,
Department of Health,Salisbury NHS Foundation Trust,31-Oct-17,OTHER MEDICAL SUPPLIES,Clinical Support,NHS LOGISTICS,1018142596,9.38,
Department of Health,Salisbury NHS Foundation Trust,31-Oct-17,PATIENT APPLIANCES,Clinical Support,NHS LOGISTICS,1018142596,14.42,
Department of Health,Salisbury NHS Foundation Trust,31-Oct-17,DISPOSABLE THEATRE DRAPES WIPES,Clinical Support,NHS LOGISTICS,1018142596,7.1,
Department of Health,Salisbury NHS Foundation Trust,31-Oct-17,TISSUES HAND TOWELS & TOILET PAPER,Surgery,NHS LOGISTICS,1018142596,2.48,
Department of Health,Salisbury NHS Foundation Trust,31-Oct-17,DISPOSABLE THEATRE DRAPES WIPES,Surgery,NHS LOGISTICS,1018142596,3.55,
Department of Health,Salisbury NHS Foundation Trust,31-Oct-17,PATIENT APPLIANCES,Surgery,NHS LOGISTICS,1018142596,3.35,
Department of Health,Salisbury NHS Foundation Trust,31-Oct-17,PATIENT APPLIANCES,Surgery,NHS LOGISTICS,1018142596,16.75,
Department of Health,Salisbury NHS Foundation Trust,31-Oct-17,MEDSURGCONS - OTHER,Clinical Support,NHS LOGISTICS,1018142596,209.85,
Department of Health,Salisbury NHS Foundation Trust,31-Oct-17,PATIENT APPLIANCES,Clinical Support,NHS LOGISTICS,1018142596,15.22,
Department of Health,Salisbury NHS Foundation Trust,31-Oct-17,TISSUES HAND TOWELS & TOILET PAPER,Clinical Support,NHS LOGISTICS,1018142596,4.97,
Department of Health,Salisbury NHS Foundation Trust,31-Oct-17,OTHER MEDICAL SUPPLIES,Clinical Support,NHS LOGISTICS,1018142596,9.38,
Department of Health,Salisbury NHS Foundation Trust,31-Oct-17,PATIENT APPLIANCES,Clinical Support,NHS LOGISTICS,1018142596,14.42,
Department of Health,Salisbury NHS Foundation Trust,31-Oct-17,DISPOSABLE THEATRE DRAPES WIPES,Clinical Support,NHS LOGISTICS,1018142596,7.1,
Department of Health,Salisbury NHS Foundation Trust,31-Oct-17,TISSUES HAND TOWELS & TOILET PAPER,Surgery,NHS LOGISTICS,1018142596,2.48,
Department of Health,Salisbury NHS Foundation Trust,31-Oct-17,DISPOSABLE THEATRE DRAPES WIPES,Surgery,NHS LOGISTICS,1018142596,3.55,
Department of Health,Salisbury NHS Foundation Trust,31-Oct-17,MEDSURGCONS - OTHER,Surgery,NHS LOGISTICS,1018142596,48.06,
Department of Health,Salisbury NHS Foundation Trust,31-Oct-17,BEVERAGES & AMBIENT FOOD,Surgery,NHS LOGISTICS,1018142596,2.61,
Department of Health,Salisbury NHS Foundation Trust,31-Oct-17,MEDSURGCONS - OTHER,Musculo-Skeletal,NHS LOGISTICS,1018142596,10.73,
Department of Health,Salisbury NHS Foundation Trust,31-Oct-17,TISSUES HAND TOWELS & TOILET PAPER,Musculo-Skeletal,NHS LOGISTICS,1018142596,14,
Department of Health,Salisbury NHS Foundation Trust,31-Oct-17,DRESSINGS - PRE STERILE,Musculo-Skeletal,NHS LOGISTICS,1018142596,2.49,
Department of Health,Salisbury NHS Foundation Trust,31-Oct-17,NON DISPOSABLE BED LINEN,Musculo-Skeletal,NHS LOGISTICS,1018142596,33.18,
Department of Health,Salisbury NHS Foundation Trust,31-Oct-17,PATIENT APPLIANCES,Musculo-Skeletal,NHS LOGISTICS,1018142596,15.6,
Department of Health,Salisbury NHS Foundation Trust,31-Oct-17,DISPOSABLE THEATRE DRAPES WIPES,Musculo-Skeletal,NHS LOGISTICS,1018142596,17.75,
Department of Health,Salisbury NHS Foundation Trust,31-Oct-17,M & S EQUIPELECTEQUIPINST - OTHER,Surgery,NHS LOGISTICS,1018142596,10.56,
Department of Health,Salisbury NHS Foundation Trust,31-Oct-17,M & S EQUIPELECTEQUIPINST - OTHER,Surgery,NHS LOGISTICS,1018142596,10.56,
Department of Health,Salisbury NHS Foundation Trust,31-Oct-17,M & S EQUIPELECTEQUIPINST - OTHER,Surgery,NHS LOGISTICS,1018142596,3.62,
Department of Health,Salisbury NHS Foundation Trust,31-Oct-17,M & S EQUIPELECTEQUIPINST - OTHER,Corporate - Finance & Procurement,NHS LOGISTICS,1018142596,876.25,
Department of Health,Salisbury NHS Foundation Trust,31-Oct-17,OTHER MEDICAL SUPPLIES,Corporate - Finance & Procurement,NHS LOGISTICS,1018142596,150,
Department of Health,Salisbury NHS Foundation Trust,31-Oct-17,COOKING & KITCHEN UTENSILS,Corporate - Finance & Procurement,NHS LOGISTICS,1018142596,259,
Department of Health,Salisbury NHS Foundation Trust,31-Oct-17,CLEANING MATERIALS PRODUCTS SUNDRIES,Surgery,NHS LOGISTICS,1018142596,5.53,
Department of Health,Salisbury NHS Foundation Trust,31-Oct-17,PATIENT APPLIANCES,Surgery,NHS LOGISTICS,1018142596,23.4,
Department of Health,Salisbury NHS Foundation Trust,31-Oct-17,CLEANING MATERIALS PRODUCTS SUNDRIES,Surgery,NHS LOGISTICS,1018142596,5.53,
Department of Health,Salisbury NHS Foundation Trust,31-Oct-17,DRESSINGS - PRE STERILE,Surgery,NHS LOGISTICS,1018142596,2.49,
Department of Health,Salisbury NHS Foundation Trust,31-Oct-17,MEDSURGCONS - OTHER,Surgery,NHS LOGISTICS,1018142596,4.85,
Department of Health,Salisbury NHS Foundation Trust,31-Oct-17,MEDSURGCONS - OTHER,Surgery,NHS LOGISTICS,1018142596,3.91,
Department of Health,Salisbury NHS Foundation Trust,31-Oct-17,BABY TEXTURE MODIFIED FOODS,Clinical Support,NHS LOGISTICS,1018142596,33.32,
Department of Health,Salisbury NHS Foundation Trust,31-Oct-17,DISPOSABLE THEATRE DRAPES WIPES,Clinical Support,NHS LOGISTICS,1018142596,3.55,
Department of Health,Salisbury NHS Foundation Trust,31-Oct-17,TISSUES HAND TOWELS & TOILET PAPER,Clinical Support,NHS LOGISTICS,1018142596,7.45,
Department of Health,Salisbury NHS Foundation Trust,31-Oct-17,DRUGS,Clinical Support,NHS LOGISTICS,1018142596,28.08,
Department of Health,Salisbury NHS Foundation Trust,31-Oct-17,PATIENT APPLIANCES,Clinical Support,NHS LOGISTICS,1018142596,4.32,
Department of Health,Salisbury NHS Foundation Trust,31-Oct-17,OTHER MEDICAL SUPPLIES,Clinical Support,NHS LOGISTICS,1018142596,157.9,
Department of Health,Salisbury NHS Foundation Trust,31-Oct-17,PATIENTS BEDWEAR UNISEX,Clinical Support,NHS LOGISTICS,1018142596,8,
Department of Health,Salisbury NHS Foundation Trust,31-Oct-17,DRESSINGS - PRE STERILE,Clinical Support,NHS LOGISTICS,1018142596,2.49,
Department of Health,Salisbury NHS Foundation Trust,31-Oct-17,DISPOSABLE THEATRE DRAPES WIPES,Clinical Support,NHS LOGISTICS,1018142596,6,
Department of Health,Salisbury NHS Foundation Trust,31-Oct-17,MEDSURGCONS - OTHER,Clinical Support,NHS LOGISTICS,1018142596,4.88,
Department of Health,Salisbury NHS Foundation Trust,31-Oct-17,M & S EQUIPELECTEQUIPINST - OTHER,Clinical Support,NHS LOGISTICS,1018142596,5.75,
Department of Health,Salisbury NHS Foundation Trust,31-Oct-17,OTHER MEDICAL SUPPLIES,Clinical Support,NHS LOGISTICS,1018142596,1.88,
Department of Health,Salisbury NHS Foundation Trust,31-Oct-17,PATIENT APPLIANCES,Clinical Support,NHS LOGISTICS,1018142596,11.7,
Department of Health,Salisbury NHS Foundation Trust,31-Oct-17,DISPOSABLE THEATRE DRAPES WIPES,Clinical Support,NHS LOGISTICS,1018142596,3.55,
Department of Health,Salisbury NHS Foundation Trust,31-Oct-17,OTHER MEDICAL SUPPLIES,Clinical Support,NHS LOGISTICS,1018142596,157.9,
Department of Health,Salisbury NHS Foundation Trust,31-Oct-17,BABY TEXTURE MODIFIED FOODS,Clinical Support,NHS LOGISTICS,1018142596,13.17,
Department of Health,Salisbury NHS Foundation Trust,31-Oct-17,DRESSINGS - PRE STERILE,Clinical Support,NHS LOGISTICS,1018142596,4.6,
Department of Health,Salisbury NHS Foundation Trust,31-Oct-17,DRUGS,Clinical Support,NHS LOGISTICS,1018142596,8.8,
Department of Health,Salisbury NHS Foundation Trust,31-Oct-17,MED SURG EQUIP REP MAINT CLEANING,Clinical Support,NHS LOGISTICS,1018142596,69.56,
Department of Health,Salisbury NHS Foundation Trust,31-Oct-17,MED SURG EQUIP REP MAINT CLEANING,Clinical Support,NHS LOGISTICS,1018142596,69.56,
Department of Health,Salisbury NHS Foundation Trust,31-Oct-17,BABY TEXTURE MODIFIED FOODS,Clinical Support,NHS LOGISTICS,1018142596,10.55,
Department of Health,Salisbury NHS Foundation Trust,31-Oct-17,OTHER MEDICAL SUPPLIES,Clinical Support,NHS LOGISTICS,1018142596,1.88,
Department of Health,Salisbury NHS Foundation Trust,31-Oct-17,MEDSURGCONS - OTHER,Clinical Support,NHS LOGISTICS,1018142596,3.78,
Department of Health,Salisbury NHS Foundation Trust,31-Oct-17,MEDSURGCONS - OTHER,Clinical Support,NHS LOGISTICS,1018142596,23.57,
Department of Health,Salisbury NHS Foundation Trust,31-Oct-17,MEDSURGCONS - OTHER,Clinical Support,NHS LOGISTICS,1018142596,3.92,
Department of Health,Salisbury NHS Foundation Trust,31-Oct-17,MEDSURGCONS - OTHER,Clinical Support,NHS LOGISTICS,1018142596,3.91,
Department of Health,Salisbury NHS Foundation Trust,31-Oct-17,DRESSINGS - PRE STERILE,Musculo-Skeletal,NHS LOGISTICS,1018142596,16.33,
Department of Health,Salisbury NHS Foundation Trust,31-Oct-17,DRESSINGS - PRE STERILE,Surgery,NHS LOGISTICS,1018142596,7.52,
Department of Health,Salisbury NHS Foundation Trust,31-Oct-17,DRESSINGS - PRE STERILE,Surgery,NHS LOGISTICS,1018142596,1.15,
Department of Health,Salisbury NHS Foundation Trust,31-Oct-17,TISSUES HAND TOWELS & TOILET PAPER,Surgery,NHS LOGISTICS,1018142596,1.24,
Department of Health,Salisbury NHS Foundation Trust,31-Oct-17,ANAESTHETIC EQUIPMENT ACCESSORIES,Surgery,NHS LOGISTICS,1018142596,3.13,
Department of Health,Salisbury NHS Foundation Trust,31-Oct-17,OTHER MEDICAL SUPPLIES,Surgery,NHS LOGISTICS,1018142596,1.88,
Department of Health,Salisbury NHS Foundation Trust,31-Oct-17,PATIENT APPLIANCES,Surgery,NHS LOGISTICS,1018142596,6.7,
Department of Health,Salisbury NHS Foundation Trust,31-Oct-17,PATIENT APPLIANCES,Surgery,NHS LOGISTICS,1018142596,6.7,
Department of Health,Salisbury NHS Foundation Trust,31-Oct-17,PATIENT APPLIANCES,Surgery,NHS LOGISTICS,1018142596,16.75,
Department of Health,Salisbury NHS Foundation Trust,31-Oct-17,PATIENT APPLIANCES,Surgery,NHS LOGISTICS,1018142596,4.39,
Department of Health,Salisbury NHS Foundation Trust,31-Oct-17,PATIENT APPLIANCES,Surgery,NHS LOGISTICS,1018142596,4.39,
Department of Health,Salisbury NHS Foundation Trust,31-Oct-17,PATIENT APPLIANCES,Surgery,NHS LOGISTICS,1018142596,4.39,
Department of Health,Salisbury NHS Foundation Trust,31-Oct-17,TISSUES HAND TOWELS & TOILET PAPER,Surgery,NHS LOGISTICS,1018142596,0.7,
Department of Health,Salisbury NHS Foundation Trust,31-Oct-17,DISPOSABLE THEATRE DRAPES WIPES,Surgery,NHS LOGISTICS,1018142596,3.55,
Department of Health,Salisbury NHS Foundation Trust,31-Oct-17,TISSUES HAND TOWELS & TOILET PAPER,Medicine,NHS LOGISTICS,1018142596,2.48,
Department of Health,Salisbury NHS Foundation Trust,31-Oct-17,TISSUES HAND TOWELS & TOILET PAPER,Medicine,NHS LOGISTICS,1018142596,2.35,
Department of Health,Salisbury NHS Foundation Trust,31-Oct-17,M & S EQUIPELECTEQUIPINST - OTHER,Medicine,NHS LOGISTICS,1018142596,3.08,
Department of Health,Salisbury NHS Foundation Trust,31-Oct-17,TISSUES HAND TOWELS & TOILET PAPER,Surgery,NHS LOGISTICS,1018142596,0.62,
Department of Health,Salisbury NHS Foundation Trust,31-Oct-17,TISSUES HAND TOWELS & TOILET PAPER,Surgery,NHS LOGISTICS,1018142596,7.45,
Department of Health,Salisbury NHS Foundation Trust,31-Oct-17,OTHER MEDICAL SUPPLIES,Surgery,NHS LOGISTICS,1018142596,414.33,
Department of Health,Salisbury NHS Foundation Trust,31-Oct-17,TISSUES HAND TOWELS & TOILET PAPER,Surgery,NHS LOGISTICS,1018142596,10.65,
Department of Health,Salisbury NHS Foundation Trust,31-Oct-17,DRESSINGS - PRE STERILE,Surgery,NHS LOGISTICS,1018142596,3.93,
Department of Health,Salisbury NHS Foundation Trust,31-Oct-17,DRESSINGS - PRE STERILE,Surgery,NHS LOGISTICS,1018142596,1.11,
Department of Health,Salisbury NHS Foundation Trust,31-Oct-17,TISSUES HAND TOWELS & TOILET PAPER,Clinical Support,NHS LOGISTICS,1018142596,9.93,
Department of Health,Salisbury NHS Foundation Trust,31-Oct-17,TISSUES HAND TOWELS & TOILET PAPER,Clinical Support,NHS LOGISTICS,1018142596,1.57,
Department of Health,Salisbury NHS Foundation Trust,31-Oct-17,SURGICAL INSTRUMENTS: GENERAL,Clinical Support,NHS LOGISTICS,1018142596,11.63,
Department of Health,Salisbury NHS Foundation Trust,31-Oct-17,DRESSINGS - PRE STERILE,Musculo-Skeletal,NHS LOGISTICS,1018142596,158.27,
Department of Health,Salisbury NHS Foundation Trust,31-Oct-17,CLEANING MATERIALS PRODUCTS SUNDRIES,Medicine,NHS LOGISTICS,1018142596,5.53,
Department of Health,Salisbury NHS Foundation Trust,31-Oct-17,SURGICAL INSTRUMENTS: GENERAL,Medicine,NHS LOGISTICS,1018142596,9.83,
Department of Health,Salisbury NHS Foundation Trust,31-Oct-17,CLEANING MATERIALS PRODUCTS SUNDRIES,Medicine,NHS LOGISTICS,1018142596,25.93,
Department of Health,Salisbury NHS Foundation Trust,31-Oct-17,DISPOSABLE TABLE LINEN,Medicine,NHS LOGISTICS,1018142596,0.69,
Department of Health,Salisbury NHS Foundation Trust,31-Oct-17,TISSUES HAND TOWELS & TOILET PAPER,Medicine,NHS LOGISTICS,1018142596,0.35,
Department of Health,Salisbury NHS Foundation Trust,31-Oct-17,CLEANING MATERIALS PRODUCTS SUNDRIES,Surgery,NHS LOGISTICS,1018142596,5.45,
Department of Health,Salisbury NHS Foundation Trust,31-Oct-17,MEDSURGCONS - OTHER,Surgery,NHS LOGISTICS,1018142596,14.65,
Department of Health,Salisbury NHS Foundation Trust,31-Oct-17,ANAESTHETIC EQUIPMENT ACCESSORIES,Surgery,NHS LOGISTICS,1018142596,1.3,
Department of Health,Salisbury NHS Foundation Trust,31-Oct-17,MED SURG EQUIP REP MAINT CLEANING,Surgery,NHS LOGISTICS,1018142596,28.35,
Department of Health,Salisbury NHS Foundation Trust,31-Oct-17,MEDSURGCONS - OTHER,Surgery,NHS LOGISTICS,1018142596,21.42,
Department of Health,Salisbury NHS Foundation Trust,31-Oct-17,MEDSURGCONS - OTHER,Surgery,NHS LOGISTICS,1018142596,101.8,
Department of Health,Salisbury NHS Foundation Trust,31-Oct-17,OTHER MEDICAL SUPPLIES,Surgery,NHS LOGISTICS,1018142596,7.53,
Department of Health,Salisbury NHS Foundation Trust,31-Oct-17,TOILETRIES PERSONAL HYGIENE PRODUCTS,Surgery,NHS LOGISTICS,1018142596,4.15,
Department of Health,Salisbury NHS Foundation Trust,31-Oct-17,MEDSURGCONS - OTHER,Surgery,NHS LOGISTICS,1018142596,13.57,
Department of Health,Salisbury NHS Foundation Trust,31-Oct-17,MEDSURGCONS - OTHER,Surgery,NHS LOGISTICS,1018142596,95.65,
Department of Health,Salisbury NHS Foundation Trust,31-Oct-17,MEDSURGCONS - OTHER,Surgery,NHS LOGISTICS,1018142596,3.91,
Department of Health,Salisbury NHS Foundation Trust,31-Oct-17,MEDSURGCONS - OTHER,Surgery,NHS LOGISTICS,1018142596,13.65,
Department of Health,Salisbury NHS Foundation Trust,31-Oct-17,TOILETRIES PERSONAL HYGIENE PRODUCTS,Surgery,NHS LOGISTICS,1018142596,4.13,
Department of Health,Salisbury NHS Foundation Trust,31-Oct-17,M & S EQUIPELECTEQUIPINST - OTHER,Surgery,NHS LOGISTICS,1018142596,1.47,
Department of Health,Salisbury NHS Foundation Trust,31-Oct-17,OTHER MEDICAL SUPPLIES,Surgery,NHS LOGISTICS,1018142596,47.23,
Department of Health,Salisbury NHS Foundation Trust,31-Oct-17,PATIENT APPLIANCES,Surgery,NHS LOGISTICS,1018142596,19.5,
Department of Health,Salisbury NHS Foundation Trust,31-Oct-17,DISPOSABLE THEATRE DRAPES WIPES,Surgery,NHS LOGISTICS,1018142596,28.4,
Department of Health,Salisbury NHS Foundation Trust,31-Oct-17,MEDSURGCONS - OTHER,Surgery,NHS LOGISTICS,1018142596,8.01,
Department of Health,Salisbury NHS Foundation Trust,31-Oct-17,ANAESTHETIC EQUIPMENT ACCESSORIES,Surgery,NHS LOGISTICS,1018142596,25.78,
Department of Health,Salisbury NHS Foundation Trust,31-Oct-17,OTHER MEDICAL SUPPLIES,Surgery,NHS LOGISTICS,1018142596,17.07,
Department of Health,Salisbury NHS Foundation Trust,31-Oct-17,ANAESTHETIC EQUIPMENT ACCESSORIES,Surgery,NHS LOGISTICS,1018142596,94.55,
Department of Health,Salisbury NHS Foundation Trust,31-Oct-17,OTHER MEDICAL SUPPLIES,Surgery,NHS LOGISTICS,1018142596,11.3,
Department of Health,Salisbury NHS Foundation Trust,31-Oct-17,MEDSURGCONS - OTHER,Surgery,NHS LOGISTICS,1018142596,87.1,
Department of Health,Salisbury NHS Foundation Trust,31-Oct-17,M & S EQUIPELECTEQUIPINST - OTHER,Clinical Support,NHS LOGISTICS,1018142596,128.87,
Department of Health,Salisbury NHS Foundation Trust,31-Oct-17,M & S EQUIPELECTEQUIPINST - OTHER,Clinical Support,NHS LOGISTICS,1018142596,257.73,
Department of Health,Salisbury NHS Foundation Trust,31-Oct-17,M & S EQUIPELECTEQUIPINST - OTHER,Clinical Support,NHS LOGISTICS,1018142596,169.79,
Department of Health,Salisbury NHS Foundation Trust,31-Oct-17,BEVERAGES & AMBIENT FOOD,Facilities,NHS LOGISTICS,1018142596,28.74,
Department of Health,Salisbury NHS Foundation Trust,31-Oct-17,BEVERAGES & AMBIENT FOOD,Facilities,NHS LOGISTICS,1018142596,9.84,
Department of Health,Salisbury NHS Foundation Trust,31-Oct-17,BEVERAGES & AMBIENT FOOD,Facilities,NHS LOGISTICS,1018142596,7.72,
Department of Health,Salisbury NHS Foundation Trust,31-Oct-17,BEVERAGES & AMBIENT FOOD,Facilities,NHS LOGISTICS,1018142596,37.56,
Department of Health,Salisbury NHS Foundation Trust,31-Oct-17,BEVERAGES & AMBIENT FOOD,Facilities,NHS LOGISTICS,1018142596,25.5,
Department of Health,Salisbury NHS Foundation Trust,31-Oct-17,COOKING & KITCHEN UTENSILS,Facilities,NHS LOGISTICS,1018142596,25,
Department of Health,Salisbury NHS Foundation Trust,31-Oct-17,BEVERAGES & AMBIENT FOOD,Facilities,NHS LOGISTICS,1018142596,15.48,
Department of Health,Salisbury NHS Foundation Trust,31-Oct-17,BEVERAGES & AMBIENT FOOD,Facilities,NHS LOGISTICS,1018142596,10.72,
Department of Health,Salisbury NHS Foundation Trust,31-Oct-17,EGGS MILK OTHER DAIRY PRODUCTS,Facilities,NHS LOGISTICS,1018142596,23.24,
Department of Health,Salisbury NHS Foundation Trust,31-Oct-17,BEVERAGES & AMBIENT FOOD,Facilities,NHS LOGISTICS,1018142596,6.02,
Department of Health,Salisbury NHS Foundation Trust,31-Oct-17,MEAT GAME POULTRY FISH,Facilities,NHS LOGISTICS,1018142596,42.48,
Department of Health,Salisbury NHS Foundation Trust,31-Oct-17,FRUIT & VEGETABLES,Facilities,NHS LOGISTICS,1018142596,22.08,
Department of Health,Salisbury NHS Foundation Trust,31-Oct-17,BEVERAGES & AMBIENT FOOD,Facilities,NHS LOGISTICS,1018142596,11.86,
Department of Health,Salisbury NHS Foundation Trust,31-Oct-17,BEVERAGES & AMBIENT FOOD,Facilities,NHS LOGISTICS,1018142596,37.76,
Department of Health,Salisbury NHS Foundation Trust,31-Oct-17,FRUIT & VEGETABLES,Facilities,NHS LOGISTICS,1018142596,57.3,
Department of Health,Salisbury NHS Foundation Trust,31-Oct-17,FRUIT & VEGETABLES,Facilities,NHS LOGISTICS,1018142596,10.92,
Department of Health,Salisbury NHS Foundation Trust,31-Oct-17,FRUIT & VEGETABLES,Facilities,NHS LOGISTICS,1018142596,17.82,
Department of Health,Salisbury NHS Foundation Trust,31-Oct-17,FRUIT & VEGETABLES,Facilities,NHS LOGISTICS,1018142596,20.76,
Department of Health,Salisbury NHS Foundation Trust,31-Oct-17,FRUIT & VEGETABLES,Facilities,NHS LOGISTICS,1018142596,17.94,
Department of Health,Salisbury NHS Foundation Trust,31-Oct-17,FRUIT & VEGETABLES,Facilities,NHS LOGISTICS,1018142596,4.8,
Department of Health,Salisbury NHS Foundation Trust,31-Oct-17,LIQUID REFRESHMENTS,Facilities,NHS LOGISTICS,1018142596,9.32,
Department of Health,Salisbury NHS Foundation Trust,31-Oct-17,BEVERAGES & AMBIENT FOOD,Facilities,NHS LOGISTICS,1018142596,7.68,
Department of Health,Salisbury NHS Foundation Trust,31-Oct-17,LIQUID REFRESHMENTS,Facilities,NHS LOGISTICS,1018142596,49.25,
Department of Health,Salisbury NHS Foundation Trust,31-Oct-17,LIQUID REFRESHMENTS,Facilities,NHS LOGISTICS,1018142596,26.33,
Department of Health,Salisbury NHS Foundation Trust,31-Oct-17,LIQUID REFRESHMENTS,Facilities,NHS LOGISTICS,1018142596,26.5,
Department of Health,Salisbury NHS Foundation Trust,31-Oct-17,LIQUID REFRESHMENTS,Facilities,NHS LOGISTICS,1018142596,26.5,
Department of Health,Salisbury NHS Foundation Trust,31-Oct-17,BEVERAGES & AMBIENT FOOD,Facilities,NHS LOGISTICS,1018142596,48.51,
Department of Health,Salisbury NHS Foundation Trust,31-Oct-17,BEVERAGES & AMBIENT FOOD,Facilities,NHS LOGISTICS,1018142596,82.8,
Department of Health,Salisbury NHS Foundation Trust,31-Oct-17,BEVERAGES & AMBIENT FOOD,Facilities,NHS LOGISTICS,1018142596,77.94,
Department of Health,Salisbury NHS Foundation Trust,31-Oct-17,BEVERAGES & AMBIENT FOOD,Facilities,NHS LOGISTICS,1018142596,34.32,
Department of Health,Salisbury NHS Foundation Trust,31-Oct-17,BEVERAGES & AMBIENT FOOD,Facilities,NHS LOGISTICS,1018142596,38.64,
Department of Health,Salisbury NHS Foundation Trust,31-Oct-17,BEVERAGES & AMBIENT FOOD,Facilities,NHS LOGISTICS,1018142596,6.78,
Department of Health,Salisbury NHS Foundation Trust,31-Oct-17,FLAVOURINGS HERBS SPICES,Facilities,NHS LOGISTICS,1018142596,3.1,
Department of Health,Salisbury NHS Foundation Trust,31-Oct-17,BEVERAGES & AMBIENT FOOD,Facilities,NHS LOGISTICS,1018142596,10.8,
Department of Health,Salisbury NHS Foundation Trust,31-Oct-17,BEVERAGES & AMBIENT FOOD,Facilities,NHS LOGISTICS,1018142596,8.9,
Department of Health,Salisbury NHS Foundation Trust,31-Oct-17,BEVERAGES & AMBIENT FOOD,Facilities,NHS LOGISTICS,1018142596,6.12,
Department of Health,Salisbury NHS Foundation Trust,31-Oct-17,FRUIT & VEGETABLES,Facilities,NHS LOGISTICS,1018142596,5.28,
Department of Health,Salisbury NHS Foundation Trust,31-Oct-17,FLAVOURINGS HERBS SPICES,Facilities,NHS LOGISTICS,1018142596,2.3,
Department of Health,Salisbury NHS Foundation Trust,31-Oct-17,LIQUID REFRESHMENTS,Facilities,NHS LOGISTICS,1018142596,34,
Department of Health,Salisbury NHS Foundation Trust,31-Oct-17,LIQUID REFRESHMENTS,Facilities,NHS LOGISTICS,1018142596,6.58,
Department of Health,Salisbury NHS Foundation Trust,31-Oct-17,LIQUID REFRESHMENTS,Facilities,NHS LOGISTICS,1018142596,6.2,
Department of Health,Salisbury NHS Foundation Trust,31-Oct-17,LIQUID REFRESHMENTS,Facilities,NHS LOGISTICS,1018142596,10.13,
Department of Health,Salisbury NHS Foundation Trust,31-Oct-17,LIQUID REFRESHMENTS,Facilities,NHS LOGISTICS,1018142596,7.6,
Department of Health,Salisbury NHS Foundation Trust,31-Oct-17,LIQUID REFRESHMENTS,Facilities,NHS LOGISTICS,1018142596,5.82,
Department of Health,Salisbury NHS Foundation Trust,31-Oct-17,BEVERAGES & AMBIENT FOOD,Facilities,NHS LOGISTICS,1018142596,105.48,
Department of Health,Salisbury NHS Foundation Trust,31-Oct-17,COOKING & KITCHEN UTENSILS,Facilities,NHS LOGISTICS,1018142596,19.17,
Department of Health,Salisbury NHS Foundation Trust,31-Oct-17,COOKING & KITCHEN UTENSILS,Facilities,NHS LOGISTICS,1018142596,19.17,
Department of Health,Salisbury NHS Foundation Trust,31-Oct-17,COOKING & KITCHEN UTENSILS,Facilities,NHS LOGISTICS,1018142596,38.33,
Department of Health,Salisbury NHS Foundation Trust,31-Oct-17,TISSUES HAND TOWELS & TOILET PAPER,Facilities,NHS LOGISTICS,1018142596,7.45,
Department of Health,Salisbury NHS Foundation Trust,31-Oct-17,CLEANING MATERIALS PRODUCTS SUNDRIES,Facilities,NHS LOGISTICS,1018142596,5.42,
Department of Health,Salisbury NHS Foundation Trust,31-Oct-17,COOKING & KITCHEN UTENSILS,Facilities,NHS LOGISTICS,1018142596,27.3,
Department of Health,Salisbury NHS Foundation Trust,31-Oct-17,FRUIT & VEGETABLES,Facilities,NHS LOGISTICS,1018142596,13.74,
Department of Health,Salisbury NHS Foundation Trust,31-Oct-17,FRUIT & VEGETABLES,Facilities,NHS LOGISTICS,1018142596,30.48,
Department of Health,Salisbury NHS Foundation Trust,31-Oct-17,MEDSURGCONS - OTHER,Facilities,NHS LOGISTICS,1018142596,42.92,
Department of Health,Salisbury NHS Foundation Trust,31-Oct-17,LIQUID REFRESHMENTS,Facilities,NHS LOGISTICS,1018142596,7.43,
Department of Health,Salisbury NHS Foundation Trust,31-Oct-17,LIQUID REFRESHMENTS,Facilities,NHS LOGISTICS,1018142596,21.05,
Department of Health,Salisbury NHS Foundation Trust,31-Oct-17,MEDSURGCONS - OTHER,Medicine,NHS LOGISTICS,1018142596,16.11,
Department of Health,Salisbury NHS Foundation Trust,31-Oct-17,MEDSURGCONS - OTHER,Medicine,NHS LOGISTICS,1018142596,16.11,
Department of Health,Salisbury NHS Foundation Trust,31-Oct-17,MEDSURGCONS - OTHER,Medicine,NHS LOGISTICS,1018142596,16.11,
Department of Health,Salisbury NHS Foundation Trust,31-Oct-17,MEDSURGCONS - OTHER,Surgery,NHS LOGISTICS,1018142596,114.58,
Department of Health,Salisbury NHS Foundation Trust,31-Oct-17,DENTAL SURGERY SUNDRIES,Surgery,NHS LOGISTICS,1018142596,1.75,
Department of Health,Salisbury NHS Foundation Trust,31-Oct-17,HEALTHCARE - WEAR,Facilities,NHS LOGISTICS,1018142596,18.47,
Department of Health,Salisbury NHS Foundation Trust,31-Oct-17,ADULTS HEARING AIDS,Surgery,NHS LOGISTICS,1018142596,19.51,
Department of Health,Salisbury NHS Foundation Trust,31-Oct-17,LAB EQUIP-LABORATORY APPARATUS,Clinical Support,NHS LOGISTICS,1018142596,17.31,
Department of Health,Salisbury NHS Foundation Trust,31-Oct-17,TISSUES HAND TOWELS & TOILET PAPER,Clinical Support,NHS LOGISTICS,1018142596,4.26,
Department of Health,Salisbury NHS Foundation Trust,31-Oct-17,OTHER MEDICAL SUPPLIES,Clinical Support,NHS LOGISTICS,1018142596,3.1,
Department of Health,Salisbury NHS Foundation Trust,31-Oct-17,DRESSINGS - PRE STERILE,Musculo-Skeletal,NHS LOGISTICS,1018142596,9.52,
Department of Health,Salisbury NHS Foundation Trust,31-Oct-17,DRESSINGS - PRE STERILE,Musculo-Skeletal,NHS LOGISTICS,1018142596,10.06,
Department of Health,Salisbury NHS Foundation Trust,31-Oct-17,DRESSINGS - PRE STERILE,Musculo-Skeletal,NHS LOGISTICS,1018142596,13.41,
Department of Health,Salisbury NHS Foundation Trust,31-Oct-17,DRESSINGS - PRE STERILE,Musculo-Skeletal,NHS LOGISTICS,1018142596,5.33,
Department of Health,Salisbury NHS Foundation Trust,31-Oct-17,DRESSINGS - PRE STERILE,Musculo-Skeletal,NHS LOGISTICS,1018142596,5.81,
Department of Health,Salisbury NHS Foundation Trust,31-Oct-17,M & S EQUIPELECTEQUIPINST - OTHER,Musculo-Skeletal,NHS LOGISTICS,1018142596,4.14,
Department of Health,Salisbury NHS Foundation Trust,31-Oct-17,ADULTS HEARING AIDS,Surgery,NHS LOGISTICS,1018142596,174.53,
Department of Health,Salisbury NHS Foundation Trust,31-Oct-17,OTHER MEDICAL SUPPLIES,Clinical Support,NHS LOGISTICS,1018142596,36.81,
Department of Health,Salisbury NHS Foundation Trust,31-Oct-17,SURGICAL INSTRUMENTS: GENERAL,Musculo-Skeletal,NHS LOGISTICS,1018142596,20.68,
Department of Health,Salisbury NHS Foundation Trust,31-Oct-17,MED SURG EQUIP REP MAINT CLEANING,Medicine,NHS LOGISTICS,1018142596,4.62,
Department of Health,Salisbury NHS Foundation Trust,31-Oct-17,HEALTHCARE - WEAR,Clinical Support,NHS LOGISTICS,1018142596,8.67,
Department of Health,Salisbury NHS Foundation Trust,31-Oct-17,DRESSINGS - PRE STERILE,Musculo-Skeletal,NHS LOGISTICS,1018142596,4.52,
Department of Health,Salisbury NHS Foundation Trust,31-Oct-17,MED SURG EQUIP REP MAINT CLEANING,Clinical Support,NHS LOGISTICS,1018142596,51.12,
Department of Health,Salisbury NHS Foundation Trust,31-Oct-17,MEDSURGCONS - OTHER,Surgery,NHS LOGISTICS,1018142596,1.44,
Department of Health,Salisbury NHS Foundation Trust,31-Oct-17,OPTICAL  -  OTHER,Surgery,NHS LOGISTICS,1018142596,10.6,
Department of Health,Salisbury NHS Foundation Trust,31-Oct-17,PATIENT APPLIANCES,Musculo-Skeletal,NHS LOGISTICS,1018142596,7.52,
Department of Health,Salisbury NHS Foundation Trust,31-Oct-17,MEDSURGCONS - OTHER,Musculo-Skeletal,NHS LOGISTICS,1018142596,2.28,
Department of Health,Salisbury NHS Foundation Trust,31-Oct-17,MEDSURGCONS - OTHER,Musculo-Skeletal,NHS LOGISTICS,1018142596,31.05,
Department of Health,Salisbury NHS Foundation Trust,31-Oct-17,M & S EQUIPELECTEQUIPINST - OTHER,Clinical Support,NHS LOGISTICS,1018142596,5.57,
Department of Health,Salisbury NHS Foundation Trust,31-Oct-17,MEDSURGCONS - OTHER,Clinical Support,NHS LOGISTICS,1018142596,5.98,
Department of Health,Salisbury NHS Foundation Trust,31-Oct-17,DRESSINGS - PRE STERILE,Musculo-Skeletal,NHS LOGISTICS,1018142596,3.27,
Department of Health,Salisbury NHS Foundation Trust,31-Oct-17,DRESSINGS - PRE STERILE,Musculo-Skeletal,NHS LOGISTICS,1018142596,1.15,
Department of Health,Salisbury NHS Foundation Trust,31-Oct-17,DRESSINGS - PRE STERILE,Musculo-Skeletal,NHS LOGISTICS,1018142596,3,
Department of Health,Salisbury NHS Foundation Trust,31-Oct-17,DRESSINGS - PRE STERILE,Musculo-Skeletal,NHS LOGISTICS,1018142596,1.74,
Department of Health,Salisbury NHS Foundation Trust,31-Oct-17,TUBES,Musculo-Skeletal,NHS LOGISTICS,1018142596,1.37,
Department of Health,Salisbury NHS Foundation Trust,31-Oct-17,PATIENT APPLIANCES,Musculo-Skeletal,NHS LOGISTICS,1018142596,0.67,
Department of Health,Salisbury NHS Foundation Trust,31-Oct-17,PATIENT APPLIANCES,Musculo-Skeletal,NHS LOGISTICS,1018142596,0.88,
Department of Health,Salisbury NHS Foundation Trust,31-Oct-17,PATIENT APPLIANCES,Musculo-Skeletal,NHS LOGISTICS,1018142596,0.88,
Department of Health,Salisbury NHS Foundation Trust,31-Oct-17,MEDSURGCONS - OTHER,Musculo-Skeletal,NHS LOGISTICS,1018142596,11.96,
Department of Health,Salisbury NHS Foundation Trust,31-Oct-17,MEDSURGCONS - OTHER,Musculo-Skeletal,NHS LOGISTICS,1018142596,1.18,
Department of Health,Salisbury NHS Foundation Trust,31-Oct-17,MEDSURGCONS - OTHER,Musculo-Skeletal,NHS LOGISTICS,1018142596,0.78,
Department of Health,Salisbury NHS Foundation Trust,31-Oct-17,MEDSURGCONS - OTHER,Musculo-Skeletal,NHS LOGISTICS,1018142596,1.36,
Department of Health,Salisbury NHS Foundation Trust,31-Oct-17,TISSUES HAND TOWELS & TOILET PAPER,Musculo-Skeletal,NHS LOGISTICS,1018142596,0.07,
Department of Health,Salisbury NHS Foundation Trust,31-Oct-17,TOILETRIES PERSONAL HYGIENE PRODUCTS,Musculo-Skeletal,NHS LOGISTICS,1018142596,1.65,
Department of Health,Salisbury NHS Foundation Trust,31-Oct-17,DISPOSABLE THEATRE DRAPES WIPES,Musculo-Skeletal,NHS LOGISTICS,1018142596,1.42,
Department of Health,Salisbury NHS Foundation Trust,31-Oct-17,TISSUES HAND TOWELS & TOILET PAPER,Surgery,NHS LOGISTICS,1018142596,0.74,
Department of Health,Salisbury NHS Foundation Trust,31-Oct-17,OTHER MEDICAL SUPPLIES,Clinical Support,NHS LOGISTICS,1018142596,7.47,
Department of Health,Salisbury NHS Foundation Trust,31-Oct-17,MEDSURGCONS - OTHER,Clinical Support,NHS LOGISTICS,1018142596,6.39,
Department of Health,Salisbury NHS Foundation Trust,31-Oct-17,MEDSURGCONS - OTHER,Surgery,NHS LOGISTICS,1018142596,2.04,
Department of Health,Salisbury NHS Foundation Trust,31-Oct-17,MED SURG EQUIP REP MAINT CLEANING,Clinical Support,NHS LOGISTICS,1018142596,63.96,
Department of Health,Salisbury NHS Foundation Trust,31-Oct-17,PATIENT APPLIANCES,Clinical Support,NHS LOGISTICS,1018142596,5,
Department of Health,Salisbury NHS Foundation Trust,31-Oct-17,LAB EQUIP-LABORATORY APPARATUS,Clinical Support,NHS LOGISTICS,1018142596,3.79,
Department of Health,Salisbury NHS Foundation Trust,31-Oct-17,LAB EQUIP-LABORATORY APPARATUS,Clinical Support,NHS LOGISTICS,1018142596,89.2,
Department of Health,Salisbury NHS Foundation Trust,31-Oct-17,LAB EQUIP-ANALYSERS,Clinical Support,NHS LOGISTICS,1018142596,7.62,
Department of Health,Salisbury NHS Foundation Trust,31-Oct-17,LAB EQUIP-LABORATORY APPARATUS,Clinical Support,NHS LOGISTICS,1018142596,2.58,
Department of Health,Salisbury NHS Foundation Trust,31-Oct-17,LAB EQUIP-LABORATORY APPARATUS,Clinical Support,NHS LOGISTICS,1018142596,149.73,
Department of Health,Salisbury NHS Foundation Trust,31-Oct-17,LAB EQUIP-LABORATORY APPARATUS,Clinical Support,NHS LOGISTICS,1018142596,2.28,
Department of Health,Salisbury NHS Foundation Trust,31-Oct-17,LAB EQUIP-LABORATORY APPARATUS,Clinical Support,NHS LOGISTICS,1018142596,18.84,
Department of Health,Salisbury NHS Foundation Trust,31-Oct-17,LAB EQUIP-ANALYSERS,Clinical Support,NHS LOGISTICS,1018142596,2.04,
Department of Health,Salisbury NHS Foundation Trust,31-Oct-17,COOKING & KITCHEN UTENSILS,Clinical Support,NHS LOGISTICS,1018142596,0.76,
Department of Health,Salisbury NHS Foundation Trust,31-Oct-17,LAB EQUIP-LABORATORY APPARATUS,Clinical Support,NHS LOGISTICS,1018142596,18.34,
Department of Health,Salisbury NHS Foundation Trust,31-Oct-17,OTHER MEDICAL SUPPLIES,Clinical Support,NHS LOGISTICS,1018142596,63.7,
Department of Health,Salisbury NHS Foundation Trust,31-Oct-17,LAB EQUIP-LABORATORY APPARATUS,Medical,NHS LOGISTICS,1018142596,3.68,
Department of Health,Salisbury NHS Foundation Trust,31-Oct-17,LAB EQUIP-LABORATORY APPARATUS,Medical,NHS LOGISTICS,1018142596,5.8,
Department of Health,Salisbury NHS Foundation Trust,31-Oct-17,DRESSINGS - PRE STERILE,Medical,NHS LOGISTICS,1018142596,4.63,
Department of Health,Salisbury NHS Foundation Trust,31-Oct-17,OTHER MEDICAL SUPPLIES,Medical,NHS LOGISTICS,1018142596,1.78,
Department of Health,Salisbury NHS Foundation Trust,31-Oct-17,MEDSURGCONS - OTHER,Medical,NHS LOGISTICS,1018142596,1.36,
Department of Health,Salisbury NHS Foundation Trust,31-Oct-17,BAGS SACKS - OTHER,Facilities,NHS LOGISTICS,1018142596,17.5,
Department of Health,Salisbury NHS Foundation Trust,31-Oct-17,BAGS SACKS - OTHER,Facilities,NHS LOGISTICS,1018142596,5.34,
Department of Health,Salisbury NHS Foundation Trust,31-Oct-17,LIQUID REFRESHMENTS,Facilities,NHS LOGISTICS,1018142596,1.56,
Department of Health,Salisbury NHS Foundation Trust,31-Oct-17,CLEANING MATERIALS PRODUCTS SUNDRIES,Facilities,NHS LOGISTICS,1018142596,13.23,
Department of Health,Salisbury NHS Foundation Trust,31-Oct-17,CLEANING MATERIALS PRODUCTS SUNDRIES,Facilities,NHS LOGISTICS,1018142596,5.5,
Department of Health,Salisbury NHS Foundation Trust,31-Oct-17,DISPOSABLE THEATRE DRAPES WIPES,Facilities,NHS LOGISTICS,1018142596,56.64,
Department of Health,Salisbury NHS Foundation Trust,31-Oct-17,CLEANING MATERIALS PRODUCTS SUNDRIES,Facilities,NHS LOGISTICS,1018142596,5.1,
Department of Health,Salisbury NHS Foundation Trust,31-Oct-17,CLEANING MATERIALS PRODUCTS SUNDRIES,Facilities,NHS LOGISTICS,1018142596,0.86,
Department of Health,Salisbury NHS Foundation Trust,31-Oct-17,CLEANING MATERIALS PRODUCTS SUNDRIES,Facilities,NHS LOGISTICS,1018142596,2.88,
Department of Health,Salisbury NHS Foundation Trust,31-Oct-17,CLEANING MATERIALS PRODUCTS SUNDRIES,Facilities,NHS LOGISTICS,1018142596,17.04,
Department of Health,Salisbury NHS Foundation Trust,31-Oct-17,DISPOSABLE THEATRE DRAPES WIPES,Facilities,NHS LOGISTICS,1018142596,18.24,
Department of Health,Salisbury NHS Foundation Trust,31-Oct-17,TISSUES HAND TOWELS & TOILET PAPER,Medicine,NHS LOGISTICS,1018142596,0.5,
Department of Health,Salisbury NHS Foundation Trust,31-Oct-17,OTHER MEDICAL SUPPLIES,Medicine,NHS LOGISTICS,1018142596,0.38,
Department of Health,Salisbury NHS Foundation Trust,31-Oct-17,PATIENT APPLIANCES,Medicine,NHS LOGISTICS,1018142596,0.88,
Department of Health,Salisbury NHS Foundation Trust,31-Oct-17,TISSUES HAND TOWELS & TOILET PAPER,Medicine,NHS LOGISTICS,1018142596,0.07,
Department of Health,Salisbury NHS Foundation Trust,31-Oct-17,CLEANING MATERIALS PRODUCTS SUNDRIES,Facilities,NHS LOGISTICS,1018142596,1.25,
Department of Health,Salisbury NHS Foundation Trust,31-Oct-17,CLEANING MATERIALS PRODUCTS SUNDRIES,Facilities,NHS LOGISTICS,1018142596,2.88,
Department of Health,Salisbury NHS Foundation Trust,31-Oct-17,TOILETRIES PERSONAL HYGIENE PRODUCTS,Medicine,NHS LOGISTICS,1018142596,0.62,
Department of Health,Salisbury NHS Foundation Trust,31-Oct-17,TISSUES HAND TOWELS & TOILET PAPER,Medicine,NHS LOGISTICS,1018142596,0.5,
Department of Health,Salisbury NHS Foundation Trust,31-Oct-17,CLEANING MATERIALS PRODUCTS SUNDRIES,Medicine,NHS LOGISTICS,1018142596,1.11,
Department of Health,Salisbury NHS Foundation Trust,31-Oct-17,DRESSINGS - PRE STERILE,Medicine,NHS LOGISTICS,1018142596,3.27,
Department of Health,Salisbury NHS Foundation Trust,31-Oct-17,OTHER MEDICAL SUPPLIES,Medicine,NHS LOGISTICS,1018142596,0.38,
Department of Health,Salisbury NHS Foundation Trust,31-Oct-17,PATIENT APPLIANCES,Medicine,NHS LOGISTICS,1018142596,0.67,
Department of Health,Salisbury NHS Foundation Trust,31-Oct-17,MEDSURGCONS - OTHER,Medicine,NHS LOGISTICS,1018142596,11.96,
Department of Health,Salisbury NHS Foundation Trust,31-Oct-17,TISSUES HAND TOWELS & TOILET PAPER,Medicine,NHS LOGISTICS,1018142596,0.14,
Department of Health,Salisbury NHS Foundation Trust,31-Oct-17,MEDSURGCONS - OTHER,Medicine,NHS LOGISTICS,1018142596,0.98,
Department of Health,Salisbury NHS Foundation Trust,31-Oct-17,PATIENT APPLIANCES,Medicine,NHS LOGISTICS,1018142596,0.67,
Department of Health,Salisbury NHS Foundation Trust,31-Oct-17,PATIENT APPLIANCES,Medicine,NHS LOGISTICS,1018142596,0.67,
Department of Health,Salisbury NHS Foundation Trust,31-Oct-17,PATIENT APPLIANCES,Medicine,NHS LOGISTICS,1018142596,0.67,
Department of Health,Salisbury NHS Foundation Trust,31-Oct-17,PATIENT APPLIANCES,Medicine,NHS LOGISTICS,1018142596,0.88,
Department of Health,Salisbury NHS Foundation Trust,31-Oct-17,MED SURG EQUIP REP MAINT CLEANING,Clinical Support,NHS LOGISTICS,1018142596,22.41,
Department of Health,Salisbury NHS Foundation Trust,31-Oct-17,TISSUES HAND TOWELS & TOILET PAPER,Medicine,NHS LOGISTICS,1018142596,0.25,
Department of Health,Salisbury NHS Foundation Trust,31-Oct-17,DRESSINGS - PRE STERILE,Medicine,NHS LOGISTICS,1018142596,3.27,
Department of Health,Salisbury NHS Foundation Trust,31-Oct-17,DRESSINGS - PRE STERILE,Musculo-Skeletal,NHS LOGISTICS,1018142596,0.36,
Department of Health,Salisbury NHS Foundation Trust,31-Oct-17,DRESSINGS - PRE STERILE,Musculo-Skeletal,NHS LOGISTICS,1018142596,1.74,
Department of Health,Salisbury NHS Foundation Trust,31-Oct-17,TISSUES HAND TOWELS & TOILET PAPER,Musculo-Skeletal,NHS LOGISTICS,1018142596,0.5,
Department of Health,Salisbury NHS Foundation Trust,31-Oct-17,DRESSINGS - PRE STERILE,Musculo-Skeletal,NHS LOGISTICS,1018142596,1.88,
Department of Health,Salisbury NHS Foundation Trust,31-Oct-17,DRESSINGS - PRE STERILE,Musculo-Skeletal,NHS LOGISTICS,1018142596,0.54,
Department of Health,Salisbury NHS Foundation Trust,31-Oct-17,DISPOSABLE THEATRE DRAPES WIPES,Medicine,NHS LOGISTICS,1018142596,2.13,
Department of Health,Salisbury NHS Foundation Trust,31-Oct-17,SURGICAL INSTRUMENTS: GENERAL,Surgery,NHS LOGISTICS,1018142596,28.27,
Department of Health,Salisbury NHS Foundation Trust,31-Oct-17,BAGS SACKS - OTHER,Surgery,NHS LOGISTICS,1018142596,2.09,
Department of Health,Salisbury NHS Foundation Trust,31-Oct-17,DRESSINGS - PRE STERILE,Surgery,NHS LOGISTICS,1018142596,0.78,
Department of Health,Salisbury NHS Foundation Trust,31-Oct-17,DRESSINGS - PRE STERILE,Surgery,NHS LOGISTICS,1018142596,1.89,
Department of Health,Salisbury NHS Foundation Trust,31-Oct-17,DRESSINGS - PRE STERILE,Surgery,NHS LOGISTICS,1018142596,0.76,
Department of Health,Salisbury NHS Foundation Trust,31-Oct-17,SURGICAL INSTRUMENTS: GENERAL,Surgery,NHS LOGISTICS,1018142596,17.18,
Department of Health,Salisbury NHS Foundation Trust,31-Oct-17,MEDSURGCONS - OTHER,Surgery,NHS LOGISTICS,1018142596,3.91,
Department of Health,Salisbury NHS Foundation Trust,31-Oct-17,DRUGS,Surgery,NHS LOGISTICS,1018142596,10.98,
Department of Health,Salisbury NHS Foundation Trust,31-Oct-17,CLEANING MATERIALS PRODUCTS SUNDRIES,Surgery,NHS LOGISTICS,1018142596,0.46,
Department of Health,Salisbury NHS Foundation Trust,31-Oct-17,DRESSINGS - PRE STERILE,Musculo-Skeletal,NHS LOGISTICS,1018142596,16.36,
Department of Health,Salisbury NHS Foundation Trust,31-Oct-17,DRESSINGS - PRE STERILE,Musculo-Skeletal,NHS LOGISTICS,1018142596,27,
Department of Health,Salisbury NHS Foundation Trust,31-Oct-17,DRESSINGS - PRE STERILE,Musculo-Skeletal,NHS LOGISTICS,1018142596,30.36,
Department of Health,Salisbury NHS Foundation Trust,31-Oct-17,DRESSINGS - PRE STERILE,Musculo-Skeletal,NHS LOGISTICS,1018142596,35.94,
Department of Health,Salisbury NHS Foundation Trust,31-Oct-17,DISPOSABLE THEATRE DRAPES WIPES,Medicine,NHS LOGISTICS,1018142596,1.42,
Department of Health,Salisbury NHS Foundation Trust,31-Oct-17,OTHER MEDICAL SUPPLIES,Surgery,NHS LOGISTICS,1018142596,24.85,
Department of Health,Salisbury NHS Foundation Trust,31-Oct-17,OTHER MEDICAL SUPPLIES,Surgery,NHS LOGISTICS,1018142596,37.27,
Department of Health,Salisbury NHS Foundation Trust,31-Oct-17,OTHER MEDICAL SUPPLIES,Surgery,NHS LOGISTICS,1018142596,24.85,
Department of Health,Salisbury NHS Foundation Trust,31-Oct-17,PAPER ITEMS GENERAL STATIONERY SUNDRIES,Clinical Support,NHS LOGISTICS,1018142596,17.5,
Department of Health,Salisbury NHS Foundation Trust,31-Oct-17,PAPER ITEMS GENERAL STATIONERY SUNDRIES,Clinical Support,NHS LOGISTICS,1018142596,3.48,
Department of Health,Salisbury NHS Foundation Trust,31-Oct-17,PAPER ITEMS GENERAL STATIONERY SUNDRIES,Clinical Support,NHS LOGISTICS,1018142596,34.83,
Department of Health,Salisbury NHS Foundation Trust,31-Oct-17,PAPER ITEMS GENERAL STATIONERY SUNDRIES,Clinical Support,NHS LOGISTICS,1018142596,16.9,
Department of Health,Salisbury NHS Foundation Trust,31-Oct-17,PAPER ITEMS GENERAL STATIONERY SUNDRIES,Clinical Support,NHS LOGISTICS,1018142596,22.75,
Department of Health,Salisbury NHS Foundation Trust,31-Oct-17,TISSUES HAND TOWELS & TOILET PAPER,Clinical Support,NHS LOGISTICS,1018142596,0.5,
Department of Health,Salisbury NHS Foundation Trust,31-Oct-17,DRESSINGS - PRE STERILE,Clinical Support,NHS LOGISTICS,1018142596,3.27,
Department of Health,Salisbury NHS Foundation Trust,31-Oct-17,MED SURG EQUIP REP MAINT CLEANING,Clinical Support,NHS LOGISTICS,1018142596,43.71,
Department of Health,Salisbury NHS Foundation Trust,31-Oct-17,TISSUES HAND TOWELS & TOILET PAPER,Clinical Support,NHS LOGISTICS,1018142596,0.23,
Department of Health,Salisbury NHS Foundation Trust,31-Oct-17,OTHER MEDICAL SUPPLIES,Clinical Support,NHS LOGISTICS,1018142596,0.38,
Department of Health,Salisbury NHS Foundation Trust,31-Oct-17,DRESSINGS - PRE STERILE,Clinical Support,NHS LOGISTICS,1018142596,2.22,
Department of Health,Salisbury NHS Foundation Trust,31-Oct-17,OTHER MEDICAL SUPPLIES,Clinical Support,NHS LOGISTICS,1018142596,29.99,
Department of Health,Salisbury NHS Foundation Trust,31-Oct-17,SURGICAL INSTRUMENTS: GENERAL,Surgery,NHS LOGISTICS,1018142596,114.68,
Department of Health,Salisbury NHS Foundation Trust,31-Oct-17,SURGICAL INSTRUMENTS: GENERAL,Surgery,NHS LOGISTICS,1018142596,120.62,
Department of Health,Salisbury NHS Foundation Trust,31-Oct-17,ELECTRICAL EQUIPMENT x,Medicine,NHS LOGISTICS,1018142596,1.25,
Department of Health,Salisbury NHS Foundation Trust,31-Oct-17,M & S EQUIPELECTEQUIPINST - OTHER,Clinical Support,NHS LOGISTICS,1018142596,30.53,
Department of Health,Salisbury NHS Foundation Trust,31-Oct-17,MEDSURGCONS - OTHER,Clinical Support,NHS LOGISTICS,1018142596,0.98,
Department of Health,Salisbury NHS Foundation Trust,31-Oct-17,ANAESTHETIC EQUIPMENT ACCESSORIES,Clinical Support,NHS LOGISTICS,1018142596,0.52,
Department of Health,Salisbury NHS Foundation Trust,31-Oct-17,TUBES,Clinical Support,NHS LOGISTICS,1018142596,1.37,
Department of Health,Salisbury NHS Foundation Trust,31-Oct-17,DRESSINGS - PRE STERILE,Clinical Support,NHS LOGISTICS,1018142596,0.44,
Department of Health,Salisbury NHS Foundation Trust,31-Oct-17,NON DISPOSABLE BED LINEN,Clinical Support,NHS LOGISTICS,1018142596,2.37,
Department of Health,Salisbury NHS Foundation Trust,31-Oct-17,MISCELLANEOUS CONSUMABLE ITEMS,Clinical Support,NHS LOGISTICS,1018142596,4.8,
Department of Health,Salisbury NHS Foundation Trust,31-Oct-17,ANAESTHETIC EQUIPMENT ACCESSORIES,Musculo-Skeletal,NHS LOGISTICS,1018142596,7.57,
Department of Health,Salisbury NHS Foundation Trust,31-Oct-17,OTHER MEDICAL SUPPLIES,Clinical Support,NHS LOGISTICS,1018142596,0.38,
Department of Health,Salisbury NHS Foundation Trust,31-Oct-17,PATIENT APPLIANCES,Clinical Support,NHS LOGISTICS,1018142596,0.86,
Department of Health,Salisbury NHS Foundation Trust,31-Oct-17,DRESSINGS - PRE STERILE,Medicine,NHS LOGISTICS,1018142596,3.01,
Department of Health,Salisbury NHS Foundation Trust,31-Oct-17,TOILETRIES PERSONAL HYGIENE PRODUCTS,Medicine,NHS LOGISTICS,1018142596,1.85,
Department of Health,Salisbury NHS Foundation Trust,31-Oct-17,PATIENT APPLIANCES,Medicine,NHS LOGISTICS,1018142596,4.7,
Department of Health,Salisbury NHS Foundation Trust,31-Oct-17,DRESSINGS - PRE STERILE,Medicine,NHS LOGISTICS,1018142596,3.27,
Department of Health,Salisbury NHS Foundation Trust,31-Oct-17,MEDSURGCONS - OTHER,Medicine,NHS LOGISTICS,1018142596,0.98,
Department of Health,Salisbury NHS Foundation Trust,31-Oct-17,ANAESTHETIC EQUIPMENT ACCESSORIES,Medicine,NHS LOGISTICS,1018142596,11.29,
Department of Health,Salisbury NHS Foundation Trust,31-Oct-17,PATIENT APPLIANCES,Medicine,NHS LOGISTICS,1018142596,0.81,
Department of Health,Salisbury NHS Foundation Trust,31-Oct-17,PATIENT APPLIANCES,Medicine,NHS LOGISTICS,1018142596,0.81,
Department of Health,Salisbury NHS Foundation Trust,31-Oct-17,PATIENT APPLIANCES,Medicine,NHS LOGISTICS,1018142596,0.81,
Department of Health,Salisbury NHS Foundation Trust,31-Oct-17,OTHER MEDICAL SUPPLIES,Medicine,NHS LOGISTICS,1018142596,0.38,
Department of Health,Salisbury NHS Foundation Trust,31-Oct-17,DISPOSABLE THEATRE DRAPES WIPES,Medicine,NHS LOGISTICS,1018142596,1.42,
Department of Health,Salisbury NHS Foundation Trust,31-Oct-17,DRESSINGS - PRE STERILE,Medicine,NHS LOGISTICS,1018142596,2.56,
Department of Health,Salisbury NHS Foundation Trust,31-Oct-17,DENTAL SURGERY SUNDRIES,Musculo-Skeletal,NHS LOGISTICS,1018142596,1.62,
Department of Health,Salisbury NHS Foundation Trust,31-Oct-17,DRESSINGS - PRE STERILE,Clinical Support,NHS LOGISTICS,1018142596,30.81,
Department of Health,Salisbury NHS Foundation Trust,31-Oct-17,DRESSINGS - PRE STERILE,Clinical Support,NHS LOGISTICS,1018142596,22.68,
Department of Health,Salisbury NHS Foundation Trust,31-Oct-17,DRESSINGS - PRE STERILE,Clinical Support,NHS LOGISTICS,1018142596,7.3,
Department of Health,Salisbury NHS Foundation Trust,31-Oct-17,DRESSINGS - PRE STERILE,Clinical Support,NHS LOGISTICS,1018142596,2.35,
Department of Health,Salisbury NHS Foundation Trust,31-Oct-17,DRESSINGS - PRE STERILE,Clinical Support,NHS LOGISTICS,1018142596,10.48,
Department of Health,Salisbury NHS Foundation Trust,31-Oct-17,DRUGS,Clinical Support,NHS LOGISTICS,1018142596,9.35,
Department of Health,Salisbury NHS Foundation Trust,31-Oct-17,DRESSINGS - PRE STERILE,Clinical Support,NHS LOGISTICS,1018142596,35.53,
Department of Health,Salisbury NHS Foundation Trust,31-Oct-17,DRESSINGS - PRE STERILE,Clinical Support,NHS LOGISTICS,1018142596,5.6,
Department of Health,Salisbury NHS Foundation Trust,31-Oct-17,MEDSURGCONS - OTHER,Medicine,NHS LOGISTICS,1018142596,36.51,
Department of Health,Salisbury NHS Foundation Trust,31-Oct-17,FRUIT & VEGETABLES,Facilities,NHS LOGISTICS,1018142596,20.2,
Department of Health,Salisbury NHS Foundation Trust,31-Oct-17,FRUIT & VEGETABLES,Facilities,NHS LOGISTICS,1018142596,17.82,
Department of Health,Salisbury NHS Foundation Trust,31-Oct-17,BEVERAGES & AMBIENT FOOD,Facilities,NHS LOGISTICS,1018142596,3.61,
Department of Health,Salisbury NHS Foundation Trust,31-Oct-17,BEVERAGES & AMBIENT FOOD,Facilities,NHS LOGISTICS,1018142596,4.13,
Department of Health,Salisbury NHS Foundation Trust,31-Oct-17,BEVERAGES & AMBIENT FOOD,Facilities,NHS LOGISTICS,1018142596,3.61,
Department of Health,Salisbury NHS Foundation Trust,31-Oct-17,DISPOSABLE THEATRE DRAPES WIPES,Surgery,NHS LOGISTICS,1018142596,0.37,
Department of Health,Salisbury NHS Foundation Trust,31-Oct-17,BEVERAGES & AMBIENT FOOD,Surgery,NHS LOGISTICS,1018142596,2.16,
Department of Health,Salisbury NHS Foundation Trust,31-Oct-17,DRESSINGS - PRE STERILE,Surgery,NHS LOGISTICS,1018142596,3.6,
Department of Health,Salisbury NHS Foundation Trust,31-Oct-17,DRESSINGS - PRE STERILE,Surgery,NHS LOGISTICS,1018142596,3.27,
Department of Health,Salisbury NHS Foundation Trust,31-Oct-17,DRESSINGS - PRE STERILE,Surgery,NHS LOGISTICS,1018142596,3.39,
Department of Health,Salisbury NHS Foundation Trust,31-Oct-17,MEDSURGCONS - OTHER,Surgery,NHS LOGISTICS,1018142596,1.92,
Department of Health,Salisbury NHS Foundation Trust,31-Oct-17,DISPOSABLE THEATRE DRAPES WIPES,Surgery,NHS LOGISTICS,1018142596,2.4,
Department of Health,Salisbury NHS Foundation Trust,31-Oct-17,SURGICAL INSTRUMENTS: GENERAL,Surgery,NHS LOGISTICS,1018142596,1.2,
Department of Health,Salisbury NHS Foundation Trust,31-Oct-17,ANAESTHETIC EQUIPMENT ACCESSORIES,Surgery,NHS LOGISTICS,1018142596,11.29,
Department of Health,Salisbury NHS Foundation Trust,31-Oct-17,DRUGS,Surgery,NHS LOGISTICS,1018142596,1.87,
Department of Health,Salisbury NHS Foundation Trust,31-Oct-17,OTHER MEDICAL SUPPLIES,Surgery,NHS LOGISTICS,1018142596,2.26,
Department of Health,Salisbury NHS Foundation Trust,31-Oct-17,MEDSURGCONS - OTHER,Surgery,NHS LOGISTICS,1018142596,2.05,
Department of Health,Salisbury NHS Foundation Trust,31-Oct-17,DRUGS,Surgery,NHS LOGISTICS,1018142596,3.37,
Department of Health,Salisbury NHS Foundation Trust,31-Oct-17,BEVERAGES & AMBIENT FOOD,Surgery,NHS LOGISTICS,1018142596,2.87,
Department of Health,Salisbury NHS Foundation Trust,31-Oct-17,BEVERAGES & AMBIENT FOOD,Surgery,NHS LOGISTICS,1018142596,0.17,
Department of Health,Salisbury NHS Foundation Trust,31-Oct-17,PATIENT APPLIANCES,Surgery,NHS LOGISTICS,1018142596,0.86,
Department of Health,Salisbury NHS Foundation Trust,31-Oct-17,OTHER MEDICAL SUPPLIES,Surgery,NHS LOGISTICS,1018142596,2.28,
Department of Health,Salisbury NHS Foundation Trust,31-Oct-17,OTHER MEDICAL SUPPLIES,Surgery,NHS LOGISTICS,1018142596,2.28,
Department of Health,Salisbury NHS Foundation Trust,31-Oct-17,DRESSINGS - PRE STERILE,Musculo-Skeletal,NHS LOGISTICS,1018142596,10.91,
Department of Health,Salisbury NHS Foundation Trust,31-Oct-17,DRESSINGS - PRE STERILE,Musculo-Skeletal,NHS LOGISTICS,1018142596,23.96,
Department of Health,Salisbury NHS Foundation Trust,31-Oct-17,SURGICAL INSTRUMENTS: GENERAL,Surgery,NHS LOGISTICS,1018142596,14.13,
Department of Health,Salisbury NHS Foundation Trust,31-Oct-17,DRUGS,Surgery,NHS LOGISTICS,1018142596,8.42,
Department of Health,Salisbury NHS Foundation Trust,31-Oct-17,MEDSURGCONS-LAPAROSCOPIC EQUIPMENT,Surgery,NHS LOGISTICS,1018142596,53.61,
Department of Health,Salisbury NHS Foundation Trust,31-Oct-17,M & S EQUIPELECTEQUIPINST - OTHER,Surgery,NHS LOGISTICS,1018142596,5.52,
Department of Health,Salisbury NHS Foundation Trust,31-Oct-17,LAB EQUIP-LABORATORY APPARATUS,Clinical Support,NHS LOGISTICS,1018142596,3.73,
Department of Health,Salisbury NHS Foundation Trust,31-Oct-17,LAB EQUIP-LABORATORY APPARATUS,Clinical Support,NHS LOGISTICS,1018142596,9.64,
Department of Health,Salisbury NHS Foundation Trust,31-Oct-17,BEVERAGES & AMBIENT FOOD,Facilities,NHS LOGISTICS,1018142596,3.54,
Department of Health,Salisbury NHS Foundation Trust,31-Oct-17,MEDSURGCONS - OTHER,Musculo-Skeletal,NHS LOGISTICS,1018142596,58.68,
Department of Health,Salisbury NHS Foundation Trust,31-Oct-17,TISSUES HAND TOWELS & TOILET PAPER,Clinical Support,NHS LOGISTICS,1018142596,2.87,
Department of Health,Salisbury NHS Foundation Trust,31-Oct-17,ADULTS HEARING AIDS,Surgery,NHS LOGISTICS,1018142596,213.57,
Department of Health,Salisbury NHS Foundation Trust,31-Oct-17,ADULTS HEARING AIDS,Surgery,NHS LOGISTICS,1018142596,533.92,
Department of Health,Salisbury NHS Foundation Trust,31-Oct-17,MEDSURGCONS - OTHER,Medicine,NHS LOGISTICS,1018142596,1175.52,
Department of Health,Salisbury NHS Foundation Trust,31-Oct-17,MEDSURGCONS - OTHER,Medicine,NHS LOGISTICS,1018142596,1175.52,
Department of Health,Salisbury NHS Foundation Trust,31-Oct-17,MEDSURGCONS - OTHER,Medicine,NHS LOGISTICS,1018142596,1175.52,
Department of Health,Salisbury NHS Foundation Trust,31-Oct-17,ADULTS HEARING AIDS,Surgery,NHS LOGISTICS,1018142596,141.5,
Department of Health,Salisbury NHS Foundation Trust,31-Oct-17,LAB EQUIP-LABORATORY APPARATUS,Clinical Support,NHS LOGISTICS,1018142596,12.82,
Department of Health,Salisbury NHS Foundation Trust,31-Oct-17,TUBES,Surgery,NHS LOGISTICS,1018142596,1.37,
Department of Health,Salisbury NHS Foundation Trust,31-Oct-17,OTHER MEDICAL SUPPLIES,Surgery,NHS LOGISTICS,1018142596,1.88,
Department of Health,Salisbury NHS Foundation Trust,31-Oct-17,MEDSURGCONS - OTHER,Surgery,NHS LOGISTICS,1018142596,11.96,
Department of Health,Salisbury NHS Foundation Trust,31-Oct-17,TISSUES HAND TOWELS & TOILET PAPER,Surgery,NHS LOGISTICS,1018142596,0.28,
Department of Health,Salisbury NHS Foundation Trust,31-Oct-17,DISPOSABLE THEATRE DRAPES WIPES,Surgery,NHS LOGISTICS,1018142596,1.42,
Department of Health,Salisbury NHS Foundation Trust,31-Oct-17,DRESSINGS - PRE STERILE,Surgery,NHS LOGISTICS,1018142596,1,
Department of Health,Salisbury NHS Foundation Trust,31-Oct-17,OTHER MEDICAL SUPPLIES,Surgery,NHS LOGISTICS,1018142596,0.75,
Department of Health,Salisbury NHS Foundation Trust,31-Oct-17,TISSUES HAND TOWELS & TOILET PAPER,Surgery,NHS LOGISTICS,1018142596,0.28,
Department of Health,Salisbury NHS Foundation Trust,31-Oct-17,DRESSINGS - PRE STERILE,Surgery,NHS LOGISTICS,1018142596,9.1,
Department of Health,Salisbury NHS Foundation Trust,31-Oct-17,DRESSINGS - PRE STERILE,Surgery,NHS LOGISTICS,1018142596,2.95,
Department of Health,Salisbury NHS Foundation Trust,31-Oct-17,M & S EQUIPELECTEQUIPINST - OTHER,Medicine,NHS LOGISTICS,1018142596,32.02,
Department of Health,Salisbury NHS Foundation Trust,31-Oct-17,CLEANING MATERIALS PRODUCTS SUNDRIES,Medicine,NHS LOGISTICS,1018142596,1.11,
Department of Health,Salisbury NHS Foundation Trust,31-Oct-17,DRESSINGS - PRE STERILE,Medicine,NHS LOGISTICS,1018142596,1.15,
Department of Health,Salisbury NHS Foundation Trust,31-Oct-17,OTHER MEDICAL SUPPLIES,Medicine,NHS LOGISTICS,1018142596,1.13,
Department of Health,Salisbury NHS Foundation Trust,31-Oct-17,PATIENT APPLIANCES,Medicine,NHS LOGISTICS,1018142596,0.67,
Department of Health,Salisbury NHS Foundation Trust,31-Oct-17,PATIENT APPLIANCES,Medicine,NHS LOGISTICS,1018142596,1.34,
Department of Health,Salisbury NHS Foundation Trust,31-Oct-17,TISSUES HAND TOWELS & TOILET PAPER,Medicine,NHS LOGISTICS,1018142596,0.21,
Department of Health,Salisbury NHS Foundation Trust,31-Oct-17,DISPOSABLE THEATRE DRAPES WIPES,Medicine,NHS LOGISTICS,1018142596,1.42,
Department of Health,Salisbury NHS Foundation Trust,31-Oct-17,DISPOSABLE THEATRE DRAPES WIPES,Medicine,NHS LOGISTICS,1018142596,1.54,
Department of Health,Salisbury NHS Foundation Trust,31-Oct-17,DRESSINGS - PRE STERILE,Medicine,NHS LOGISTICS,1018142596,3.27,
Department of Health,Salisbury NHS Foundation Trust,31-Oct-17,TUBES,Medicine,NHS LOGISTICS,1018142596,1.37,
Department of Health,Salisbury NHS Foundation Trust,31-Oct-17,NON DISPOSABLE BED LINEN,Medicine,NHS LOGISTICS,1018142596,10.55,
Department of Health,Salisbury NHS Foundation Trust,31-Oct-17,OTHER MEDICAL SUPPLIES,Medicine,NHS LOGISTICS,1018142596,2.23,
Department of Health,Salisbury NHS Foundation Trust,31-Oct-17,OTHER MEDICAL SUPPLIES,Medicine,NHS LOGISTICS,1018142596,0.38,
Department of Health,Salisbury NHS Foundation Trust,31-Oct-17,MEDSURGCONS - OTHER,Medicine,NHS LOGISTICS,1018142596,11.96,
Department of Health,Salisbury NHS Foundation Trust,31-Oct-17,TISSUES HAND TOWELS & TOILET PAPER,Medicine,NHS LOGISTICS,1018142596,0.14,
Department of Health,Salisbury NHS Foundation Trust,31-Oct-17,MED SURG EQUIP REP MAINT CLEANING,Medicine,NHS LOGISTICS,1018142596,14.94,
Department of Health,Salisbury NHS Foundation Trust,31-Oct-17,MED SURG EQUIP REP MAINT CLEANING,Medicine,NHS LOGISTICS,1018142596,2.19,
Department of Health,Salisbury NHS Foundation Trust,31-Oct-17,DRESSINGS - PRE STERILE,Medicine,NHS LOGISTICS,1018142596,1,
Department of Health,Salisbury NHS Foundation Trust,31-Oct-17,TUBES,Medicine,NHS LOGISTICS,1018142596,1.37,
Department of Health,Salisbury NHS Foundation Trust,31-Oct-17,SURGICAL INSTRUMENTS: GENERAL,Medicine,NHS LOGISTICS,1018142596,1.97,
Department of Health,Salisbury NHS Foundation Trust,31-Oct-17,OTHER MEDICAL SUPPLIES,Medicine,NHS LOGISTICS,1018142596,1.13,
Department of Health,Salisbury NHS Foundation Trust,31-Oct-17,PATIENT APPLIANCES,Medicine,NHS LOGISTICS,1018142596,0.88,
Department of Health,Salisbury NHS Foundation Trust,31-Oct-17,TISSUES HAND TOWELS & TOILET PAPER,Medicine,NHS LOGISTICS,1018142596,0.07,
Department of Health,Salisbury NHS Foundation Trust,31-Oct-17,DISPOSABLE THEATRE DRAPES WIPES,Medicine,NHS LOGISTICS,1018142596,0.71,
Department of Health,Salisbury NHS Foundation Trust,31-Oct-17,MEDSURGCONS - OTHER,Medicine,NHS LOGISTICS,1018142596,1.22,
Department of Health,Salisbury NHS Foundation Trust,31-Oct-17,DRESSINGS - PRE STERILE,Medicine,NHS LOGISTICS,1018142596,3.67,
Department of Health,Salisbury NHS Foundation Trust,31-Oct-17,ELECTRICAL EQUIPMENT x,Surgery,NHS LOGISTICS,1018142596,0.74,
Department of Health,Salisbury NHS Foundation Trust,31-Oct-17,MEDSURGCONS - OTHER,Surgery,NHS LOGISTICS,1018142596,5.8,
Department of Health,Salisbury NHS Foundation Trust,31-Oct-17,DRESSINGS - PRE STERILE,Surgery,NHS LOGISTICS,1018142596,6.53,
Department of Health,Salisbury NHS Foundation Trust,31-Oct-17,ANAESTHETIC EQUIPMENT ACCESSORIES,Surgery,NHS LOGISTICS,1018142596,0.39,
Department of Health,Salisbury NHS Foundation Trust,31-Oct-17,OTHER MEDICAL SUPPLIES,Surgery,NHS LOGISTICS,1018142596,3.77,
Department of Health,Salisbury NHS Foundation Trust,31-Oct-17,OTHER MEDICAL SUPPLIES,Surgery,NHS LOGISTICS,1018142596,4.47,
Department of Health,Salisbury NHS Foundation Trust,31-Oct-17,OTHER MEDICAL SUPPLIES,Surgery,NHS LOGISTICS,1018142596,4.47,
Department of Health,Salisbury NHS Foundation Trust,31-Oct-17,DRESSINGS - PRE STERILE,Surgery,NHS LOGISTICS,1018142596,1,
Department of Health,Salisbury NHS Foundation Trust,31-Oct-17,MEDSURGCONS - OTHER,Surgery,NHS LOGISTICS,1018142596,3.43,
Department of Health,Salisbury NHS Foundation Trust,31-Oct-17,OTHER MEDICAL SUPPLIES,Surgery,NHS LOGISTICS,1018142596,11.76,
Department of Health,Salisbury NHS Foundation Trust,31-Oct-17,OTHER MEDICAL SUPPLIES,Surgery,NHS LOGISTICS,1018142596,11.76,
Department of Health,Salisbury NHS Foundation Trust,31-Oct-17,OTHER MEDICAL SUPPLIES,Surgery,NHS LOGISTICS,1018142596,11.76,
Department of Health,Salisbury NHS Foundation Trust,31-Oct-17,OTHER MEDICAL SUPPLIES,Surgery,NHS LOGISTICS,1018142596,1.51,
Department of Health,Salisbury NHS Foundation Trust,31-Oct-17,DISPOSABLE THEATRE DRAPES WIPES,Surgery,NHS LOGISTICS,1018142596,1.42,
Department of Health,Salisbury NHS Foundation Trust,31-Oct-17,DRESSINGS - PRE STERILE,Medicine,NHS LOGISTICS,1018142596,3.01,
Department of Health,Salisbury NHS Foundation Trust,31-Oct-17,DRESSINGS - PRE STERILE,Medicine,NHS LOGISTICS,1018142596,3.27,
Department of Health,Salisbury NHS Foundation Trust,31-Oct-17,DRESSINGS - PRE STERILE,Medicine,NHS LOGISTICS,1018142596,3.39,
Department of Health,Salisbury NHS Foundation Trust,31-Oct-17,MEDSURGCONS - OTHER,Medicine,NHS LOGISTICS,1018142596,0.98,
Department of Health,Salisbury NHS Foundation Trust,31-Oct-17,TUBES,Medicine,NHS LOGISTICS,1018142596,1.37,
Department of Health,Salisbury NHS Foundation Trust,31-Oct-17,SURGICAL INSTRUMENTS: GENERAL,Medicine,NHS LOGISTICS,1018142596,1.97,
Department of Health,Salisbury NHS Foundation Trust,31-Oct-17,DRESSINGS - PRE STERILE,Medicine,NHS LOGISTICS,1018142596,4.96,
Department of Health,Salisbury NHS Foundation Trust,31-Oct-17,OTHER MEDICAL SUPPLIES,Medicine,NHS LOGISTICS,1018142596,1.37,
Department of Health,Salisbury NHS Foundation Trust,31-Oct-17,PATIENT APPLIANCES,Medicine,NHS LOGISTICS,1018142596,0.67,
Department of Health,Salisbury NHS Foundation Trust,31-Oct-17,PATIENT APPLIANCES,Medicine,NHS LOGISTICS,1018142596,0.67,
Department of Health,Salisbury NHS Foundation Trust,31-Oct-17,PATIENT APPLIANCES,Medicine,NHS LOGISTICS,1018142596,0.67,
Department of Health,Salisbury NHS Foundation Trust,31-Oct-17,SERVICES FROM NHS BODIES,Medicine,NHS LOGISTICS,1018142596,0.89,
Department of Health,Salisbury NHS Foundation Trust,31-Oct-17,DISPOSABLE THEATRE DRAPES WIPES,Medicine,NHS LOGISTICS,1018142596,0.71,
Department of Health,Salisbury NHS Foundation Trust,31-Oct-17,PATIENT APPLIANCES,Clinical Support,NHS LOGISTICS,1018142596,0.22,
Department of Health,Salisbury NHS Foundation Trust,31-Oct-17,MEDSURGCONS - OTHER,Clinical Support,NHS LOGISTICS,1018142596,96.45,
Department of Health,Salisbury NHS Foundation Trust,31-Oct-17,MEDSURGCONS - OTHER,Clinical Support,NHS LOGISTICS,1018142596,96.45,
Department of Health,Salisbury NHS Foundation Trust,31-Oct-17,DRESSINGS - PRE STERILE,Clinical Support,NHS LOGISTICS,1018142596,0.15,
Department of Health,Salisbury NHS Foundation Trust,31-Oct-17,TISSUES HAND TOWELS & TOILET PAPER,Clinical Support,NHS LOGISTICS,1018142596,0.74,
Department of Health,Salisbury NHS Foundation Trust,31-Oct-17,DRESSINGS - PRE STERILE,Clinical Support,NHS LOGISTICS,1018142596,1.59,
Department of Health,Salisbury NHS Foundation Trust,31-Oct-17,MEDSURGCONS - OTHER,Clinical Support,NHS LOGISTICS,1018142596,0.5,
Department of Health,Salisbury NHS Foundation Trust,31-Oct-17,MEDSURGCONS - OTHER,Clinical Support,NHS LOGISTICS,1018142596,0.31,
Department of Health,Salisbury NHS Foundation Trust,31-Oct-17,MEDSURGCONS - OTHER,Clinical Support,NHS LOGISTICS,1018142596,1.71,
Department of Health,Salisbury NHS Foundation Trust,31-Oct-17,OTHER MEDICAL SUPPLIES,Clinical Support,NHS LOGISTICS,1018142596,2.26,
Department of Health,Salisbury NHS Foundation Trust,31-Oct-17,MEDSURGCONS - OTHER,Clinical Support,NHS LOGISTICS,1018142596,2.66,
Department of Health,Salisbury NHS Foundation Trust,31-Oct-17,MEDSURGCONS - OTHER,Clinical Support,NHS LOGISTICS,1018142596,0.97,
Department of Health,Salisbury NHS Foundation Trust,31-Oct-17,BABY TEXTURE MODIFIED FOODS,Clinical Support,NHS LOGISTICS,1018142596,3.31,
Department of Health,Salisbury NHS Foundation Trust,31-Oct-17,M & S EQUIPELECTEQUIPINST - OTHER,Clinical Support,NHS LOGISTICS,1018142596,0.29,
Department of Health,Salisbury NHS Foundation Trust,31-Oct-17,DISPOSABLE THEATRE DRAPES WIPES,Clinical Support,NHS LOGISTICS,1018142596,1.42,
Department of Health,Salisbury NHS Foundation Trust,31-Oct-17,HEALTHCARE - WEAR,Clinical Support,NHS LOGISTICS,1018142596,60.41,
Department of Health,Salisbury NHS Foundation Trust,31-Oct-17,TISSUES HAND TOWELS & TOILET PAPER,Musculo-Skeletal,NHS LOGISTICS,1018142596,2.87,
Department of Health,Salisbury NHS Foundation Trust,31-Oct-17,DRESSINGS - PRE STERILE,Musculo-Skeletal,NHS LOGISTICS,1018142596,15.83,
Department of Health,Salisbury NHS Foundation Trust,31-Oct-17,DRESSINGS - PRE STERILE,Musculo-Skeletal,NHS LOGISTICS,1018142596,3.27,
Department of Health,Salisbury NHS Foundation Trust,31-Oct-17,DRESSINGS - PRE STERILE,Musculo-Skeletal,NHS LOGISTICS,1018142596,1.15,
Department of Health,Salisbury NHS Foundation Trust,31-Oct-17,DRESSINGS - PRE STERILE,Musculo-Skeletal,NHS LOGISTICS,1018142596,4.5,
Department of Health,Salisbury NHS Foundation Trust,31-Oct-17,DRESSINGS - PRE STERILE,Musculo-Skeletal,NHS LOGISTICS,1018142596,1.74,
Department of Health,Salisbury NHS Foundation Trust,31-Oct-17,DRESSINGS - PRE STERILE,Musculo-Skeletal,NHS LOGISTICS,1018142596,6.98,
Department of Health,Salisbury NHS Foundation Trust,31-Oct-17,DRESSINGS - PRE STERILE,Musculo-Skeletal,NHS LOGISTICS,1018142596,2.41,
Department of Health,Salisbury NHS Foundation Trust,31-Oct-17,OTHER MEDICAL SUPPLIES,Musculo-Skeletal,NHS LOGISTICS,1018142596,1.51,
Department of Health,Salisbury NHS Foundation Trust,31-Oct-17,PATIENT APPLIANCES,Musculo-Skeletal,NHS LOGISTICS,1018142596,0.67,
Department of Health,Salisbury NHS Foundation Trust,31-Oct-17,PATIENT APPLIANCES,Musculo-Skeletal,NHS LOGISTICS,1018142596,0.88,
Department of Health,Salisbury NHS Foundation Trust,31-Oct-17,TOILETRIES PERSONAL HYGIENE PRODUCTS,Musculo-Skeletal,NHS LOGISTICS,1018142596,0.83,
Department of Health,Salisbury NHS Foundation Trust,31-Oct-17,DISPOSABLE THEATRE DRAPES WIPES,Musculo-Skeletal,NHS LOGISTICS,1018142596,2.84,
Department of Health,Salisbury NHS Foundation Trust,31-Oct-17,TISSUES HAND TOWELS & TOILET PAPER,Musculo-Skeletal,NHS LOGISTICS,1018142596,0.5,
Department of Health,Salisbury NHS Foundation Trust,31-Oct-17,OTHER MEDICAL SUPPLIES,Musculo-Skeletal,NHS LOGISTICS,1018142596,0.38,
Department of Health,Salisbury NHS Foundation Trust,31-Oct-17,SERVICES FROM NHS BODIES,Musculo-Skeletal,NHS LOGISTICS,1018142596,0.89,
Department of Health,Salisbury NHS Foundation Trust,31-Oct-17,DISPOSABLE THEATRE DRAPES WIPES,Musculo-Skeletal,NHS LOGISTICS,1018142596,0.71,
Department of Health,Salisbury NHS Foundation Trust,31-Oct-17,MEDSURGCONS - OTHER,Surgery,NHS LOGISTICS,1018142596,4.1,
Department of Health,Salisbury NHS Foundation Trust,31-Oct-17,MEDSURGCONS - OTHER,Surgery,NHS LOGISTICS,1018142596,4.1,
Department of Health,Salisbury NHS Foundation Trust,31-Oct-17,MEDSURGCONS - OTHER,Surgery,NHS LOGISTICS,1018142596,4.1,
Department of Health,Salisbury NHS Foundation Trust,31-Oct-17,TISSUES HAND TOWELS & TOILET PAPER,Clinical Support,NHS LOGISTICS,1018142596,0.5,
Department of Health,Salisbury NHS Foundation Trust,31-Oct-17,MED SURG EQUIP REP MAINT CLEANING,Clinical Support,NHS LOGISTICS,1018142596,43.71,
Department of Health,Salisbury NHS Foundation Trust,31-Oct-17,M & S EQUIPELECTEQUIPINST - OTHER,Clinical Support,NHS LOGISTICS,1018142596,33.96,
Department of Health,Salisbury NHS Foundation Trust,31-Oct-17,M & S EQUIPELECTEQUIPINST - OTHER,Clinical Support,NHS LOGISTICS,1018142596,25.77,
Department of Health,Salisbury NHS Foundation Trust,31-Oct-17,TISSUES HAND TOWELS & TOILET PAPER,Clinical Support,NHS LOGISTICS,1018142596,0.16,
Department of Health,Salisbury NHS Foundation Trust,31-Oct-17,HEALTHCARE - WEAR,Clinical Support,NHS LOGISTICS,1018142596,6.39,
Department of Health,Salisbury NHS Foundation Trust,31-Oct-17,OTHER MEDICAL SUPPLIES,Clinical Support,NHS LOGISTICS,1018142596,1.37,
Department of Health,Salisbury NHS Foundation Trust,31-Oct-17,OTHER MEDICAL SUPPLIES,Clinical Support,NHS LOGISTICS,1018142596,14.99,
Department of Health,Salisbury NHS Foundation Trust,31-Oct-17,DISPOSABLE THEATRE DRAPES WIPES,Clinical Support,NHS LOGISTICS,1018142596,0.71,
Department of Health,Salisbury NHS Foundation Trust,31-Oct-17,MEDSURGCONS - OTHER,Clinical Support,NHS LOGISTICS,1018142596,3.07,
Department of Health,Salisbury NHS Foundation Trust,31-Oct-17,DISPOSABLE THEATRE DRAPES WIPES,Clinical Support,NHS LOGISTICS,1018142596,0.71,
Department of Health,Salisbury NHS Foundation Trust,31-Oct-17,TOILETRIES PERSONAL HYGIENE PRODUCTS,Musculo-Skeletal,NHS LOGISTICS,1018142596,0.31,
Department of Health,Salisbury NHS Foundation Trust,31-Oct-17,PATIENT APPLIANCES,Musculo-Skeletal,NHS LOGISTICS,1018142596,4.27,
Department of Health,Salisbury NHS Foundation Trust,31-Oct-17,PATIENT APPLIANCES,Musculo-Skeletal,NHS LOGISTICS,1018142596,4.27,
Department of Health,Salisbury NHS Foundation Trust,31-Oct-17,TISSUES HAND TOWELS & TOILET PAPER,Musculo-Skeletal,NHS LOGISTICS,1018142596,0.08,
Department of Health,Salisbury NHS Foundation Trust,31-Oct-17,OTHER MEDICAL SUPPLIES,Musculo-Skeletal,NHS LOGISTICS,1018142596,0.38,
Department of Health,Salisbury NHS Foundation Trust,31-Oct-17,DRESSINGS - PRE STERILE,Surgery,NHS LOGISTICS,1018142596,8.33,
Department of Health,Salisbury NHS Foundation Trust,31-Oct-17,DRESSINGS - PRE STERILE,Surgery,NHS LOGISTICS,1018142596,0.78,
Department of Health,Salisbury NHS Foundation Trust,31-Oct-17,TISSUES HAND TOWELS & TOILET PAPER,Surgery,NHS LOGISTICS,1018142596,0.37,
Department of Health,Salisbury NHS Foundation Trust,31-Oct-17,TISSUES HAND TOWELS & TOILET PAPER,Surgery,NHS LOGISTICS,1018142596,0.99,
Department of Health,Salisbury NHS Foundation Trust,31-Oct-17,MEDSURGCONS - OTHER,Surgery,NHS LOGISTICS,1018142596,0.98,
Department of Health,Salisbury NHS Foundation Trust,31-Oct-17,TISSUES HAND TOWELS & TOILET PAPER,Surgery,NHS LOGISTICS,1018142596,0.08,
Department of Health,Salisbury NHS Foundation Trust,31-Oct-17,DRESSINGS - PRE STERILE,Surgery,NHS LOGISTICS,1018142596,1.21,
Department of Health,Salisbury NHS Foundation Trust,31-Oct-17,DRESSINGS - PRE STERILE,Musculo-Skeletal,NHS LOGISTICS,1018142596,12.48,
Department of Health,Salisbury NHS Foundation Trust,31-Oct-17,PATIENTS BABY WEAR,Medicine,NHS LOGISTICS,1018142596,3.21,
Department of Health,Salisbury NHS Foundation Trust,31-Oct-17,PATIENTS BABY WEAR,Medicine,NHS LOGISTICS,1018142596,2.98,
Department of Health,Salisbury NHS Foundation Trust,31-Oct-17,CLEANING MATERIALS PRODUCTS SUNDRIES,Medicine,NHS LOGISTICS,1018142596,1.11,
Department of Health,Salisbury NHS Foundation Trust,31-Oct-17,MEDSURGCONS - OTHER,Medicine,NHS LOGISTICS,1018142596,0.98,
Department of Health,Salisbury NHS Foundation Trust,31-Oct-17,TUBES,Medicine,NHS LOGISTICS,1018142596,1.37,
Department of Health,Salisbury NHS Foundation Trust,31-Oct-17,HEALTHCARE - WEAR,Medicine,NHS LOGISTICS,1018142596,6.39,
Department of Health,Salisbury NHS Foundation Trust,31-Oct-17,PATIENT APPLIANCES,Medicine,NHS LOGISTICS,1018142596,0.67,
Department of Health,Salisbury NHS Foundation Trust,31-Oct-17,DISPOSABLE THEATRE DRAPES WIPES,Medicine,NHS LOGISTICS,1018142596,0.71,
Department of Health,Salisbury NHS Foundation Trust,31-Oct-17,TISSUES HAND TOWELS & TOILET PAPER,Surgery,NHS LOGISTICS,1018142596,0.25,
Department of Health,Salisbury NHS Foundation Trust,31-Oct-17,TISSUES HAND TOWELS & TOILET PAPER,Surgery,NHS LOGISTICS,1018142596,0.23,
Department of Health,Salisbury NHS Foundation Trust,31-Oct-17,ELECTRICAL EQUIPMENT x,Medicine,NHS LOGISTICS,1018142596,0.77,
Department of Health,Salisbury NHS Foundation Trust,31-Oct-17,TISSUES HAND TOWELS & TOILET PAPER,Medicine,NHS LOGISTICS,1018142596,2.13,
Department of Health,Salisbury NHS Foundation Trust,31-Oct-17,DRESSINGS - PRE STERILE,Medicine,NHS LOGISTICS,1018142596,6.53,
Department of Health,Salisbury NHS Foundation Trust,31-Oct-17,DRESSINGS - PRE STERILE,Medicine,NHS LOGISTICS,1018142596,1,
Department of Health,Salisbury NHS Foundation Trust,31-Oct-17,ANAESTHETIC EQUIPMENT ACCESSORIES,Medicine,NHS LOGISTICS,1018142596,0.25,
Department of Health,Salisbury NHS Foundation Trust,31-Oct-17,OTHER MEDICAL SUPPLIES,Medicine,NHS LOGISTICS,1018142596,0.75,
Department of Health,Salisbury NHS Foundation Trust,31-Oct-17,OTHER MEDICAL SUPPLIES,Medicine,NHS LOGISTICS,1018142596,1.19,
Department of Health,Salisbury NHS Foundation Trust,31-Oct-17,TISSUES HAND TOWELS & TOILET PAPER,Medicine,NHS LOGISTICS,1018142596,0.07,
Department of Health,Salisbury NHS Foundation Trust,31-Oct-17,DISPOSABLE THEATRE DRAPES WIPES,Medicine,NHS LOGISTICS,1018142596,0.79,
Department of Health,Salisbury NHS Foundation Trust,31-Oct-17,DRESSINGS - PRE STERILE,Musculo-Skeletal,NHS LOGISTICS,1018142596,1.4,
Department of Health,Salisbury NHS Foundation Trust,31-Oct-17,DRESSINGS - PRE STERILE,Musculo-Skeletal,NHS LOGISTICS,1018142596,1.98,
Department of Health,Salisbury NHS Foundation Trust,31-Oct-17,TISSUES HAND TOWELS & TOILET PAPER,Musculo-Skeletal,NHS LOGISTICS,1018142596,0.25,
Department of Health,Salisbury NHS Foundation Trust,31-Oct-17,DISPOSABLE BED LINEN,Musculo-Skeletal,NHS LOGISTICS,1018142596,4.28,
Department of Health,Salisbury NHS Foundation Trust,31-Oct-17,DRESSINGS - PRE STERILE,Musculo-Skeletal,NHS LOGISTICS,1018142596,1.2,
Department of Health,Salisbury NHS Foundation Trust,31-Oct-17,DRESSINGS - PRE STERILE,Musculo-Skeletal,NHS LOGISTICS,1018142596,6.01,
Department of Health,Salisbury NHS Foundation Trust,31-Oct-17,DRESSINGS - PRE STERILE,Musculo-Skeletal,NHS LOGISTICS,1018142596,5.57,
Department of Health,Salisbury NHS Foundation Trust,31-Oct-17,DRESSINGS - PRE STERILE,Musculo-Skeletal,NHS LOGISTICS,1018142596,4.66,
Department of Health,Salisbury NHS Foundation Trust,31-Oct-17,DRESSINGS - PRE STERILE,Musculo-Skeletal,NHS LOGISTICS,1018142596,4.66,
Department of Health,Salisbury NHS Foundation Trust,31-Oct-17,DRESSINGS - PRE STERILE,Musculo-Skeletal,NHS LOGISTICS,1018142596,5.01,
Department of Health,Salisbury NHS Foundation Trust,31-Oct-17,DRESSINGS - PRE STERILE,Musculo-Skeletal,NHS LOGISTICS,1018142596,5.01,
Department of Health,Salisbury NHS Foundation Trust,31-Oct-17,DRESSINGS - PRE STERILE,Musculo-Skeletal,NHS LOGISTICS,1018142596,2.06,
Department of Health,Salisbury NHS Foundation Trust,31-Oct-17,DRUGS,Musculo-Skeletal,NHS LOGISTICS,1018142596,1.18,
Department of Health,Salisbury NHS Foundation Trust,31-Oct-17,DRESSINGS - PRE STERILE,Musculo-Skeletal,NHS LOGISTICS,1018142596,1.53,
Department of Health,Salisbury NHS Foundation Trust,31-Oct-17,DRESSINGS - PRE STERILE,Musculo-Skeletal,NHS LOGISTICS,1018142596,3.05,
Department of Health,Salisbury NHS Foundation Trust,31-Oct-17,DRESSINGS - PRE STERILE,Musculo-Skeletal,NHS LOGISTICS,1018142596,4.14,
Department of Health,Salisbury NHS Foundation Trust,31-Oct-17,DRESSINGS - PRE STERILE,Musculo-Skeletal,NHS LOGISTICS,1018142596,4.14,
Department of Health,Salisbury NHS Foundation Trust,31-Oct-17,DRESSINGS - PRE STERILE,Medicine,NHS LOGISTICS,1018142596,13.86,
Department of Health,Salisbury NHS Foundation Trust,31-Oct-17,DRESSINGS - PRE STERILE,Medicine,NHS LOGISTICS,1018142596,2.38,
Department of Health,Salisbury NHS Foundation Trust,31-Oct-17,PATIENT APPLIANCES,Medicine,NHS LOGISTICS,1018142596,11.75,
Department of Health,Salisbury NHS Foundation Trust,31-Oct-17,DRESSINGS - PRE STERILE,Medicine,NHS LOGISTICS,1018142596,3.27,
Department of Health,Salisbury NHS Foundation Trust,31-Oct-17,TUBES,Medicine,NHS LOGISTICS,1018142596,1.37,
Department of Health,Salisbury NHS Foundation Trust,31-Oct-17,MEDSURGCONS - OTHER,Medicine,NHS LOGISTICS,1018142596,0.08,
Department of Health,Salisbury NHS Foundation Trust,31-Oct-17,PATIENT APPLIANCES,Medicine,NHS LOGISTICS,1018142596,1.61,
Department of Health,Salisbury NHS Foundation Trust,31-Oct-17,PATIENT APPLIANCES,Medicine,NHS LOGISTICS,1018142596,1.61,
Department of Health,Salisbury NHS Foundation Trust,31-Oct-17,PATIENT APPLIANCES,Medicine,NHS LOGISTICS,1018142596,0.81,
Department of Health,Salisbury NHS Foundation Trust,31-Oct-17,PATIENT APPLIANCES,Medicine,NHS LOGISTICS,1018142596,0.81,
Department of Health,Salisbury NHS Foundation Trust,31-Oct-17,OTHER MEDICAL SUPPLIES,Medicine,NHS LOGISTICS,1018142596,0.38,
Department of Health,Salisbury NHS Foundation Trust,31-Oct-17,SERVICES FROM NHS BODIES,Medicine,NHS LOGISTICS,1018142596,0.89,
Department of Health,Salisbury NHS Foundation Trust,31-Oct-17,MEDSURGCONS - OTHER,Medicine,NHS LOGISTICS,1018142596,11.96,
Department of Health,Salisbury NHS Foundation Trust,31-Oct-17,MEDSURGCONS - OTHER,Medicine,NHS LOGISTICS,1018142596,1.06,
Department of Health,Salisbury NHS Foundation Trust,31-Oct-17,DISPOSABLE THEATRE DRAPES WIPES,Medicine,NHS LOGISTICS,1018142596,1.42,
Department of Health,Salisbury NHS Foundation Trust,31-Oct-17,BAGS SACKS - OTHER,Musculo-Skeletal,NHS LOGISTICS,1018142596,0.6,
Department of Health,Salisbury NHS Foundation Trust,31-Oct-17,DRESSINGS - PRE STERILE,Musculo-Skeletal,NHS LOGISTICS,1018142596,0.46,
Department of Health,Salisbury NHS Foundation Trust,31-Oct-17,TOILETRIES PERSONAL HYGIENE PRODUCTS,Musculo-Skeletal,NHS LOGISTICS,1018142596,1.54,
Department of Health,Salisbury NHS Foundation Trust,31-Oct-17,TISSUES HAND TOWELS & TOILET PAPER,Musculo-Skeletal,NHS LOGISTICS,1018142596,2.87,
Department of Health,Salisbury NHS Foundation Trust,31-Oct-17,DRESSINGS - PRE STERILE,Musculo-Skeletal,NHS LOGISTICS,1018142596,0.79,
Department of Health,Salisbury NHS Foundation Trust,31-Oct-17,PATIENT APPLIANCES,Musculo-Skeletal,NHS LOGISTICS,1018142596,11.04,
Department of Health,Salisbury NHS Foundation Trust,31-Oct-17,BABY TEXTURE MODIFIED FOODS,Clinical Support,NHS LOGISTICS,1018142596,4.22,
Department of Health,Salisbury NHS Foundation Trust,31-Oct-17,TISSUES HAND TOWELS & TOILET PAPER,Surgery,NHS LOGISTICS,1018142596,1.74,
Department of Health,Salisbury NHS Foundation Trust,31-Oct-17,TISSUES HAND TOWELS & TOILET PAPER,Surgery,NHS LOGISTICS,1018142596,0.63,
Department of Health,Salisbury NHS Foundation Trust,31-Oct-17,SURGICAL INSTRUMENTS: DISPOSABLE,Surgery,NHS LOGISTICS,1018142596,19.76,
Department of Health,Salisbury NHS Foundation Trust,31-Oct-17,M & S EQUIPELECTEQUIPINST - OTHER,Surgery,NHS LOGISTICS,1018142596,5.15,
Department of Health,Salisbury NHS Foundation Trust,31-Oct-17,DENTAL SURGERY SUNDRIES,Surgery,NHS LOGISTICS,1018142596,0.87,
Department of Health,Salisbury NHS Foundation Trust,31-Oct-17,DRESSINGS - PRE STERILE,Surgery,NHS LOGISTICS,1018142596,1.2,
Department of Health,Salisbury NHS Foundation Trust,31-Oct-17,DRESSINGS - PRE STERILE,Surgery,NHS LOGISTICS,1018142596,1.15,
Department of Health,Salisbury NHS Foundation Trust,31-Oct-17,DISPOSABLE THEATRE DRAPES WIPES,Surgery,NHS LOGISTICS,1018142596,2.4,
Department of Health,Salisbury NHS Foundation Trust,31-Oct-17,DRESSINGS - PRE STERILE,Surgery,NHS LOGISTICS,1018142596,3.37,
Department of Health,Salisbury NHS Foundation Trust,31-Oct-17,OTHER MEDICAL SUPPLIES,Surgery,NHS LOGISTICS,1018142596,1.37,
Department of Health,Salisbury NHS Foundation Trust,31-Oct-17,OTHER MEDICAL SUPPLIES,Surgery,NHS LOGISTICS,1018142596,1.51,
Department of Health,Salisbury NHS Foundation Trust,31-Oct-17,BEVERAGES & AMBIENT FOOD,Surgery,NHS LOGISTICS,1018142596,2.87,
Department of Health,Salisbury NHS Foundation Trust,31-Oct-17,OTHER MEDICAL SUPPLIES,Surgery,NHS LOGISTICS,1018142596,2.28,
Department of Health,Salisbury NHS Foundation Trust,31-Oct-17,DRESSINGS - PRE STERILE,Surgery,NHS LOGISTICS,1018142596,4.69,
Department of Health,Salisbury NHS Foundation Trust,31-Oct-17,MEDSURGCONS - OTHER,Surgery,NHS LOGISTICS,1018142596,0.78,
Department of Health,Salisbury NHS Foundation Trust,31-Oct-17,DISPOSABLE THEATRE DRAPES WIPES,Surgery,NHS LOGISTICS,1018142596,0.71,
Department of Health,Salisbury NHS Foundation Trust,31-Oct-17,DRESSINGS - PRE STERILE,Surgery,NHS LOGISTICS,1018142596,1,
Department of Health,Salisbury NHS Foundation Trust,31-Oct-17,DRESSINGS - PRE STERILE,Surgery,NHS LOGISTICS,1018142596,3.48,
Department of Health,Salisbury NHS Foundation Trust,31-Oct-17,DRESSINGS - PRE STERILE,Surgery,NHS LOGISTICS,1018142596,1.57,
Department of Health,Salisbury NHS Foundation Trust,31-Oct-17,DISPOSABLE THEATRE DRAPES WIPES,Surgery,NHS LOGISTICS,1018142596,7.08,
Department of Health,Salisbury NHS Foundation Trust,31-Oct-17,SURGICAL INSTRUMENTS: GENERAL,Surgery,NHS LOGISTICS,1018142596,5.83,
Department of Health,Salisbury NHS Foundation Trust,31-Oct-17,TOILETRIES PERSONAL HYGIENE PRODUCTS,Surgery,NHS LOGISTICS,1018142596,2.42,
Department of Health,Salisbury NHS Foundation Trust,31-Oct-17,DRUGS,Surgery,NHS LOGISTICS,1018142596,2.95,
Department of Health,Salisbury NHS Foundation Trust,31-Oct-17,TISSUES HAND TOWELS & TOILET PAPER,Clinical Support,NHS LOGISTICS,1018142596,4.26,
Department of Health,Salisbury NHS Foundation Trust,31-Oct-17,DISPOSABLE THEATRE DRAPES WIPES,Clinical Support,NHS LOGISTICS,1018142596,13.58,
Department of Health,Salisbury NHS Foundation Trust,31-Oct-17,PATIENT APPLIANCES,Clinical Support,NHS LOGISTICS,1018142596,3.04,
Department of Health,Salisbury NHS Foundation Trust,31-Oct-17,TISSUES HAND TOWELS & TOILET PAPER,Clinical Support,NHS LOGISTICS,1018142596,0.74,
Department of Health,Salisbury NHS Foundation Trust,31-Oct-17,OTHER MEDICAL SUPPLIES,Clinical Support,NHS LOGISTICS,1018142596,1.88,
Department of Health,Salisbury NHS Foundation Trust,31-Oct-17,PATIENT APPLIANCES,Clinical Support,NHS LOGISTICS,1018142596,2.88,
Department of Health,Salisbury NHS Foundation Trust,31-Oct-17,DISPOSABLE THEATRE DRAPES WIPES,Clinical Support,NHS LOGISTICS,1018142596,1.42,
Department of Health,Salisbury NHS Foundation Trust,31-Oct-17,TISSUES HAND TOWELS & TOILET PAPER,Surgery,NHS LOGISTICS,1018142596,0.5,
Department of Health,Salisbury NHS Foundation Trust,31-Oct-17,DISPOSABLE THEATRE DRAPES WIPES,Surgery,NHS LOGISTICS,1018142596,0.71,
Department of Health,Salisbury NHS Foundation Trust,31-Oct-17,PATIENT APPLIANCES,Surgery,NHS LOGISTICS,1018142596,0.67,
Department of Health,Salisbury NHS Foundation Trust,31-Oct-17,PATIENT APPLIANCES,Surgery,NHS LOGISTICS,1018142596,3.35,
Department of Health,Salisbury NHS Foundation Trust,31-Oct-17,MEDSURGCONS - OTHER,Clinical Support,NHS LOGISTICS,1018142596,41.97,
Department of Health,Salisbury NHS Foundation Trust,31-Oct-17,PATIENT APPLIANCES,Clinical Support,NHS LOGISTICS,1018142596,3.04,
Department of Health,Salisbury NHS Foundation Trust,31-Oct-17,TISSUES HAND TOWELS & TOILET PAPER,Clinical Support,NHS LOGISTICS,1018142596,0.99,
Department of Health,Salisbury NHS Foundation Trust,31-Oct-17,OTHER MEDICAL SUPPLIES,Clinical Support,NHS LOGISTICS,1018142596,1.88,
Department of Health,Salisbury NHS Foundation Trust,31-Oct-17,PATIENT APPLIANCES,Clinical Support,NHS LOGISTICS,1018142596,2.88,
Department of Health,Salisbury NHS Foundation Trust,31-Oct-17,DISPOSABLE THEATRE DRAPES WIPES,Clinical Support,NHS LOGISTICS,1018142596,1.42,
Department of Health,Salisbury NHS Foundation Trust,31-Oct-17,TISSUES HAND TOWELS & TOILET PAPER,Surgery,NHS LOGISTICS,1018142596,0.5,
Department of Health,Salisbury NHS Foundation Trust,31-Oct-17,DISPOSABLE THEATRE DRAPES WIPES,Surgery,NHS LOGISTICS,1018142596,0.71,
Department of Health,Salisbury NHS Foundation Trust,31-Oct-17,MEDSURGCONS - OTHER,Surgery,NHS LOGISTICS,1018142596,9.61,
Department of Health,Salisbury NHS Foundation Trust,31-Oct-17,BEVERAGES & AMBIENT FOOD,Surgery,NHS LOGISTICS,1018142596,0.52,
Department of Health,Salisbury NHS Foundation Trust,31-Oct-17,MEDSURGCONS - OTHER,Musculo-Skeletal,NHS LOGISTICS,1018142596,2.15,
Department of Health,Salisbury NHS Foundation Trust,31-Oct-17,TISSUES HAND TOWELS & TOILET PAPER,Musculo-Skeletal,NHS LOGISTICS,1018142596,2.8,
Department of Health,Salisbury NHS Foundation Trust,31-Oct-17,DRESSINGS - PRE STERILE,Musculo-Skeletal,NHS LOGISTICS,1018142596,0.5,
Department of Health,Salisbury NHS Foundation Trust,31-Oct-17,NON DISPOSABLE BED LINEN,Musculo-Skeletal,NHS LOGISTICS,1018142596,6.64,
Department of Health,Salisbury NHS Foundation Trust,31-Oct-17,PATIENT APPLIANCES,Musculo-Skeletal,NHS LOGISTICS,1018142596,3.12,
Department of Health,Salisbury NHS Foundation Trust,31-Oct-17,DISPOSABLE THEATRE DRAPES WIPES,Musculo-Skeletal,NHS LOGISTICS,1018142596,3.55,
Department of Health,Salisbury NHS Foundation Trust,31-Oct-17,M & S EQUIPELECTEQUIPINST - OTHER,Surgery,NHS LOGISTICS,1018142596,2.11,
Department of Health,Salisbury NHS Foundation Trust,31-Oct-17,M & S EQUIPELECTEQUIPINST - OTHER,Surgery,NHS LOGISTICS,1018142596,2.11,
Department of Health,Salisbury NHS Foundation Trust,31-Oct-17,M & S EQUIPELECTEQUIPINST - OTHER,Surgery,NHS LOGISTICS,1018142596,0.72,
Department of Health,Salisbury NHS Foundation Trust,31-Oct-17,OTHER MEDICAL SUPPLIES,Corporate - Finance & Procurement,NHS LOGISTICS,1018142596,30,
Department of Health,Salisbury NHS Foundation Trust,31-Oct-17,COOKING & KITCHEN UTENSILS,Corporate - Finance & Procurement,NHS LOGISTICS,1018142596,51.8,
Department of Health,Salisbury NHS Foundation Trust,31-Oct-17,M & S EQUIPELECTEQUIPINST - OTHER,Corporate - Finance & Procurement,NHS LOGISTICS,1018142596,175.25,
Department of Health,Salisbury NHS Foundation Trust,31-Oct-17,CLEANING MATERIALS PRODUCTS SUNDRIES,Surgery,NHS LOGISTICS,1018142596,1.11,
Department of Health,Salisbury NHS Foundation Trust,31-Oct-17,PATIENT APPLIANCES,Surgery,NHS LOGISTICS,1018142596,4.68,
Department of Health,Salisbury NHS Foundation Trust,31-Oct-17,CLEANING MATERIALS PRODUCTS SUNDRIES,Surgery,NHS LOGISTICS,1018142596,1.11,
Department of Health,Salisbury NHS Foundation Trust,31-Oct-17,DRESSINGS - PRE STERILE,Surgery,NHS LOGISTICS,1018142596,0.5,
Department of Health,Salisbury NHS Foundation Trust,31-Oct-17,MEDSURGCONS - OTHER,Surgery,NHS LOGISTICS,1018142596,0.97,
Department of Health,Salisbury NHS Foundation Trust,31-Oct-17,MEDSURGCONS - OTHER,Surgery,NHS LOGISTICS,1018142596,0.78,
Department of Health,Salisbury NHS Foundation Trust,31-Oct-17,BABY TEXTURE MODIFIED FOODS,Clinical Support,NHS LOGISTICS,1018142596,6.66,
Department of Health,Salisbury NHS Foundation Trust,31-Oct-17,DISPOSABLE THEATRE DRAPES WIPES,Clinical Support,NHS LOGISTICS,1018142596,0.71,
Department of Health,Salisbury NHS Foundation Trust,31-Oct-17,TISSUES HAND TOWELS & TOILET PAPER,Clinical Support,NHS LOGISTICS,1018142596,1.49,
Department of Health,Salisbury NHS Foundation Trust,31-Oct-17,DRUGS,Clinical Support,NHS LOGISTICS,1018142596,5.62,
Department of Health,Salisbury NHS Foundation Trust,31-Oct-17,PATIENT APPLIANCES,Clinical Support,NHS LOGISTICS,1018142596,0.86,
Department of Health,Salisbury NHS Foundation Trust,31-Oct-17,OTHER MEDICAL SUPPLIES,Clinical Support,NHS LOGISTICS,1018142596,31.58,
Department of Health,Salisbury NHS Foundation Trust,31-Oct-17,PATIENTS BEDWEAR UNISEX,Clinical Support,NHS LOGISTICS,1018142596,1.6,
Department of Health,Salisbury NHS Foundation Trust,31-Oct-17,DRESSINGS - PRE STERILE,Clinical Support,NHS LOGISTICS,1018142596,0.5,
Department of Health,Salisbury NHS Foundation Trust,31-Oct-17,DISPOSABLE THEATRE DRAPES WIPES,Clinical Support,NHS LOGISTICS,1018142596,1.2,
Department of Health,Salisbury NHS Foundation Trust,31-Oct-17,MEDSURGCONS - OTHER,Clinical Support,NHS LOGISTICS,1018142596,0.98,
Department of Health,Salisbury NHS Foundation Trust,31-Oct-17,M & S EQUIPELECTEQUIPINST - OTHER,Clinical Support,NHS LOGISTICS,1018142596,1.15,
Department of Health,Salisbury NHS Foundation Trust,31-Oct-17,OTHER MEDICAL SUPPLIES,Clinical Support,NHS LOGISTICS,1018142596,0.38,
Department of Health,Salisbury NHS Foundation Trust,31-Oct-17,PATIENT APPLIANCES,Clinical Support,NHS LOGISTICS,1018142596,2.34,
Department of Health,Salisbury NHS Foundation Trust,31-Oct-17,DISPOSABLE THEATRE DRAPES WIPES,Clinical Support,NHS LOGISTICS,1018142596,0.71,
Department of Health,Salisbury NHS Foundation Trust,31-Oct-17,OTHER MEDICAL SUPPLIES,Clinical Support,NHS LOGISTICS,1018142596,31.58,
Department of Health,Salisbury NHS Foundation Trust,31-Oct-17,BABY TEXTURE MODIFIED FOODS,Clinical Support,NHS LOGISTICS,1018142596,2.63,
Department of Health,Salisbury NHS Foundation Trust,31-Oct-17,DRESSINGS - PRE STERILE,Clinical Support,NHS LOGISTICS,1018142596,0.92,
Department of Health,Salisbury NHS Foundation Trust,31-Oct-17,DRUGS,Clinical Support,NHS LOGISTICS,1018142596,1.76,
Department of Health,Salisbury NHS Foundation Trust,31-Oct-17,MED SURG EQUIP REP MAINT CLEANING,Clinical Support,NHS LOGISTICS,1018142596,13.91,
Department of Health,Salisbury NHS Foundation Trust,31-Oct-17,MED SURG EQUIP REP MAINT CLEANING,Clinical Support,NHS LOGISTICS,1018142596,13.91,
Department of Health,Salisbury NHS Foundation Trust,31-Oct-17,BABY TEXTURE MODIFIED FOODS,Clinical Support,NHS LOGISTICS,1018142596,2.11,
Department of Health,Salisbury NHS Foundation Trust,31-Oct-17,OTHER MEDICAL SUPPLIES,Clinical Support,NHS LOGISTICS,1018142596,0.38,
Department of Health,Salisbury NHS Foundation Trust,31-Oct-17,MEDSURGCONS - OTHER,Clinical Support,NHS LOGISTICS,1018142596,0.76,
Department of Health,Salisbury NHS Foundation Trust,31-Oct-17,MEDSURGCONS - OTHER,Clinical Support,NHS LOGISTICS,1018142596,4.71,
Department of Health,Salisbury NHS Foundation Trust,31-Oct-17,MEDSURGCONS - OTHER,Clinical Support,NHS LOGISTICS,1018142596,0.78,
Department of Health,Salisbury NHS Foundation Trust,31-Oct-17,MEDSURGCONS - OTHER,Clinical Support,NHS LOGISTICS,1018142596,0.78,
Department of Health,Salisbury NHS Foundation Trust,31-Oct-17,DRESSINGS - PRE STERILE,Musculo-Skeletal,NHS LOGISTICS,1018142596,3.27,
Department of Health,Salisbury NHS Foundation Trust,31-Oct-17,DRESSINGS - PRE STERILE,Surgery,NHS LOGISTICS,1018142596,1.5,
Department of Health,Salisbury NHS Foundation Trust,31-Oct-17,DRESSINGS - PRE STERILE,Surgery,NHS LOGISTICS,1018142596,0.23,
Department of Health,Salisbury NHS Foundation Trust,31-Oct-17,TISSUES HAND TOWELS & TOILET PAPER,Surgery,NHS LOGISTICS,1018142596,0.25,
Department of Health,Salisbury NHS Foundation Trust,31-Oct-17,ANAESTHETIC EQUIPMENT ACCESSORIES,Surgery,NHS LOGISTICS,1018142596,0.63,
Department of Health,Salisbury NHS Foundation Trust,31-Oct-17,OTHER MEDICAL SUPPLIES,Surgery,NHS LOGISTICS,1018142596,0.38,
Department of Health,Salisbury NHS Foundation Trust,31-Oct-17,PATIENT APPLIANCES,Surgery,NHS LOGISTICS,1018142596,1.34,
Department of Health,Salisbury NHS Foundation Trust,31-Oct-17,PATIENT APPLIANCES,Surgery,NHS LOGISTICS,1018142596,1.34,
Department of Health,Salisbury NHS Foundation Trust,31-Oct-17,PATIENT APPLIANCES,Surgery,NHS LOGISTICS,1018142596,3.35,
Department of Health,Salisbury NHS Foundation Trust,31-Oct-17,PATIENT APPLIANCES,Surgery,NHS LOGISTICS,1018142596,0.88,
Department of Health,Salisbury NHS Foundation Trust,31-Oct-17,PATIENT APPLIANCES,Surgery,NHS LOGISTICS,1018142596,0.88,
Department of Health,Salisbury NHS Foundation Trust,31-Oct-17,PATIENT APPLIANCES,Surgery,NHS LOGISTICS,1018142596,0.88,
Department of Health,Salisbury NHS Foundation Trust,31-Oct-17,TISSUES HAND TOWELS & TOILET PAPER,Surgery,NHS LOGISTICS,1018142596,0.14,
Department of Health,Salisbury NHS Foundation Trust,31-Oct-17,DISPOSABLE THEATRE DRAPES WIPES,Surgery,NHS LOGISTICS,1018142596,0.71,
Department of Health,Salisbury NHS Foundation Trust,31-Oct-17,TISSUES HAND TOWELS & TOILET PAPER,Medicine,NHS LOGISTICS,1018142596,0.5,
Department of Health,Salisbury NHS Foundation Trust,31-Oct-17,TISSUES HAND TOWELS & TOILET PAPER,Medicine,NHS LOGISTICS,1018142596,0.47,
Department of Health,Salisbury NHS Foundation Trust,31-Oct-17,M & S EQUIPELECTEQUIPINST - OTHER,Medicine,NHS LOGISTICS,1018142596,0.62,
Department of Health,Salisbury NHS Foundation Trust,31-Oct-17,TISSUES HAND TOWELS & TOILET PAPER,Surgery,NHS LOGISTICS,1018142596,0.12,
Department of Health,Salisbury NHS Foundation Trust,31-Oct-17,TISSUES HAND TOWELS & TOILET PAPER,Surgery,NHS LOGISTICS,1018142596,1.49,
Department of Health,Salisbury NHS Foundation Trust,31-Oct-17,OTHER MEDICAL SUPPLIES,Surgery,NHS LOGISTICS,1018142596,82.87,
Department of Health,Salisbury NHS Foundation Trust,31-Oct-17,TISSUES HAND TOWELS & TOILET PAPER,Surgery,NHS LOGISTICS,1018142596,2.13,
Department of Health,Salisbury NHS Foundation Trust,31-Oct-17,DRESSINGS - PRE STERILE,Surgery,NHS LOGISTICS,1018142596,0.79,
Department of Health,Salisbury NHS Foundation Trust,31-Oct-17,DRESSINGS - PRE STERILE,Surgery,NHS LOGISTICS,1018142596,0.22,
Department of Health,Salisbury NHS Foundation Trust,31-Oct-17,TISSUES HAND TOWELS & TOILET PAPER,Clinical Support,NHS LOGISTICS,1018142596,1.99,
Department of Health,Salisbury NHS Foundation Trust,31-Oct-17,TISSUES HAND TOWELS & TOILET PAPER,Clinical Support,NHS LOGISTICS,1018142596,0.31,
Department of Health,Salisbury NHS Foundation Trust,31-Oct-17,SURGICAL INSTRUMENTS: GENERAL,Clinical Support,NHS LOGISTICS,1018142596,2.33,
Department of Health,Salisbury NHS Foundation Trust,31-Oct-17,DRESSINGS - PRE STERILE,Musculo-Skeletal,NHS LOGISTICS,1018142596,31.65,
Department of Health,Salisbury NHS Foundation Trust,31-Oct-17,CLEANING MATERIALS PRODUCTS SUNDRIES,Medicine,NHS LOGISTICS,1018142596,1.11,
Department of Health,Salisbury NHS Foundation Trust,31-Oct-17,SURGICAL INSTRUMENTS: GENERAL,Medicine,NHS LOGISTICS,1018142596,1.97,
Department of Health,Salisbury NHS Foundation Trust,31-Oct-17,CLEANING MATERIALS PRODUCTS SUNDRIES,Medicine,NHS LOGISTICS,1018142596,5.19,
Department of Health,Salisbury NHS Foundation Trust,31-Oct-17,DISPOSABLE TABLE LINEN,Medicine,NHS LOGISTICS,1018142596,0.14,
Department of Health,Salisbury NHS Foundation Trust,31-Oct-17,TISSUES HAND TOWELS & TOILET PAPER,Medicine,NHS LOGISTICS,1018142596,0.07,
Department of Health,Salisbury NHS Foundation Trust,31-Oct-17,CLEANING MATERIALS PRODUCTS SUNDRIES,Surgery,NHS LOGISTICS,1018142596,1.09,
Department of Health,Salisbury NHS Foundation Trust,31-Oct-17,MEDSURGCONS - OTHER,Surgery,NHS LOGISTICS,1018142596,2.93,
Department of Health,Salisbury NHS Foundation Trust,31-Oct-17,ANAESTHETIC EQUIPMENT ACCESSORIES,Surgery,NHS LOGISTICS,1018142596,0.26,
Department of Health,Salisbury NHS Foundation Trust,31-Oct-17,MED SURG EQUIP REP MAINT CLEANING,Surgery,NHS LOGISTICS,1018142596,5.67,
Department of Health,Salisbury NHS Foundation Trust,31-Oct-17,MEDSURGCONS - OTHER,Surgery,NHS LOGISTICS,1018142596,4.28,
Department of Health,Salisbury NHS Foundation Trust,31-Oct-17,MEDSURGCONS - OTHER,Surgery,NHS LOGISTICS,1018142596,20.36,
Department of Health,Salisbury NHS Foundation Trust,31-Oct-17,OTHER MEDICAL SUPPLIES,Surgery,NHS LOGISTICS,1018142596,1.51,
Department of Health,Salisbury NHS Foundation Trust,31-Oct-17,TOILETRIES PERSONAL HYGIENE PRODUCTS,Surgery,NHS LOGISTICS,1018142596,0.83,
Department of Health,Salisbury NHS Foundation Trust,31-Oct-17,MEDSURGCONS - OTHER,Surgery,NHS LOGISTICS,1018142596,2.71,
Department of Health,Salisbury NHS Foundation Trust,31-Oct-17,MEDSURGCONS - OTHER,Surgery,NHS LOGISTICS,1018142596,19.13,
Department of Health,Salisbury NHS Foundation Trust,31-Oct-17,MEDSURGCONS - OTHER,Surgery,NHS LOGISTICS,1018142596,0.78,
Department of Health,Salisbury NHS Foundation Trust,31-Oct-17,MEDSURGCONS - OTHER,Surgery,NHS LOGISTICS,1018142596,2.73,
Department of Health,Salisbury NHS Foundation Trust,31-Oct-17,TOILETRIES PERSONAL HYGIENE PRODUCTS,Surgery,NHS LOGISTICS,1018142596,0.83,
Department of Health,Salisbury NHS Foundation Trust,31-Oct-17,M & S EQUIPELECTEQUIPINST - OTHER,Surgery,NHS LOGISTICS,1018142596,0.29,
Department of Health,Salisbury NHS Foundation Trust,31-Oct-17,OTHER MEDICAL SUPPLIES,Surgery,NHS LOGISTICS,1018142596,9.45,
Department of Health,Salisbury NHS Foundation Trust,31-Oct-17,PATIENT APPLIANCES,Surgery,NHS LOGISTICS,1018142596,3.9,
Department of Health,Salisbury NHS Foundation Trust,31-Oct-17,DISPOSABLE THEATRE DRAPES WIPES,Surgery,NHS LOGISTICS,1018142596,5.68,
Department of Health,Salisbury NHS Foundation Trust,31-Oct-17,MEDSURGCONS - OTHER,Surgery,NHS LOGISTICS,1018142596,1.6,
Department of Health,Salisbury NHS Foundation Trust,31-Oct-17,ANAESTHETIC EQUIPMENT ACCESSORIES,Surgery,NHS LOGISTICS,1018142596,5.16,
Department of Health,Salisbury NHS Foundation Trust,31-Oct-17,OTHER MEDICAL SUPPLIES,Surgery,NHS LOGISTICS,1018142596,3.41,
Department of Health,Salisbury NHS Foundation Trust,31-Oct-17,ANAESTHETIC EQUIPMENT ACCESSORIES,Surgery,NHS LOGISTICS,1018142596,18.91,
Department of Health,Salisbury NHS Foundation Trust,31-Oct-17,OTHER MEDICAL SUPPLIES,Surgery,NHS LOGISTICS,1018142596,2.26,
Department of Health,Salisbury NHS Foundation Trust,31-Oct-17,MEDSURGCONS - OTHER,Surgery,NHS LOGISTICS,1018142596,17.42,
Department of Health,Salisbury NHS Foundation Trust,31-Oct-17,M & S EQUIPELECTEQUIPINST - OTHER,Clinical Support,NHS LOGISTICS,1018142596,33.96,
Department of Health,Salisbury NHS Foundation Trust,31-Oct-17,LIQUID REFRESHMENTS,Facilities,NHS LOGISTICS,1018142596,1.52,
Department of Health,Salisbury NHS Foundation Trust,31-Oct-17,LIQUID REFRESHMENTS,Facilities,NHS LOGISTICS,1018142596,1.16,
Department of Health,Salisbury NHS Foundation Trust,31-Oct-17,COOKING & KITCHEN UTENSILS,Facilities,NHS LOGISTICS,1018142596,3.83,
Department of Health,Salisbury NHS Foundation Trust,31-Oct-17,COOKING & KITCHEN UTENSILS,Facilities,NHS LOGISTICS,1018142596,7.67,
Department of Health,Salisbury NHS Foundation Trust,31-Oct-17,TISSUES HAND TOWELS & TOILET PAPER,Facilities,NHS LOGISTICS,1018142596,1.49,
Department of Health,Salisbury NHS Foundation Trust,31-Oct-17,BEVERAGES & AMBIENT FOOD,Facilities,NHS LOGISTICS,1018142596,2.16,
Department of Health,Salisbury NHS Foundation Trust,31-Oct-17,COOKING & KITCHEN UTENSILS,Facilities,NHS LOGISTICS,1018142596,3.83,
Department of Health,Salisbury NHS Foundation Trust,31-Oct-17,LIQUID REFRESHMENTS,Facilities,NHS LOGISTICS,1018142596,5.7,
Department of Health,Salisbury NHS Foundation Trust,31-Oct-17,BEVERAGES & AMBIENT FOOD,Facilities,NHS LOGISTICS,1018142596,9.7,
Department of Health,Salisbury NHS Foundation Trust,31-Oct-17,LIQUID REFRESHMENTS,Facilities,NHS LOGISTICS,1018142596,2.03,
Department of Health,Salisbury NHS Foundation Trust,31-Oct-17,BEVERAGES & AMBIENT FOOD,Facilities,NHS LOGISTICS,1018142596,1.22,
Department of Health,Salisbury NHS Foundation Trust,31-Oct-17,COOKING & KITCHEN UTENSILS,Facilities,NHS LOGISTICS,1018142596,5.46,
Department of Health,Salisbury NHS Foundation Trust,31-Oct-17,BEVERAGES & AMBIENT FOOD,Facilities,NHS LOGISTICS,1018142596,1.78,
Department of Health,Salisbury NHS Foundation Trust,31-Oct-17,LIQUID REFRESHMENTS,Facilities,NHS LOGISTICS,1018142596,6.8,
Department of Health,Salisbury NHS Foundation Trust,31-Oct-17,BEVERAGES & AMBIENT FOOD,Facilities,NHS LOGISTICS,1018142596,21.1,
Department of Health,Salisbury NHS Foundation Trust,31-Oct-17,BEVERAGES & AMBIENT FOOD,Facilities,NHS LOGISTICS,1018142596,16.56,
Department of Health,Salisbury NHS Foundation Trust,31-Oct-17,LIQUID REFRESHMENTS,Facilities,NHS LOGISTICS,1018142596,1.24,
Department of Health,Salisbury NHS Foundation Trust,31-Oct-17,CLEANING MATERIALS PRODUCTS SUNDRIES,Facilities,NHS LOGISTICS,1018142596,1.08,
Department of Health,Salisbury NHS Foundation Trust,31-Oct-17,LIQUID REFRESHMENTS,Facilities,NHS LOGISTICS,1018142596,1.32,
Department of Health,Salisbury NHS Foundation Trust,31-Oct-17,MEDSURGCONS - OTHER,Facilities,NHS LOGISTICS,1018142596,8.58,
Department of Health,Salisbury NHS Foundation Trust,31-Oct-17,LIQUID REFRESHMENTS,Facilities,NHS LOGISTICS,1018142596,9.85,
Department of Health,Salisbury NHS Foundation Trust,31-Oct-17,COOKING & KITCHEN UTENSILS,Facilities,NHS LOGISTICS,1018142596,5,
Department of Health,Salisbury NHS Foundation Trust,31-Oct-17,LIQUID REFRESHMENTS,Facilities,NHS LOGISTICS,1018142596,5.3,
Department of Health,Salisbury NHS Foundation Trust,31-Oct-17,LIQUID REFRESHMENTS,Facilities,NHS LOGISTICS,1018142596,5.3,
Department of Health,Salisbury NHS Foundation Trust,31-Oct-17,LIQUID REFRESHMENTS,Facilities,NHS LOGISTICS,1018142596,1.86,
Department of Health,Salisbury NHS Foundation Trust,31-Oct-17,LIQUID REFRESHMENTS,Facilities,NHS LOGISTICS,1018142596,5.27,
Department of Health,Salisbury NHS Foundation Trust,31-Oct-17,M & S EQUIPELECTEQUIPINST - OTHER,Clinical Support,NHS LOGISTICS,1018142596,25.77,
Department of Health,Salisbury NHS Foundation Trust,31-Oct-17,M & S EQUIPELECTEQUIPINST - OTHER,Clinical Support,NHS LOGISTICS,1018142596,51.55,
Department of Health,Salisbury NHS Foundation Trust,31-Oct-17,MEDSURGCONS - OTHER,Surgery,NHS LOGISTICS,1018142596,22.92,
Department of Health,Salisbury NHS Foundation Trust,31-Oct-17,MEDSURGCONS - OTHER,Medicine,NHS LOGISTICS,1018142596,9.66,
Department of Health,Salisbury NHS Foundation Trust,31-Oct-17,ADULTS HEARING AIDS,Surgery,NHS LOGISTICS,1018137557,2477.76,
Department of Health,Salisbury NHS Foundation Trust,31-Oct-17,ADULTS HEARING AIDS,Surgery,NHS LOGISTICS,1018137557,2764.05,
Department of Health,Salisbury NHS Foundation Trust,31-Oct-17,ADULTS HEARING AIDS,Surgery,NHS LOGISTICS,1018137557,2895.67,
Department of Health,Salisbury NHS Foundation Trust,31-Oct-17,ADULTS HEARING AIDS,Surgery,NHS LOGISTICS,1018137557,2895.67,
Department of Health,Salisbury NHS Foundation Trust,31-Oct-17,ADULTS HEARING AIDS,Surgery,NHS LOGISTICS,1018137557,112.21,
Department of Health,Salisbury NHS Foundation Trust,31-Oct-17,ADULTS HEARING AIDS,Surgery,NHS LOGISTICS,1018137557,93.75,
Department of Health,Salisbury NHS Foundation Trust,31-Oct-17,ADULTS HEARING AIDS,Surgery,NHS LOGISTICS,1018137557,93.75,
Department of Health,Salisbury NHS Foundation Trust,31-Oct-17,STATIONERY SUNDRIES,Corporate - ETS,NHS LOGISTICS,1018137557,57.92,
Department of Health,Salisbury NHS Foundation Trust,31-Oct-17,DRESSINGS - PRE STERILE,Medicine,NHS LOGISTICS,1018137557,7.52,
Department of Health,Salisbury NHS Foundation Trust,31-Oct-17,M & S EQUIPELECTEQUIPINST - OTHER,Medicine,NHS LOGISTICS,1018137557,1.47,
Department of Health,Salisbury NHS Foundation Trust,31-Oct-17,OTHER MEDICAL SUPPLIES,Medicine,NHS LOGISTICS,1018137557,6.09,
Department of Health,Salisbury NHS Foundation Trust,31-Oct-17,OTHER MEDICAL SUPPLIES,Medicine,NHS LOGISTICS,1018137557,3.77,
Department of Health,Salisbury NHS Foundation Trust,31-Oct-17,MEDSURGCONS - OTHER,Medicine,NHS LOGISTICS,1018137557,5.89,
Department of Health,Salisbury NHS Foundation Trust,31-Oct-17,MEDSURGCONS - OTHER,Medicine,NHS LOGISTICS,1018137557,3.91,
Department of Health,Salisbury NHS Foundation Trust,31-Oct-17,PATIENT APPLIANCES,Medicine,NHS LOGISTICS,1018137557,6.7,
Department of Health,Salisbury NHS Foundation Trust,31-Oct-17,DISPOSABLE THEATRE DRAPES WIPES,Medicine,NHS LOGISTICS,1018137557,2.63,
Department of Health,Salisbury NHS Foundation Trust,31-Oct-17,DISPOSABLE THEATRE DRAPES WIPES,Medicine,NHS LOGISTICS,1018137557,3.55,
Department of Health,Salisbury NHS Foundation Trust,31-Oct-17,TISSUES HAND TOWELS & TOILET PAPER,Medicine,NHS LOGISTICS,1018137557,1.05,
Department of Health,Salisbury NHS Foundation Trust,31-Oct-17,SERVICES FROM NHS BODIES,Medicine,NHS LOGISTICS,1018137557,4.44,
Department of Health,Salisbury NHS Foundation Trust,31-Oct-17,DRESSINGS - PRE STERILE,Medicine,NHS LOGISTICS,1018137557,7.52,
Department of Health,Salisbury NHS Foundation Trust,31-Oct-17,DRESSINGS - PRE STERILE,Medicine,NHS LOGISTICS,1018137557,16.33,
Department of Health,Salisbury NHS Foundation Trust,31-Oct-17,DRESSINGS - PRE STERILE,Medicine,NHS LOGISTICS,1018137557,2.49,
Department of Health,Salisbury NHS Foundation Trust,31-Oct-17,OTHER MEDICAL SUPPLIES,Medicine,NHS LOGISTICS,1018137557,1.88,
Department of Health,Salisbury NHS Foundation Trust,31-Oct-17,MEDSURGCONS - OTHER,Medicine,NHS LOGISTICS,1018137557,4.88,
Department of Health,Salisbury NHS Foundation Trust,31-Oct-17,MEDSURGCONS - OTHER,Medicine,NHS LOGISTICS,1018137557,6.82,
Department of Health,Salisbury NHS Foundation Trust,31-Oct-17,SURGICAL INSTRUMENTS: GENERAL,Medicine,NHS LOGISTICS,1018137557,4.92,
Department of Health,Salisbury NHS Foundation Trust,31-Oct-17,SURGICAL INSTRUMENTS: GENERAL,Medicine,NHS LOGISTICS,1018137557,4.74,
Department of Health,Salisbury NHS Foundation Trust,31-Oct-17,TUBES,Medicine,NHS LOGISTICS,1018137557,6.85,
Department of Health,Salisbury NHS Foundation Trust,31-Oct-17,PATIENT APPLIANCES,Medicine,NHS LOGISTICS,1018137557,3.35,
Department of Health,Salisbury NHS Foundation Trust,31-Oct-17,PATIENT APPLIANCES,Medicine,NHS LOGISTICS,1018137557,3.35,
Department of Health,Salisbury NHS Foundation Trust,31-Oct-17,DISPOSABLE THEATRE DRAPES WIPES,Medicine,NHS LOGISTICS,1018137557,3.55,
Department of Health,Salisbury NHS Foundation Trust,31-Oct-17,TISSUES HAND TOWELS & TOILET PAPER,Medicine,NHS LOGISTICS,1018137557,1.75,
Department of Health,Salisbury NHS Foundation Trust,31-Oct-17,OTHER MEDICAL SUPPLIES,Medicine,NHS LOGISTICS,1018137557,1.88,
Department of Health,Salisbury NHS Foundation Trust,31-Oct-17,PATIENT APPLIANCES,Medicine,NHS LOGISTICS,1018137557,3.35,
Department of Health,Salisbury NHS Foundation Trust,31-Oct-17,PATIENT APPLIANCES,Medicine,NHS LOGISTICS,1018137557,3.35,
Department of Health,Salisbury NHS Foundation Trust,31-Oct-17,DISPOSABLE THEATRE DRAPES WIPES,Medicine,NHS LOGISTICS,1018137557,3.55,
Department of Health,Salisbury NHS Foundation Trust,31-Oct-17,TISSUES HAND TOWELS & TOILET PAPER,Medicine,NHS LOGISTICS,1018137557,0.35,
Department of Health,Salisbury NHS Foundation Trust,31-Oct-17,TISSUES HAND TOWELS & TOILET PAPER,Medicine,NHS LOGISTICS,1018137557,1.24,
Department of Health,Salisbury NHS Foundation Trust,31-Oct-17,DRESSINGS - PRE STERILE,Medicine,NHS LOGISTICS,1018137557,7.52,
Department of Health,Salisbury NHS Foundation Trust,31-Oct-17,OTHER MEDICAL SUPPLIES,Medicine,NHS LOGISTICS,1018137557,1.88,
Department of Health,Salisbury NHS Foundation Trust,31-Oct-17,MEDSURGCONS - OTHER,Medicine,NHS LOGISTICS,1018137557,4.88,
Department of Health,Salisbury NHS Foundation Trust,31-Oct-17,TUBES,Medicine,NHS LOGISTICS,1018137557,6.85,
Department of Health,Salisbury NHS Foundation Trust,31-Oct-17,DISPOSABLE THEATRE DRAPES WIPES,Medicine,NHS LOGISTICS,1018137557,3.55,
Department of Health,Salisbury NHS Foundation Trust,31-Oct-17,TOILETRIES PERSONAL HYGIENE PRODUCTS,Medicine,NHS LOGISTICS,1018137557,4.13,
Department of Health,Salisbury NHS Foundation Trust,31-Oct-17,TISSUES HAND TOWELS & TOILET PAPER,Medicine,NHS LOGISTICS,1018137557,0.7,
Department of Health,Salisbury NHS Foundation Trust,31-Oct-17,DRESSINGS - PRE STERILE,Surgery,NHS LOGISTICS,1018137557,7.52,
Department of Health,Salisbury NHS Foundation Trust,31-Oct-17,DRESSINGS - PRE STERILE,Surgery,NHS LOGISTICS,1018137557,9.39,
Department of Health,Salisbury NHS Foundation Trust,31-Oct-17,DRESSINGS - PRE STERILE,Surgery,NHS LOGISTICS,1018137557,4.98,
Department of Health,Salisbury NHS Foundation Trust,31-Oct-17,DRESSINGS - PRE STERILE,Surgery,NHS LOGISTICS,1018137557,2.49,
Department of Health,Salisbury NHS Foundation Trust,31-Oct-17,DRESSINGS - PRE STERILE,Surgery,NHS LOGISTICS,1018137557,5.73,
Department of Health,Salisbury NHS Foundation Trust,31-Oct-17,OTHER MEDICAL SUPPLIES,Surgery,NHS LOGISTICS,1018137557,5.65,
Department of Health,Salisbury NHS Foundation Trust,31-Oct-17,MEDSURGCONS - OTHER,Surgery,NHS LOGISTICS,1018137557,3.91,
Department of Health,Salisbury NHS Foundation Trust,31-Oct-17,TUBES,Surgery,NHS LOGISTICS,1018137557,6.85,
Department of Health,Salisbury NHS Foundation Trust,31-Oct-17,PATIENT APPLIANCES,Surgery,NHS LOGISTICS,1018137557,23.4,
Department of Health,Salisbury NHS Foundation Trust,31-Oct-17,PATIENT APPLIANCES,Surgery,NHS LOGISTICS,1018137557,7.8,
Department of Health,Salisbury NHS Foundation Trust,31-Oct-17,PATIENT APPLIANCES,Surgery,NHS LOGISTICS,1018137557,3.35,
Department of Health,Salisbury NHS Foundation Trust,31-Oct-17,PATIENT APPLIANCES,Surgery,NHS LOGISTICS,1018137557,3.35,
Department of Health,Salisbury NHS Foundation Trust,31-Oct-17,PATIENT APPLIANCES,Surgery,NHS LOGISTICS,1018137557,3.35,
Department of Health,Salisbury NHS Foundation Trust,31-Oct-17,DISPOSABLE THEATRE DRAPES WIPES,Surgery,NHS LOGISTICS,1018137557,3.55,
Department of Health,Salisbury NHS Foundation Trust,31-Oct-17,DISPOSABLE THEATRE DRAPES WIPES,Surgery,NHS LOGISTICS,1018137557,3.55,
Department of Health,Salisbury NHS Foundation Trust,31-Oct-17,DISPOSABLE THEATRE DRAPES WIPES,Surgery,NHS LOGISTICS,1018137557,3.55,
Department of Health,Salisbury NHS Foundation Trust,31-Oct-17,TOILETRIES PERSONAL HYGIENE PRODUCTS,Surgery,NHS LOGISTICS,1018137557,1.54,
Department of Health,Salisbury NHS Foundation Trust,31-Oct-17,TISSUES HAND TOWELS & TOILET PAPER,Surgery,NHS LOGISTICS,1018137557,0.7,
Department of Health,Salisbury NHS Foundation Trust,31-Oct-17,TISSUES HAND TOWELS & TOILET PAPER,Surgery,NHS LOGISTICS,1018137557,0.7,
Department of Health,Salisbury NHS Foundation Trust,31-Oct-17,TISSUES HAND TOWELS & TOILET PAPER,Surgery,NHS LOGISTICS,1018137557,0.7,
Department of Health,Salisbury NHS Foundation Trust,31-Oct-17,SERVICES FROM NHS BODIES,Surgery,NHS LOGISTICS,1018137557,4.44,
Department of Health,Salisbury NHS Foundation Trust,31-Oct-17,DRESSINGS - PRE STERILE,Surgery,NHS LOGISTICS,1018137557,7.52,
Department of Health,Salisbury NHS Foundation Trust,31-Oct-17,MEDSURGCONS - OTHER,Surgery,NHS LOGISTICS,1018137557,3.91,
Department of Health,Salisbury NHS Foundation Trust,31-Oct-17,PATIENT APPLIANCES,Surgery,NHS LOGISTICS,1018137557,3.35,
Department of Health,Salisbury NHS Foundation Trust,31-Oct-17,PATIENT APPLIANCES,Surgery,NHS LOGISTICS,1018137557,3.35,
Department of Health,Salisbury NHS Foundation Trust,31-Oct-17,PATIENT APPLIANCES,Surgery,NHS LOGISTICS,1018137557,4.39,
Department of Health,Salisbury NHS Foundation Trust,31-Oct-17,CLEANING MATERIALS PRODUCTS SUNDRIES,Surgery,NHS LOGISTICS,1018137557,5.53,
Department of Health,Salisbury NHS Foundation Trust,31-Oct-17,DISPOSABLE THEATRE DRAPES WIPES,Surgery,NHS LOGISTICS,1018137557,3.55,
Department of Health,Salisbury NHS Foundation Trust,31-Oct-17,TISSUES HAND TOWELS & TOILET PAPER,Surgery,NHS LOGISTICS,1018137557,0.7,
Department of Health,Salisbury NHS Foundation Trust,31-Oct-17,TISSUES HAND TOWELS & TOILET PAPER,Surgery,NHS LOGISTICS,1018137557,1.24,
Department of Health,Salisbury NHS Foundation Trust,31-Oct-17,SERVICES FROM NHS BODIES,Surgery,NHS LOGISTICS,1018137557,4.44,
Department of Health,Salisbury NHS Foundation Trust,31-Oct-17,DRESSINGS - PRE STERILE,Medicine,NHS LOGISTICS,1018137557,2.49,
Department of Health,Salisbury NHS Foundation Trust,31-Oct-17,DRESSINGS - PRE STERILE,Medicine,NHS LOGISTICS,1018137557,2.49,
Department of Health,Salisbury NHS Foundation Trust,31-Oct-17,OTHER MEDICAL SUPPLIES,Medicine,NHS LOGISTICS,1018137557,110.31,
Department of Health,Salisbury NHS Foundation Trust,31-Oct-17,SURGICAL INSTRUMENTS: GENERAL,Medicine,NHS LOGISTICS,1018137557,4.92,
Department of Health,Salisbury NHS Foundation Trust,31-Oct-17,SURGICAL INSTRUMENTS: GENERAL,Medicine,NHS LOGISTICS,1018137557,4.92,
Department of Health,Salisbury NHS Foundation Trust,31-Oct-17,DISPOSABLE THEATRE DRAPES WIPES,Medicine,NHS LOGISTICS,1018137557,3.55,
Department of Health,Salisbury NHS Foundation Trust,31-Oct-17,TISSUES HAND TOWELS & TOILET PAPER,Medicine,NHS LOGISTICS,1018137557,1.4,
Department of Health,Salisbury NHS Foundation Trust,31-Oct-17,TISSUES HAND TOWELS & TOILET PAPER,Medicine,NHS LOGISTICS,1018137557,1.4,
Department of Health,Salisbury NHS Foundation Trust,31-Oct-17,TISSUES HAND TOWELS & TOILET PAPER,Medicine,NHS LOGISTICS,1018137557,1.24,
Department of Health,Salisbury NHS Foundation Trust,31-Oct-17,DRESSINGS - PRE STERILE,Medicine,NHS LOGISTICS,1018137557,16.33,
Department of Health,Salisbury NHS Foundation Trust,31-Oct-17,M & S EQUIPELECTEQUIPINST - OTHER,Medicine,NHS LOGISTICS,1018137557,8.8,
Department of Health,Salisbury NHS Foundation Trust,31-Oct-17,OTHER MEDICAL SUPPLIES,Medicine,NHS LOGISTICS,1018137557,110.31,
Department of Health,Salisbury NHS Foundation Trust,31-Oct-17,OTHER MEDICAL SUPPLIES,Medicine,NHS LOGISTICS,1018137557,11.3,
Department of Health,Salisbury NHS Foundation Trust,31-Oct-17,MEDSURGCONS - OTHER,Medicine,NHS LOGISTICS,1018137557,59.78,
Department of Health,Salisbury NHS Foundation Trust,31-Oct-17,MEDSURGCONS - OTHER,Medicine,NHS LOGISTICS,1018137557,3.91,
Department of Health,Salisbury NHS Foundation Trust,31-Oct-17,SURGICAL INSTRUMENTS: GENERAL,Medicine,NHS LOGISTICS,1018137557,18.97,
Department of Health,Salisbury NHS Foundation Trust,31-Oct-17,CLEANING MATERIALS PRODUCTS SUNDRIES,Medicine,NHS LOGISTICS,1018137557,5.53,
Department of Health,Salisbury NHS Foundation Trust,31-Oct-17,DISPOSABLE THEATRE DRAPES WIPES,Medicine,NHS LOGISTICS,1018137557,7.1,
Department of Health,Salisbury NHS Foundation Trust,31-Oct-17,NON DISPOSABLE BED LINEN,Medicine,NHS LOGISTICS,1018137557,52.75,
Department of Health,Salisbury NHS Foundation Trust,31-Oct-17,TISSUES HAND TOWELS & TOILET PAPER,Medicine,NHS LOGISTICS,1018137557,0.35,
Department of Health,Salisbury NHS Foundation Trust,31-Oct-17,PATIENT APPLIANCES,Surgery,NHS LOGISTICS,1018137557,3.9,
Department of Health,Salisbury NHS Foundation Trust,31-Oct-17,TISSUES HAND TOWELS & TOILET PAPER,Surgery,NHS LOGISTICS,1018137557,0.35,
Department of Health,Salisbury NHS Foundation Trust,31-Oct-17,DRUGS,Surgery,NHS LOGISTICS,1018137557,6.48,
Department of Health,Salisbury NHS Foundation Trust,31-Oct-17,DRESSINGS - PRE STERILE,Surgery,NHS LOGISTICS,1018137557,5.73,
Department of Health,Salisbury NHS Foundation Trust,31-Oct-17,M & S EQUIPELECTEQUIPINST - OTHER,Surgery,NHS LOGISTICS,1018137557,187.21,
Department of Health,Salisbury NHS Foundation Trust,31-Oct-17,M & S EQUIPELECTEQUIPINST - OTHER,Surgery,NHS LOGISTICS,1018137557,1.47,
Department of Health,Salisbury NHS Foundation Trust,31-Oct-17,M & S EQUIPELECTEQUIPINST - OTHER,Surgery,NHS LOGISTICS,1018137557,1.47,
Department of Health,Salisbury NHS Foundation Trust,31-Oct-17,OTHER MEDICAL SUPPLIES,Surgery,NHS LOGISTICS,1018137557,70,
Department of Health,Salisbury NHS Foundation Trust,31-Oct-17,OTHER MEDICAL SUPPLIES,Surgery,NHS LOGISTICS,1018137557,5.65,
Department of Health,Salisbury NHS Foundation Trust,31-Oct-17,OTHER MEDICAL SUPPLIES,Surgery,NHS LOGISTICS,1018137557,3.77,
Department of Health,Salisbury NHS Foundation Trust,31-Oct-17,MEDSURGCONS - OTHER,Surgery,NHS LOGISTICS,1018137557,38.87,
Department of Health,Salisbury NHS Foundation Trust,31-Oct-17,MEDSURGCONS - OTHER,Surgery,NHS LOGISTICS,1018137557,215.05,
Department of Health,Salisbury NHS Foundation Trust,31-Oct-17,MEDSURGCONS - OTHER,Surgery,NHS LOGISTICS,1018137557,215.05,
Department of Health,Salisbury NHS Foundation Trust,31-Oct-17,MEDSURGCONS - OTHER,Surgery,NHS LOGISTICS,1018137557,5.34,
Department of Health,Salisbury NHS Foundation Trust,31-Oct-17,MEDSURGCONS - OTHER,Surgery,NHS LOGISTICS,1018137557,2.67,
Department of Health,Salisbury NHS Foundation Trust,31-Oct-17,MEDSURGCONS - OTHER,Surgery,NHS LOGISTICS,1018137557,101.8,
Department of Health,Salisbury NHS Foundation Trust,31-Oct-17,MEDSURGCONS - OTHER,Surgery,NHS LOGISTICS,1018137557,21.42,
Department of Health,Salisbury NHS Foundation Trust,31-Oct-17,MEDSURGCONS - OTHER,Surgery,NHS LOGISTICS,1018137557,21.42,
Department of Health,Salisbury NHS Foundation Trust,31-Oct-17,MEDSURGCONS - OTHER,Surgery,NHS LOGISTICS,1018137557,4.88,
Department of Health,Salisbury NHS Foundation Trust,31-Oct-17,MEDSURGCONS - OTHER,Surgery,NHS LOGISTICS,1018137557,4.88,
Department of Health,Salisbury NHS Foundation Trust,31-Oct-17,MEDSURGCONS - OTHER,Surgery,NHS LOGISTICS,1018137557,95.65,
Department of Health,Salisbury NHS Foundation Trust,31-Oct-17,MEDSURGCONS - OTHER,Surgery,NHS LOGISTICS,1018137557,143.48,
Department of Health,Salisbury NHS Foundation Trust,31-Oct-17,MEDSURGCONS - OTHER,Surgery,NHS LOGISTICS,1018137557,6.82,
Department of Health,Salisbury NHS Foundation Trust,31-Oct-17,MED SURG EQUIP REP MAINT CLEANING,Surgery,NHS LOGISTICS,1018137557,10.97,
Department of Health,Salisbury NHS Foundation Trust,31-Oct-17,MED SURG EQUIP REP MAINT CLEANING,Surgery,NHS LOGISTICS,1018137557,28.35,
Department of Health,Salisbury NHS Foundation Trust,31-Oct-17,PATIENT APPLIANCES,Surgery,NHS LOGISTICS,1018137557,19.5,
Department of Health,Salisbury NHS Foundation Trust,31-Oct-17,PATIENT APPLIANCES,Surgery,NHS LOGISTICS,1018137557,15.6,
Department of Health,Salisbury NHS Foundation Trust,31-Oct-17,DISPOSABLE THEATRE DRAPES WIPES,Surgery,NHS LOGISTICS,1018137557,7.1,
Department of Health,Salisbury NHS Foundation Trust,31-Oct-17,TOILETRIES PERSONAL HYGIENE PRODUCTS,Surgery,NHS LOGISTICS,1018137557,4.15,
Department of Health,Salisbury NHS Foundation Trust,31-Oct-17,TISSUES HAND TOWELS & TOILET PAPER,Surgery,NHS LOGISTICS,1018137557,1.24,
Department of Health,Salisbury NHS Foundation Trust,31-Oct-17,DRESSINGS - PRE STERILE,Musculo-Skeletal,NHS LOGISTICS,1018137557,37.58,
Department of Health,Salisbury NHS Foundation Trust,31-Oct-17,DRESSINGS - PRE STERILE,Musculo-Skeletal,NHS LOGISTICS,1018137557,24,
Department of Health,Salisbury NHS Foundation Trust,31-Oct-17,DRESSINGS - PRE STERILE,Musculo-Skeletal,NHS LOGISTICS,1018137557,16.33,
Department of Health,Salisbury NHS Foundation Trust,31-Oct-17,DRESSINGS - PRE STERILE,Musculo-Skeletal,NHS LOGISTICS,1018137557,29.07,
Department of Health,Salisbury NHS Foundation Trust,31-Oct-17,DRESSINGS - PRE STERILE,Musculo-Skeletal,NHS LOGISTICS,1018137557,50.3,
Department of Health,Salisbury NHS Foundation Trust,31-Oct-17,DRESSINGS - PRE STERILE,Musculo-Skeletal,NHS LOGISTICS,1018137557,26.65,
Department of Health,Salisbury NHS Foundation Trust,31-Oct-17,DRESSINGS - PRE STERILE,Musculo-Skeletal,NHS LOGISTICS,1018137557,47.6,
Department of Health,Salisbury NHS Foundation Trust,31-Oct-17,OTHER MEDICAL SUPPLIES,Musculo-Skeletal,NHS LOGISTICS,1018137557,3.77,
Department of Health,Salisbury NHS Foundation Trust,31-Oct-17,TUBES,Musculo-Skeletal,NHS LOGISTICS,1018137557,6.85,
Department of Health,Salisbury NHS Foundation Trust,31-Oct-17,DISPOSABLE THEATRE DRAPES WIPES,Musculo-Skeletal,NHS LOGISTICS,1018137557,3.55,
Department of Health,Salisbury NHS Foundation Trust,31-Oct-17,TOILETRIES PERSONAL HYGIENE PRODUCTS,Musculo-Skeletal,NHS LOGISTICS,1018137557,4.15,
Department of Health,Salisbury NHS Foundation Trust,31-Oct-17,TISSUES HAND TOWELS & TOILET PAPER,Musculo-Skeletal,NHS LOGISTICS,1018137557,2.48,
Department of Health,Salisbury NHS Foundation Trust,31-Oct-17,OTHER MEDICAL SUPPLIES,Medicine,NHS LOGISTICS,1018137557,3.77,
Department of Health,Salisbury NHS Foundation Trust,31-Oct-17,MEDSURGCONS - OTHER,Medicine,NHS LOGISTICS,1018137557,4.88,
Department of Health,Salisbury NHS Foundation Trust,31-Oct-17,TUBES,Medicine,NHS LOGISTICS,1018137557,6.85,
Department of Health,Salisbury NHS Foundation Trust,31-Oct-17,PATIENT APPLIANCES,Medicine,NHS LOGISTICS,1018137557,6.7,
Department of Health,Salisbury NHS Foundation Trust,31-Oct-17,PATIENT APPLIANCES,Medicine,NHS LOGISTICS,1018137557,6.7,
Department of Health,Salisbury NHS Foundation Trust,31-Oct-17,PATIENT APPLIANCES,Medicine,NHS LOGISTICS,1018137557,3.35,
Department of Health,Salisbury NHS Foundation Trust,31-Oct-17,PATIENT APPLIANCES,Medicine,NHS LOGISTICS,1018137557,8.78,
Department of Health,Salisbury NHS Foundation Trust,31-Oct-17,PATIENTS BABY WEAR,Medicine,NHS LOGISTICS,1018137557,7.17,
Department of Health,Salisbury NHS Foundation Trust,31-Oct-17,PATIENTS BABY WEAR,Medicine,NHS LOGISTICS,1018137557,7.17,
Department of Health,Salisbury NHS Foundation Trust,31-Oct-17,PATIENTS BABY WEAR,Medicine,NHS LOGISTICS,1018137557,7.45,
Department of Health,Salisbury NHS Foundation Trust,31-Oct-17,PATIENTS BABY WEAR,Medicine,NHS LOGISTICS,1018137557,14.9,
Department of Health,Salisbury NHS Foundation Trust,31-Oct-17,PATIENTS BABY WEAR,Medicine,NHS LOGISTICS,1018137557,32.13,
Department of Health,Salisbury NHS Foundation Trust,31-Oct-17,DISPOSABLE THEATRE DRAPES WIPES,Medicine,NHS LOGISTICS,1018137557,3.55,
Department of Health,Salisbury NHS Foundation Trust,31-Oct-17,DISPOSABLE THEATRE DRAPES WIPES,Medicine,NHS LOGISTICS,1018137557,3.55,
Department of Health,Salisbury NHS Foundation Trust,31-Oct-17,ELECTRICAL EQUIPMENT x,Medicine,NHS LOGISTICS,1018137557,11.6,
Department of Health,Salisbury NHS Foundation Trust,31-Oct-17,SERVICES FROM NHS BODIES,Medicine,NHS LOGISTICS,1018137557,4.44,
Department of Health,Salisbury NHS Foundation Trust,31-Oct-17,DRESSINGS - PRE STERILE,Medicine,NHS LOGISTICS,1018137557,16.95,
Department of Health,Salisbury NHS Foundation Trust,31-Oct-17,DRESSINGS - PRE STERILE,Medicine,NHS LOGISTICS,1018137557,2.49,
Department of Health,Salisbury NHS Foundation Trust,31-Oct-17,MEDSURGCONS - OTHER,Medicine,NHS LOGISTICS,1018137557,5.89,
Department of Health,Salisbury NHS Foundation Trust,31-Oct-17,MEDSURGCONS - OTHER,Medicine,NHS LOGISTICS,1018137557,6.82,
Department of Health,Salisbury NHS Foundation Trust,31-Oct-17,MEDSURGCONS - OTHER,Medicine,NHS LOGISTICS,1018137557,3.91,
Department of Health,Salisbury NHS Foundation Trust,31-Oct-17,CLEANING MATERIALS PRODUCTS SUNDRIES,Medicine,NHS LOGISTICS,1018137557,5.45,
Department of Health,Salisbury NHS Foundation Trust,31-Oct-17,TISSUES HAND TOWELS & TOILET PAPER,Medicine,NHS LOGISTICS,1018137557,1.57,
Department of Health,Salisbury NHS Foundation Trust,31-Oct-17,TISSUES HAND TOWELS & TOILET PAPER,Medicine,NHS LOGISTICS,1018137557,2.48,
Department of Health,Salisbury NHS Foundation Trust,31-Oct-17,TISSUES HAND TOWELS & TOILET PAPER,Medicine,NHS LOGISTICS,1018137557,2.48,
Department of Health,Salisbury NHS Foundation Trust,31-Oct-17,DRESSINGS - PRE STERILE,Musculo-Skeletal,NHS LOGISTICS,1018137557,15.03,
Department of Health,Salisbury NHS Foundation Trust,31-Oct-17,DRESSINGS - PRE STERILE,Musculo-Skeletal,NHS LOGISTICS,1018137557,15.03,
Department of Health,Salisbury NHS Foundation Trust,31-Oct-17,DRESSINGS - PRE STERILE,Musculo-Skeletal,NHS LOGISTICS,1018137557,6,
Department of Health,Salisbury NHS Foundation Trust,31-Oct-17,DRESSINGS - PRE STERILE,Musculo-Skeletal,NHS LOGISTICS,1018137557,6,
Department of Health,Salisbury NHS Foundation Trust,31-Oct-17,DRESSINGS - PRE STERILE,Musculo-Skeletal,NHS LOGISTICS,1018137557,9.39,
Department of Health,Salisbury NHS Foundation Trust,31-Oct-17,DRESSINGS - PRE STERILE,Musculo-Skeletal,NHS LOGISTICS,1018137557,5.87,
Department of Health,Salisbury NHS Foundation Trust,31-Oct-17,DRESSINGS - PRE STERILE,Musculo-Skeletal,NHS LOGISTICS,1018137557,5.73,
Department of Health,Salisbury NHS Foundation Trust,31-Oct-17,DRESSINGS - PRE STERILE,Musculo-Skeletal,NHS LOGISTICS,1018137557,14.98,
Department of Health,Salisbury NHS Foundation Trust,31-Oct-17,DRESSINGS - PRE STERILE,Musculo-Skeletal,NHS LOGISTICS,1018137557,8.71,
Department of Health,Salisbury NHS Foundation Trust,31-Oct-17,OTHER MEDICAL SUPPLIES,Musculo-Skeletal,NHS LOGISTICS,1018137557,7.53,
Department of Health,Salisbury NHS Foundation Trust,31-Oct-17,OTHER MEDICAL SUPPLIES,Musculo-Skeletal,NHS LOGISTICS,1018137557,5.58,
Department of Health,Salisbury NHS Foundation Trust,31-Oct-17,MEDSURGCONS - OTHER,Musculo-Skeletal,NHS LOGISTICS,1018137557,59.78,
Department of Health,Salisbury NHS Foundation Trust,31-Oct-17,MEDSURGCONS - OTHER,Musculo-Skeletal,NHS LOGISTICS,1018137557,6.82,
Department of Health,Salisbury NHS Foundation Trust,31-Oct-17,MEDSURGCONS - OTHER,Musculo-Skeletal,NHS LOGISTICS,1018137557,3.91,
Department of Health,Salisbury NHS Foundation Trust,31-Oct-17,ANAESTHETIC EQUIPMENT ACCESSORIES,Musculo-Skeletal,NHS LOGISTICS,1018137557,3.9,
Department of Health,Salisbury NHS Foundation Trust,31-Oct-17,TUBES,Musculo-Skeletal,NHS LOGISTICS,1018137557,6.85,
Department of Health,Salisbury NHS Foundation Trust,31-Oct-17,PATIENT APPLIANCES,Musculo-Skeletal,NHS LOGISTICS,1018137557,3.35,
Department of Health,Salisbury NHS Foundation Trust,31-Oct-17,PATIENT APPLIANCES,Musculo-Skeletal,NHS LOGISTICS,1018137557,4.39,
Department of Health,Salisbury NHS Foundation Trust,31-Oct-17,PATIENT APPLIANCES,Musculo-Skeletal,NHS LOGISTICS,1018137557,4.39,
Department of Health,Salisbury NHS Foundation Trust,31-Oct-17,PATIENT APPLIANCES,Musculo-Skeletal,NHS LOGISTICS,1018137557,4.39,
Department of Health,Salisbury NHS Foundation Trust,31-Oct-17,CLEANING MATERIALS PRODUCTS SUNDRIES,Musculo-Skeletal,NHS LOGISTICS,1018137557,5.45,
Department of Health,Salisbury NHS Foundation Trust,31-Oct-17,DISPOSABLE THEATRE DRAPES WIPES,Musculo-Skeletal,NHS LOGISTICS,1018137557,15.4,
Department of Health,Salisbury NHS Foundation Trust,31-Oct-17,TOILETRIES PERSONAL HYGIENE PRODUCTS,Musculo-Skeletal,NHS LOGISTICS,1018137557,8.25,
Department of Health,Salisbury NHS Foundation Trust,31-Oct-17,TOILETRIES PERSONAL HYGIENE PRODUCTS,Musculo-Skeletal,NHS LOGISTICS,1018137557,12.33,
Department of Health,Salisbury NHS Foundation Trust,31-Oct-17,TOILETRIES PERSONAL HYGIENE PRODUCTS,Musculo-Skeletal,NHS LOGISTICS,1018137557,50.73,
Department of Health,Salisbury NHS Foundation Trust,31-Oct-17,TISSUES HAND TOWELS & TOILET PAPER,Musculo-Skeletal,NHS LOGISTICS,1018137557,0.35,
Department of Health,Salisbury NHS Foundation Trust,31-Oct-17,TISSUES HAND TOWELS & TOILET PAPER,Musculo-Skeletal,NHS LOGISTICS,1018137557,7.45,
Department of Health,Salisbury NHS Foundation Trust,31-Oct-17,TISSUES HAND TOWELS & TOILET PAPER,Musculo-Skeletal,NHS LOGISTICS,1018137557,3.72,
Department of Health,Salisbury NHS Foundation Trust,31-Oct-17,DRESSINGS - PRE STERILE,Clinical Support,NHS LOGISTICS,1018137557,7.52,
Department of Health,Salisbury NHS Foundation Trust,31-Oct-17,DRESSINGS - PRE STERILE,Clinical Support,NHS LOGISTICS,1018137557,6,
Department of Health,Salisbury NHS Foundation Trust,31-Oct-17,DRESSINGS - PRE STERILE,Clinical Support,NHS LOGISTICS,1018137557,29.07,
Department of Health,Salisbury NHS Foundation Trust,31-Oct-17,DRESSINGS - PRE STERILE,Clinical Support,NHS LOGISTICS,1018137557,26.65,
Department of Health,Salisbury NHS Foundation Trust,31-Oct-17,M & S EQUIPELECTEQUIPINST - OTHER,Clinical Support,NHS LOGISTICS,1018137557,1.47,
Department of Health,Salisbury NHS Foundation Trust,31-Oct-17,OTHER MEDICAL SUPPLIES,Clinical Support,NHS LOGISTICS,1018137557,1.88,
Department of Health,Salisbury NHS Foundation Trust,31-Oct-17,MEDSURGCONS - OTHER,Clinical Support,NHS LOGISTICS,1018137557,353.58,
Department of Health,Salisbury NHS Foundation Trust,31-Oct-17,MEDSURGCONS - OTHER,Clinical Support,NHS LOGISTICS,1018137557,8.57,
Department of Health,Salisbury NHS Foundation Trust,31-Oct-17,MEDSURGCONS - OTHER,Clinical Support,NHS LOGISTICS,1018137557,13.29,
Department of Health,Salisbury NHS Foundation Trust,31-Oct-17,MEDSURGCONS - OTHER,Clinical Support,NHS LOGISTICS,1018137557,6.82,
Department of Health,Salisbury NHS Foundation Trust,31-Oct-17,MEDSURGCONS - OTHER,Clinical Support,NHS LOGISTICS,1018137557,7.82,
Department of Health,Salisbury NHS Foundation Trust,31-Oct-17,TUBES,Clinical Support,NHS LOGISTICS,1018137557,6.85,
Department of Health,Salisbury NHS Foundation Trust,31-Oct-17,HEALTHCARE - WEAR,Clinical Support,NHS LOGISTICS,1018137557,31.83,
Department of Health,Salisbury NHS Foundation Trust,31-Oct-17,DISPOSABLE THEATRE DRAPES WIPES,Clinical Support,NHS LOGISTICS,1018137557,3.55,
Department of Health,Salisbury NHS Foundation Trust,31-Oct-17,TISSUES HAND TOWELS & TOILET PAPER,Clinical Support,NHS LOGISTICS,1018137557,4.97,
Department of Health,Salisbury NHS Foundation Trust,31-Oct-17,MEDSURGCONS - OTHER,Musculo-Skeletal,NHS LOGISTICS,1018137557,42.93,
Department of Health,Salisbury NHS Foundation Trust,31-Oct-17,MEDSURGCONS - OTHER,Musculo-Skeletal,NHS LOGISTICS,1018137557,155.23,
Department of Health,Salisbury NHS Foundation Trust,31-Oct-17,PATIENT APPLIANCES,Musculo-Skeletal,NHS LOGISTICS,1018137557,6.7,
Department of Health,Salisbury NHS Foundation Trust,31-Oct-17,PATIENT APPLIANCES,Musculo-Skeletal,NHS LOGISTICS,1018137557,3.35,
Department of Health,Salisbury NHS Foundation Trust,31-Oct-17,PATIENT APPLIANCES,Musculo-Skeletal,NHS LOGISTICS,1018137557,38.39,
Department of Health,Salisbury NHS Foundation Trust,31-Oct-17,PATIENT APPLIANCES,Musculo-Skeletal,NHS LOGISTICS,1018137557,37.61,
Department of Health,Salisbury NHS Foundation Trust,31-Oct-17,PATIENT APPLIANCES,Musculo-Skeletal,NHS LOGISTICS,1018137557,8.78,
Department of Health,Salisbury NHS Foundation Trust,31-Oct-17,PATIENT APPLIANCES,Musculo-Skeletal,NHS LOGISTICS,1018137557,4.39,
Department of Health,Salisbury NHS Foundation Trust,31-Oct-17,PATIENT APPLIANCES,Musculo-Skeletal,NHS LOGISTICS,1018137557,4.39,
Department of Health,Salisbury NHS Foundation Trust,31-Oct-17,PATIENT APPLIANCES,Musculo-Skeletal,NHS LOGISTICS,1018137557,86.33,
Department of Health,Salisbury NHS Foundation Trust,31-Oct-17,DISPOSABLE THEATRE DRAPES WIPES,Musculo-Skeletal,NHS LOGISTICS,1018137557,3.29,
Department of Health,Salisbury NHS Foundation Trust,31-Oct-17,DISPOSABLE THEATRE DRAPES WIPES,Musculo-Skeletal,NHS LOGISTICS,1018137557,3.55,
Department of Health,Salisbury NHS Foundation Trust,31-Oct-17,NON DISPOSABLE BED LINEN,Musculo-Skeletal,NHS LOGISTICS,1018137557,33.18,
Department of Health,Salisbury NHS Foundation Trust,31-Oct-17,TISSUES HAND TOWELS & TOILET PAPER,Musculo-Skeletal,NHS LOGISTICS,1018137557,7,
Department of Health,Salisbury NHS Foundation Trust,31-Oct-17,OTHER MEDICAL SUPPLIES,Clinical Support,NHS LOGISTICS,1018137557,53.67,
Department of Health,Salisbury NHS Foundation Trust,31-Oct-17,OTHER MEDICAL SUPPLIES,Clinical Support,NHS LOGISTICS,1018137557,1.88,
Department of Health,Salisbury NHS Foundation Trust,31-Oct-17,MEDSURGCONS - OTHER,Clinical Support,NHS LOGISTICS,1018137557,23.57,
Department of Health,Salisbury NHS Foundation Trust,31-Oct-17,ANAESTHETIC EQUIPMENT ACCESSORIES,Clinical Support,NHS LOGISTICS,1018137557,28.42,
Department of Health,Salisbury NHS Foundation Trust,31-Oct-17,M & S EQUIPELECTEQUIPINST - OTHER,Clinical Support,NHS LOGISTICS,1018137557,3.83,
Department of Health,Salisbury NHS Foundation Trust,31-Oct-17,OTHER MEDICAL SUPPLIES,Clinical Support,NHS LOGISTICS,1018137557,149.47,
Department of Health,Salisbury NHS Foundation Trust,31-Oct-17,OTHER MEDICAL SUPPLIES,Clinical Support,NHS LOGISTICS,1018137557,1.88,
Department of Health,Salisbury NHS Foundation Trust,31-Oct-17,MED SURG EQUIP REP MAINT CLEANING,Clinical Support,NHS LOGISTICS,1018137557,10.97,
Department of Health,Salisbury NHS Foundation Trust,31-Oct-17,PATIENT APPLIANCES,Clinical Support,NHS LOGISTICS,1018137557,3.9,
Department of Health,Salisbury NHS Foundation Trust,31-Oct-17,PATIENT APPLIANCES,Clinical Support,NHS LOGISTICS,1018137557,4.32,
Department of Health,Salisbury NHS Foundation Trust,31-Oct-17,PATIENTS BEDWEAR UNISEX,Clinical Support,NHS LOGISTICS,1018137557,4,
Department of Health,Salisbury NHS Foundation Trust,31-Oct-17,DISPOSABLE THEATRE DRAPES WIPES,Clinical Support,NHS LOGISTICS,1018137557,3.55,
Department of Health,Salisbury NHS Foundation Trust,31-Oct-17,TOILETRIES PERSONAL HYGIENE PRODUCTS,Clinical Support,NHS LOGISTICS,1018137557,4.63,
Department of Health,Salisbury NHS Foundation Trust,31-Oct-17,SERVICES FROM NHS BODIES,Clinical Support,NHS LOGISTICS,1018137557,4.44,
Department of Health,Salisbury NHS Foundation Trust,31-Oct-17,OTHER MEDICAL SUPPLIES,Clinical Support,NHS LOGISTICS,1018137557,37.37,
Department of Health,Salisbury NHS Foundation Trust,31-Oct-17,TISSUES HAND TOWELS & TOILET PAPER,Clinical Support,NHS LOGISTICS,1018137557,21.3,
Department of Health,Salisbury NHS Foundation Trust,31-Oct-17,TISSUES HAND TOWELS & TOILET PAPER,Surgery,NHS LOGISTICS,1018137557,2.48,
Department of Health,Salisbury NHS Foundation Trust,31-Oct-17,M & S EQUIPELECTEQUIPINST - OTHER,Surgery,NHS LOGISTICS,1018137557,26.9,
Department of Health,Salisbury NHS Foundation Trust,31-Oct-17,DRESSINGS - PRE STERILE,Musculo-Skeletal,NHS LOGISTICS,1018137557,22.55,
Department of Health,Salisbury NHS Foundation Trust,31-Oct-17,DRESSINGS - PRE STERILE,Musculo-Skeletal,NHS LOGISTICS,1018137557,1.15,
Department of Health,Salisbury NHS Foundation Trust,31-Oct-17,DISPOSABLE THEATRE DRAPES WIPES,Musculo-Skeletal,NHS LOGISTICS,1018137557,3.55,
Department of Health,Salisbury NHS Foundation Trust,31-Oct-17,TISSUES HAND TOWELS & TOILET PAPER,Musculo-Skeletal,NHS LOGISTICS,1018137557,9.93,
Department of Health,Salisbury NHS Foundation Trust,31-Oct-17,DRESSINGS - PRE STERILE,Musculo-Skeletal,NHS LOGISTICS,1018137557,1.98,
Department of Health,Salisbury NHS Foundation Trust,31-Oct-17,TISSUES HAND TOWELS & TOILET PAPER,Musculo-Skeletal,NHS LOGISTICS,1018137557,2.48,
Department of Health,Salisbury NHS Foundation Trust,31-Oct-17,DRESSINGS - PRE STERILE,Surgery,NHS LOGISTICS,1018137557,6.04,
Department of Health,Salisbury NHS Foundation Trust,31-Oct-17,DRESSINGS - PRE STERILE,Surgery,NHS LOGISTICS,1018137557,8.53,
Department of Health,Salisbury NHS Foundation Trust,31-Oct-17,DRESSINGS - PRE STERILE,Surgery,NHS LOGISTICS,1018137557,8.33,
Department of Health,Salisbury NHS Foundation Trust,31-Oct-17,DRESSINGS - PRE STERILE,Surgery,NHS LOGISTICS,1018137557,1.95,
Department of Health,Salisbury NHS Foundation Trust,31-Oct-17,DRESSINGS - PRE STERILE,Surgery,NHS LOGISTICS,1018137557,15.56,
Department of Health,Salisbury NHS Foundation Trust,31-Oct-17,DISPOSABLE THEATRE DRAPES WIPES,Surgery,NHS LOGISTICS,1018137557,1.87,
Department of Health,Salisbury NHS Foundation Trust,31-Oct-17,TISSUES HAND TOWELS & TOILET PAPER,Surgery,NHS LOGISTICS,1018137557,3.7,
Department of Health,Salisbury NHS Foundation Trust,31-Oct-17,TISSUES HAND TOWELS & TOILET PAPER,Surgery,NHS LOGISTICS,1018137557,1.24,
Department of Health,Salisbury NHS Foundation Trust,31-Oct-17,TISSUES HAND TOWELS & TOILET PAPER,Surgery,NHS LOGISTICS,1018137557,10.65,
Department of Health,Salisbury NHS Foundation Trust,31-Oct-17,DRUGS,Medicine,NHS LOGISTICS,1018137557,9.35,
Department of Health,Salisbury NHS Foundation Trust,31-Oct-17,DRESSINGS - PRE STERILE,Medicine,NHS LOGISTICS,1018137557,4.59,
Department of Health,Salisbury NHS Foundation Trust,31-Oct-17,DRESSINGS - PRE STERILE,Medicine,NHS LOGISTICS,1018137557,16.33,
Department of Health,Salisbury NHS Foundation Trust,31-Oct-17,M & S EQUIPELECTEQUIPINST - OTHER,Medicine,NHS LOGISTICS,1018137557,160.12,
Department of Health,Salisbury NHS Foundation Trust,31-Oct-17,OTHER MEDICAL SUPPLIES,Medicine,NHS LOGISTICS,1018137557,1.88,
Department of Health,Salisbury NHS Foundation Trust,31-Oct-17,MED SURG EQUIP REP MAINT CLEANING,Medicine,NHS LOGISTICS,1018137557,31.43,
Department of Health,Salisbury NHS Foundation Trust,31-Oct-17,DISPOSABLE THEATRE DRAPES WIPES,Medicine,NHS LOGISTICS,1018137557,113.5,
Department of Health,Salisbury NHS Foundation Trust,31-Oct-17,NON DISPOSABLE THEATRE DRAPES WIPES,Medicine,NHS LOGISTICS,1018137557,52.82,
